Workbook

Sheet Database Sheet
D1: Note: You may need to change the column name for the Average and the Poly | L1: =COLUMN() -> 12 | M1: =COLUMN() -> 13 | N1: =COLUMN() -> 14 | O1: =COLUMN() -> 15 | P1: =COLUMN() -> 16 | Q1: =COLUMN() -> 17 | R1: =COLUMN() -> 18 | S1: =COLUMN() -> 19 | T1: =COLUMN() -> 20 | U1: =COLUMN() -> 21 | V1: =COLUMN() -> 22 | W1: =COLUMN() -> 23 | X1: =COLUMN() -> 24 | Y1: =COLUMN() -> 25 | Z1: =COLUMN() -> 26 | AA1: =COLUMN() -> 27 | AB1: =COLUMN() -> 28 | AC1: =COLUMN() -> 29 | AD1: =COLUMN() -> 30 | AE1: =COLUMN() -> 31 | AF1: =COLUMN() -> 32 | AG1: =COLUMN() -> 33 | AH1: =COLUMN() -> 34 | AI1: =COLUMN() -> 35 | AJ1: =COLUMN() -> 36 | AK1: =COLUMN() -> 37 | AL1: =COLUMN() -> 38 | AM1: =COLUMN() -> 39 | AN1: =COLUMN() -> 40 | AO1: =COLUMN() -> 41 | AP1: =COLUMN() -> 42 | AQ1: =COLUMN() -> 43 | AR1: =COLUMN() -> 44 | AS1: =COLUMN() -> 45 | AT1: =COLUMN() -> 46 | AU1: =COLUMN() -> 47 | AV1: =COLUMN() -> 48 | AW1: =COLUMN() -> 49 | AX1: =COLUMN() -> 50 | AY1: =COLUMN() -> 51 | AZ1: =COLUMN() -> 52 | BA1: =COLUMN() -> 53 | BB1: =COLUMN() -> 54 | BC1: =COLUMN() -> 55 | BD1: =COLUMN() -> 56 | BE1: =COLUMN() -> 57 | BF1: =COLUMN() -> 58 | BG1: =COLUMN() -> 59 | BH1: =COLUMN() -> 60 | BI1: =COLUMN() -> 61 | BJ1: =COLUMN() -> 62 | BK1: =COLUMN() -> 63 | BL1: =COLUMN() -> 64 | BM1: =COLUMN() -> 65 | BN1: =COLUMN() -> 66 | BO1: =COLUMN() -> 67 | BP1: =COLUMN() -> 68 | BQ1: =COLUMN() -> 69 | BR1: =COLUMN() -> 70 | BS1: =COLUMN() -> 71 | BT1: =COLUMN() -> 72 | BU1: =COLUMN() -> 73 | BV1: =COLUMN() -> 74 | BW1: =COLUMN() -> 75
D2: Also, be careful with the names | K2: Uses Function sheet_name1
C3: http://pvinsights.com/ | BT3: =BT7=sheets_function1 -> FALSE | BU3: =BU7=sheets_function1 -> FALSE | BV3: =BV7=sheets_function1 -> TRUE | BW3: =BW7=sheets_function1 -> FALSE
C4: =sheet_name1('pvinsights 05 02 15'!A33:E33) -> pvinsights 05 02 15
K5: Name to Lookup in Sheet | L5: ='pvinsights 05 02 15'!I39 -> Average | M5: =L5 -> Average | N5: =M5 -> Average | O5: Average | P5: Average | Q5: Average | R5: Average | S5: Average | T5: Average | U5: Average | V5: Average | W5: Average | X5: Average | Y5: Average | Z5: Average | AA5: Average | AB5: Average | AC5: Average | AD5: Average | AE5: Average | AF5: Average | AG5: Average | AH5: Average | AI5: Average | AJ5: Average | AK5: Average | AL5: Average | AM5: Average | AN5: Average | AO5: Average | AP5: Average | AQ5: Average | AR5: Average | AS5: Average | AT5: Average | AU5: Average | AV5: Average | AW5: Average | AX5: Average | AY5: Average | AZ5: Average | BA5: Average | BB5: Average | BC5: Average | BD5: Average | BE5: Average | BF5: Average | BG5: Average | BH5: Average | BI5: Average | BJ5: Average | BK5: Average | BL5: Average | BM5: Average | BN5: Average | BO5: Average | BP5: Average | BQ5: Average | BR5: Average | BS5: Average | BT5: Average | BU5: Average | BV5: Average | BW5: Average
L6: =MID(L9,16,2)&" "&RIGHT(L7,2) -> 02 15 | M6: =MID(M9,16,2)&" "&RIGHT(M7,2) -> 05 15 | N6: 06 15 | O6: 05 15 | P6: 11 15 | Q6: 07 16 | R6: 10 16 | S6: 01 17 | T6: =MID(T9,16,2)&" "&RIGHT(T7,2) -> 02 17 | U6: 04 17 | V6: =MID(V9,16,2)&" "&RIGHT(V7,2) -> 06 17 | W6: 08 17 | X6: =MID(X9,16,2)&" "&RIGHT(X7,2) -> 09 17 | Y6: 10 17 | Z6: =MID(Z9,16,2)&" "&RIGHT(Z7,2) -> 11 17 | AA6: =MID(AA9,16,2)&" "&RIGHT(AA7,2) -> 02 18 | AB6: 04 18 | AC6: 06 18 | AD6: 07 18 | AE6: 08 18 | AF6: 09 18 | AG6: 10 18 | AH6: =MID(AH9,16,2)&" "&RIGHT(AH7,2) -> 12 18 | AI6: 01 19 | AJ6: =MID(AJ9,16,2)&" "&RIGHT(AJ7,2) -> 01 19 | AK6: 03 19 | AL6: =MID(AL9,16,2)&" "&RIGHT(AL7,2) -> 05 19 | AM6: 05 19 | AN6: =MID(AN9,16,2)&" "&RIGHT(AN7,2) -> 06 19 | AO6: 08 19 | AP6: =MID(AP9,16,2)&" "&RIGHT(AP7,2) -> 09 19 | AQ6: 11 19 | AR6: =MID(AR9,16,2)&" "&RIGHT(AR7,2) -> 12 19 | AS6: 12 19 | AT6: =MID(AT9,16,2)&" "&RIGHT(AT7,2) -> 02 20 | AU6: 04 20 | AV6: =MID(AV9,16,2)&" "&RIGHT(AV7,2) -> 05 20 | AW6: 06 20 | AX6: =MID(AX9,16,2)&" "&RIGHT(AX7,2) -> 07 20 | AY6: 08 20 | AZ6: =MID(AZ9,16,2)&" "&RIGHT(AZ7,2) -> 09 20 | BA6: =MID(BA9,16,2)&" "&RIGHT(BA7,2) -> 10 20 | BB6: 11 20 | BC6: =MID(BC9,16,2)&" "&RIGHT(BC7,2) -> 01 21 | BD6: 01 21 | BE6: =MID(BE9,16,2)&" "&RIGHT(BE7,2) -> 02 21 | BF6: 03 21 | BG6: =MID(BG9,16,2)&" "&RIGHT(BG7,2) -> 05 21 | BH6: 06 21 | BI6: =MID(BI9,16,2)&" "&RIGHT(BI7,2) -> 07 21 | BJ6: =MID(BJ9,16,2)&" "&RIGHT(BJ7,2) -> 07 21 | BK6: 08 21 | BL6: =MID(BL9,16,2)&" "&RIGHT(BL7,2) -> 09 21 | BM6: 11 21 | BN6: =MID(BN9,16,2)&" "&RIGHT(BN7,2) -> 12 21 | BO6: 01 22 | BP6: =MID(BP9,16,2)&" "&RIGHT(BP7,2) -> 02 22 | BQ6: 03 22 | BR6: =MID(BR9,16,2)&" "&RIGHT(BR7,2) -> 04 22 | BS6: 05 22 | BT6: =MID(BT9,16,2)&" "&RIGHT(BT7,2) -> 06 22 | BU6: 06 22 | BV6: =MID(BV9,16,2)&" "&RIGHT(BV7,2) -> 08 22 | BW6: 09 22
C7: Number Sheets function | D7: =num_sheets() -> 79 | G7: File Row | H7: =ROW() -> 7 | K7: Fixed Sheet Name | L7: pvinsights 05 02 15 | M7: pvinsights 29 05 15 | N7: pvinsights 15 06 15 | O7: pvinsights 29 05 15 | P7: pvinsights 13 11 15 | Q7: pvinsights 31 07 16 | R7: pvinsights 02 10 16 | S7: pvinsights 08 01 17 | T7: pvinsights 26 02 17 | U7: pvinsights 06 04 17 | V7: pvinsights 01 06 17 | W7: pvinsights 26 08 17 | X7: pvinsights 16 09 17 | Y7: pvinsights 30 10 17 | Z7: pvinsights 20 11 17 | AA7: pvinsights 01 02 18 | AB7: pvinsights 09 04 18 | AC7: pvinsights 05 06 18 | AD7: pvinsights 09 07 18 | AE7: pvinsights 31 08 18 | AF7: pvinsights 21 09 18 | AG7: pvinsights 31 10 18 | AH7: pvinsights 02 12 18 | AI7: pvinsights 02 01 19 | AJ7: pvinsights 29 01 19 | AK7: pvinsights 05 03 19 | AL7: pvinsights 07 05 19 | AM7: pvinsights 19 05 19 | AN7: pvinsights 27 06 19 | AO7: pvinsights 12 08 19 | AP7: pvinsights 07 09 19 | AQ7: pvinsights 24 11 19 | AR7: pvinsights 13 12 19 | AS7: pvinsights 22 12 19 | AT7: pvinsights 08 02 20 | AU7: pvinsights 25 04 20 | AV7: pvinsights 25 05 20 | AW7: pvinsights 26 06 20 | AX7: pvinsights 28 07 20 | AY7: pvinsights 16 08 20 | AZ7: pvinsights 19 09 20 | BA7: pvinsights 06 10 20 | BB7: pvinsights 30 11 20 | BC7: pvinsights 11 01 21 | BD7: pvinsights 22 01 21 | BE7: pvinsights 21 02 21 | BF7: pvinsights 21 03 21 | BG7: pvinsights 04 05 21 | BH7: pvinsights 28 06 21 | BI7: pvinsights 12 07 21 | BJ7: pvinsights 18 07 21 | BK7: pvinsights 09 08 21 | BL7: pvinsights 24 09 21 | BM7: pvinsights 05 11 21 | BN7: pvinsights 12 12 21 | BO7: pvinsights 18 01 22 | BP7: pvinsights 23 02 22 | BQ7: pvinsights 13 03 22 | BR7: pvinsights 13 04 22 | BS7: pvinsights 08 05 22 | BT7: pvinsights 06 06 22 | BU7: pvinsights 26 06 22 | BV7: pvinsights 24 08 22 | BW7: pvinsights 17 09 22
C8: Last Sheet Name function | D8: =sheet_name_num(D7-1) -> pvinsights 24 08 22 | E8: Col | F8: =MATCH(D8,7:7,0) -> 74 | K8: Column of Average in Detail Sheet | L8: I | M8: I | N8: I | O8: I | P8: I | Q8: I | R8: I | S8: I | T8: I | U8: I | V8: I | W8: I | X8: I | Y8: I | Z8: I | AA8: I | AB8: I | AC8: I | AD8: I | AE8: I | AF8: I | AG8: I | AH8: I | AI8: I | AJ8: I | AK8: I | AL8: I | AM8: I | AN8: I | AO8: I | AP8: I | AQ8: I | AR8: I | AS8: I | AT8: I | AU8: I | AV8: I | AW8: I | AX8: I | AY8: I | AZ8: I | BA8: I | BB8: I | BC8: I | BD8: I | BE8: G | BF8: G | BG8: G | BH8: G | BI8: G | BJ8: G | BK8: G | BL8: G | BM8: G | BN8: G | BO8: G | BP8: G | BQ8: G | BR8: G | BS8: G | BT8: G | BU8: G | BV8: G | BW8: G
C9: Current Last Sheet | D9: =sheet_name_num(D7) -> pvinsights 17 09 22 | K9: Indirect Key for Polysilicon | L9: ="'"&L$7&"'!"&L8&":"&L8 -> 'pvinsights 05 02 15'!I:I | M9: ="'"&M7&"'!"&M8&":"&M8 -> 'pvinsights 29 05 15'!I:I | N9: 'pvinsights 15 06 15'!I:I | O9: ="'"&O7&"'!"&O8&":"&O8 -> 'pvinsights 29 05 15'!I:I | P9: 'pvinsights 13 11 15'!I:I | Q9: 'pvinsights 31 07 16'!I:I | R9: 'pvinsights 02 10 16'!I:I | S9: 'pvinsights 08 01 17'!I:I | T9: 'pvinsights 26 02 17'!I:I | U9: ="'"&U7&"'!"&U8&":"&U8 -> 'pvinsights 06 04 17'!I:I | V9: 'pvinsights 01 06 17'!I:I | W9: 'pvinsights 26 08 17'!I:I | X9: 'pvinsights 16 09 17'!I:I | Y9: 'pvinsights 30 10 17'!I:I | Z9: 'pvinsights 20 11 17'!I:I | AA9: 'pvinsights 01 02 18'!I:I | AB9: ="'"&AB7&"'!"&AB8&":"&AB8 -> 'pvinsights 09 04 18'!I:I | AC9: 'pvinsights 05 06 18'!I:I | AD9: 'pvinsights 09 07 18'!I:I | AE9: 'pvinsights 31 08 18'!I:I | AF9: 'pvinsights 21 09 18'!I:I | AG9: 'pvinsights 31 10 18'!I:I | AH9: 'pvinsights 02 12 18'!I:I | AI9: ="'"&AI7&"'!"&AI8&":"&AI8 -> 'pvinsights 02 01 19'!I:I | AJ9: 'pvinsights 29 01 19'!I:I | AK9: ="'"&AK7&"'!"&AK8&":"&AK8 -> 'pvinsights 05 03 19'!I:I | AL9: 'pvinsights 07 05 19'!I:I | AM9: ="'"&AM7&"'!"&AM8&":"&AM8 -> 'pvinsights 19 05 19'!I:I | AN9: 'pvinsights 27 06 19'!I:I | AO9: ="'"&AO7&"'!"&AO8&":"&AO8 -> 'pvinsights 12 08 19'!I:I | AP9: 'pvinsights 07 09 19'!I:I | AQ9: ="'"&AQ7&"'!"&AQ8&":"&AQ8 -> 'pvinsights 24 11 19'!I:I | AR9: ="'"&AR7&"'!"&AR8&":"&AR8 -> 'pvinsights 13 12 19'!I:I | AS9: 'pvinsights 22 12 19'!I:I | AT9: ="'"&AT7&"'!"&AT8&":"&AT8 -> 'pvinsights 08 02 20'!I:I | AU9: 'pvinsights 25 04 20'!I:I | AV9: ="'"&AV7&"'!"&AV8&":"&AV8 -> 'pvinsights 25 05 20'!I:I | AW9: 'pvinsights 26 06 20'!I:I | AX9: ="'"&AX7&"'!"&AX8&":"&AX8 -> 'pvinsights 28 07 20'!I:I | AY9: 'pvinsights 16 08 20'!I:I | AZ9: ="'"&AZ7&"'!"&AZ8&":"&AZ8 -> 'pvinsights 19 09 20'!I:I | BA9: ="'"&BA7&"'!"&BA8&":"&BA8 -> 'pvinsights 06 10 20'!I:I | BB9: 'pvinsights 30 11 20'!I:I | BC9: ="'"&BC7&"'!"&BC8&":"&BC8 -> 'pvinsights 11 01 21'!I:I | BD9: 'pvinsights 22 01 21'!I:I | BE9: ="'"&BE7&"'!"&BE8&":"&BE8 -> 'pvinsights 21 02 21'!G:G | BF9: 'pvinsights 21 03 21'!G:G | BG9: ="'"&BG7&"'!"&BG8&":"&BG8 -> 'pvinsights 04 05 21'!G:G | BH9: 'pvinsights 28 06 21'!G:G | BI9: ="'"&BI7&"'!"&BI8&":"&BI8 -> 'pvinsights 12 07 21'!G:G | BJ9: ="'"&BJ7&"'!"&BJ8&":"&BJ8 -> 'pvinsights 18 07 21'!G:G | BK9: 'pvinsights 09 08 21'!G:G | BL9: ="'"&BL7&"'!"&BL8&":"&BL8 -> 'pvinsights 24 09 21'!G:G | BM9: 'pvinsights 05 11 21'!G:G | BN9: ="'"&BN7&"'!"&BN8&":"&BN8 -> 'pvinsights 12 12 21'!G:G | BO9: 'pvinsights 18 01 22'!G:G | BP9: ="'"&BP7&"'!"&BP8&":"&BP8 -> 'pvinsights 23 02 22'!G:G | BQ9: 'pvinsights 13 03 22'!G:G | BR9: ="'"&BR7&"'!"&BR8&":"&BR8 -> 'pvinsights 13 04 22'!G:G | BS9: 'pvinsights 08 05 22'!G:G | BT9: ="'"&BT7&"'!"&BT8&":"&BT8 -> 'pvinsights 06 06 22'!G:G | BU9: 'pvinsights 26 06 22'!G:G | BV9: ="'"&BV7&"'!"&BV8&":"&BV8 -> 'pvinsights 24 08 22'!G:G | BW9: 'pvinsights 17 09 22'!G:G
E10: Row | G10: High | H10: Low | I10: Average | BF10: Match of Average | BG10: Match of Average | BH10: Match of Average | BI10: Match of Average | BJ10: Match of Average | BK10: Match of Average | BL10: Match of Average | BM10: Match of Average | BN10: Match of Average | BO10: Match of Average | BP10: Match of Average | BQ10: Match of Average | BR10: Match of Average | BS10: Match of Average | BT10: Match of Average | BU10: Match of Average | BV10: Match of Average | BW10: Match of Average
C11: Poly Silicon Solar Module | D11: =R7 -> pvinsights 02 10 16 | E11: =match_partial(C11,"F",10,D11,50) -> 41 | G11: =INDEX(INDIRECT("'"&$D11&"'!G:G"),'Database Sheet'!$E$11) -> 0.53 | H11: =INDEX(INDIRECT("'"&$D11&"'!H:H"),'Database Sheet'!$E$11) -> 0.34 | I11: =INDEX(INDIRECT("'"&$D11&"'!I:I"),'Database Sheet'!$E$11) -> 0.402 | K11: PV Grade Silicon Price | L11: =INDEX(INDIRECT(L9),MATCH(L5,INDIRECT(L9),0)+1) -> 19.08 | M11: =INDEX(INDIRECT(M9),MATCH(M5,INDIRECT(M9),0)+1) -> 15.79 | N11: 15.58 | O11: 15.79 | P11: 14.1 | Q11: 15.9 | R11: =INDEX(INDIRECT(R9),MATCH(R5,INDIRECT(R9),0)+1) -> 12.65 | S11: 15.37 | T11: =INDEX(INDIRECT(T9),MATCH(T5,INDIRECT(T9),0)+1) -> 16.22 | U11: =INDEX(INDIRECT(U9),MATCH(U5,INDIRECT(U9),0)+1) -> 14.21 | V11: 13.85 | W11: 15.55 | X11: 16.71 | Y11: 16.68 | Z11: 16.66 | AA11: =INDEX(INDIRECT(AA9),MATCH(AA5,INDIRECT(AA9),0)+1) -> 17.44 | AB11: 15.41 | AC11: =INDEX(INDIRECT(AC9),MATCH(AC5,INDIRECT(AC9),0)+1) -> 14.65 | AD11: 11.16 | AE11: =INDEX(INDIRECT(AE9),MATCH(AE5,INDIRECT(AE9),0)+1) -> 11.26 | AF11: 10.68 | AG11: =INDEX(INDIRECT(AG9),MATCH(AG5,INDIRECT(AG9),0)+1) -> 9.75 | AH11: 9.53 | AI11: =INDEX(INDIRECT(AI9),MATCH(AI5,INDIRECT(AI9),0)+1) -> 9.26 | AJ11: 8.9 | AK11: =INDEX(INDIRECT(AK9),MATCH(AK5,INDIRECT(AK9),0)+1) -> 9.04 | AL11: 8.42 | AM11: =INDEX(INDIRECT(AM9),MATCH(AM5,INDIRECT(AM9),0)+1) -> 8.34 | AN11: 8.14 | AO11: =INDEX(INDIRECT(AO9),MATCH(AO5,INDIRECT(AO9),0)+1) -> 7.92 | AP11: 7.66 | AQ11: =INDEX(INDIRECT(AQ9),MATCH(AQ5,INDIRECT(AQ9),0)+1) -> 7.5 | AR11: =INDEX(INDIRECT(AR9),MATCH(AR5,INDIRECT(AR9),0)+1) -> 7.41 | AS11: 7.28 | AT11: =INDEX(INDIRECT(AT9),MATCH(AT5,INDIRECT(AT9),0)+1) -> 7.1 | AU11: 6.43 | AV11: =INDEX(INDIRECT(AV9),MATCH(AV5,INDIRECT(AV9),0)+1) -> 6.28 | AW11: 6.19 | AX11: =INDEX(INDIRECT(AX9),MATCH(AX5,INDIRECT(AX9),0)+1) -> 8.21 | AY11: 10.68 | AZ11: =INDEX(INDIRECT(AZ9),MATCH(AZ5,INDIRECT(AZ9),0)+1) -> 10.84 | BA11: =INDEX(INDIRECT(BA9),MATCH(BA5,INDIRECT(BA9),0)+1) -> 10.64 | BB11: 9.95 | BC11: =INDEX(INDIRECT(BC9),MATCH(BC5,INDIRECT(BC9),0)+1) -> 10.79 | BD11: 11.09 | BE11: =INDEX(INDIRECT(BE9),MATCH(BE5,INDIRECT(BE9),0)+1) -> 12.06 | BF11: 15.63 | BG11: 20.02 | BH11: 27.63 | BI11: 27.35 | BJ11: =INDEX(INDIRECT(BJ9),MATCH(BJ5,INDIRECT(BJ9),0)+1) -> 27.11 | BK11: 26.95 | BL11: =INDEX(INDIRECT(BL9),MATCH(BL5,INDIRECT(BL9),0)+1) -> 28.79 | BM11: 35.81 | BN11: =INDEX(INDIRECT(BN9),MATCH(BN5,INDIRECT(BN9),0)+1) -> 31.65 | BO11: 30.56 | BP11: =INDEX(INDIRECT(BP9),MATCH(BP5,INDIRECT(BP9),0)+1) -> 33.05 | BQ11: 33.07 | BR11: =INDEX(INDIRECT(BR9),MATCH(BR5,INDIRECT(BR9),0)+1) -> 32.87 | BS11: 32.12 | BT11: =INDEX(INDIRECT(BT9),MATCH(BT5,INDIRECT(BT9),0)+1) -> 32.28 | BU11: 33.15 | BV11: =INDEX(INDIRECT(BV9),MATCH(BV5,INDIRECT(BV9),0)+1) -> 38.13 | BW11: 37.07
C12: ThinFilm Solar Module | D12: =D11 -> pvinsights 02 10 16 | E12: =match_partial(C12,"F",10,D12,50) -> 42 | G12: =INDEX(INDIRECT("'"&$D12&"'!G:G"),'Database Sheet'!$E$12) -> 0.54 | H12: =INDEX(INDIRECT("'"&$D12&"'!H:H"),'Database Sheet'!$E$12) -> 0.34 | I12: =INDEX(INDIRECT("'"&$D12&"'!I:I"),'Database Sheet'!$E$12) -> 0.42
K13: Match Key for Silicon | L13: Poly Silicon Solar Module | M13: Poly Silicon Solar Module | N13: Poly Silicon Solar Module | O13: Poly Silicon Solar Module | P13: Poly Silicon Solar Module | Q13: Poly Silicon Solar Module | R13: Poly Silicon Solar Module | S13: Poly Silicon Solar Module | T13: Poly Silicon Solar Module | U13: Poly Silicon Solar Module | V13: Poly Silicon Solar Module | W13: Poly Silicon Solar Module | X13: Poly Silicon Solar Module | Y13: Poly Silicon Solar Module | Z13: Poly Silicon Solar Module | AA13: Poly Silicon Solar Module | AB13: Poly Silicon Solar Module | AC13: Poly Silicon Solar Module | AD13: Poly Silicon Solar Module | AE13: Poly Module in China | AF13: Poly Module in China | AG13: Poly Module in China | AH13: Poly Module in China | AI13: Poly Module in China | AJ13: Poly Module in China | AK13: Poly Module in China | AL13: Poly Module in China | AM13: Poly Module in China | AN13: Poly Module in China | AO13: Poly Module in China | AP13: Poly Module in China | AQ13: Poly Module in China | AR13: Poly Module in China | AS13: Poly Module in China | AT13: Poly Module in China | AU13: Poly Module in China | AV13: Poly Module in China | AW13: Poly Module in China | AX13: Poly Module in China | AY13: Poly Module in China | AZ13: Poly Module in China | BA13: Poly Module in China | BB13: Poly Module in China | BC13: Poly Module in China | BD13: Poly Module in China | BE13: Poly Module in China | BF13: Poly Module in China | BG13: Poly Module in China | BH13: Poly Module in China | BI13: Poly Module in China | BJ13: Poly Module in China | BK13: Poly Module in China | BL13: Poly Module in China | BM13: Poly Module in China | BN13: Poly Module in China | BO13: Poly Module in China | BP13: Poly Module in China | BQ13: Poly Module in China | BR13: Poly Module in China | BS13: Poly Module in China | BT13: Poly Module in China | BU13: Poly Module in China | BV13: Poly Module in China | BW13: Poly Module in China
K14: Column | L14: F | M14: F | N14: F | O14: F | P14: F | Q14: F | R14: F | S14: F | T14: F | U14: F | V14: F | W14: F | X14: F | Y14: F | Z14: F | AA14: F | AB14: F | AC14: F | AD14: F | AE14: F | AF14: F | AG14: F | AH14: F | AI14: F | AJ14: F | AK14: F | AL14: F | AM14: F | AN14: F | AO14: F | AP14: F | AQ14: F | AR14: F | AS14: F | AT14: F | AU14: F | AV14: F | AW14: F | AX14: F | AY14: F | AZ14: F | BA14: F | BB14: F | BC14: F | BD14: F | BE14: D | BF14: D | BG14: D | BH14: D | BI14: D | BJ14: D | BK14: D | BL14: D | BM14: D | BN14: D | BO14: D | BP14: D | BQ14: D | BR14: D | BS14: D | BT14: D | BU14: D | BV14: D | BW14: D
K15: Indirect Key | L15: ="'"&L$7&"'!"&L14&":"&L14 -> 'pvinsights 05 02 15'!F:F | M15: ="'"&M$7&"'!"&M14&":"&M14 -> 'pvinsights 29 05 15'!F:F | N15: 'pvinsights 15 06 15'!F:F | O15: 'pvinsights 29 05 15'!F:F | P15: 'pvinsights 13 11 15'!F:F | Q15: 'pvinsights 31 07 16'!F:F | R15: ="'"&R$7&"'!"&R14&":"&R14 -> 'pvinsights 02 10 16'!F:F | S15: 'pvinsights 08 01 17'!F:F | T15: ="'"&T$7&"'!"&T14&":"&T14 -> 'pvinsights 26 02 17'!F:F | U15: ="'"&U$7&"'!"&U14&":"&U14 -> 'pvinsights 06 04 17'!F:F | V15: 'pvinsights 01 06 17'!F:F | W15: 'pvinsights 26 08 17'!F:F | X15: 'pvinsights 16 09 17'!F:F | Y15: 'pvinsights 30 10 17'!F:F | Z15: 'pvinsights 20 11 17'!F:F | AA15: 'pvinsights 01 02 18'!F:F | AB15: ="'"&AB$7&"'!"&AB14&":"&AB14 -> 'pvinsights 09 04 18'!F:F | AC15: 'pvinsights 05 06 18'!F:F | AD15: ="'"&AD$7&"'!"&AD14&":"&AD14 -> 'pvinsights 09 07 18'!F:F | AE15: ="'"&AE$7&"'!"&AE14&":"&AE14 -> 'pvinsights 31 08 18'!F:F | AF15: 'pvinsights 21 09 18'!F:F | AG15: ="'"&AG$7&"'!"&AG14&":"&AG14 -> 'pvinsights 31 10 18'!F:F | AH15: 'pvinsights 02 12 18'!F:F | AI15: ="'"&AI$7&"'!"&AI14&":"&AI14 -> 'pvinsights 02 01 19'!F:F | AJ15: 'pvinsights 29 01 19'!F:F | AK15: ="'"&AK$7&"'!"&AK14&":"&AK14 -> 'pvinsights 05 03 19'!F:F | AL15: 'pvinsights 07 05 19'!F:F | AM15: ="'"&AM$7&"'!"&AM14&":"&AM14 -> 'pvinsights 19 05 19'!F:F | AN15: 'pvinsights 27 06 19'!F:F | AO15: ="'"&AO$7&"'!"&AO14&":"&AO14 -> 'pvinsights 12 08 19'!F:F | AP15: 'pvinsights 07 09 19'!F:F | AQ15: ="'"&AQ$7&"'!"&AQ14&":"&AQ14 -> 'pvinsights 24 11 19'!F:F | AR15: ="'"&AR$7&"'!"&AR14&":"&AR14 -> 'pvinsights 13 12 19'!F:F | AS15: 'pvinsights 22 12 19'!F:F | AT15: ="'"&AT$7&"'!"&AT14&":"&AT14 -> 'pvinsights 08 02 20'!F:F | AU15: 'pvinsights 25 04 20'!F:F | AV15: ="'"&AV$7&"'!"&AV14&":"&AV14 -> 'pvinsights 25 05 20'!F:F | AW15: 'pvinsights 26 06 20'!F:F | AX15: ="'"&AX$7&"'!"&AX14&":"&AX14 -> 'pvinsights 28 07 20'!F:F | AY15: 'pvinsights 16 08 20'!F:F | AZ15: ="'"&AZ$7&"'!"&AZ14&":"&AZ14 -> 'pvinsights 19 09 20'!F:F | BA15: ="'"&BA$7&"'!"&BA14&":"&BA14 -> 'pvinsights 06 10 20'!F:F | BB15: 'pvinsights 30 11 20'!F:F | BC15: ="'"&BC$7&"'!"&BC14&":"&BC14 -> 'pvinsights 11 01 21'!F:F | BD15: 'pvinsights 22 01 21'!F:F | BE15: ="'"&BE$7&"'!"&BE14&":"&BE14 -> 'pvinsights 21 02 21'!D:D | BF15: 'pvinsights 21 03 21'!D:D | BG15: ="'"&BG$7&"'!"&BG14&":"&BG14 -> 'pvinsights 04 05 21'!D:D | BH15: 'pvinsights 28 06 21'!D:D | BI15: ="'"&BI$7&"'!"&BI14&":"&BI14 -> 'pvinsights 12 07 21'!D:D | BJ15: ="'"&BJ$7&"'!"&BJ14&":"&BJ14 -> 'pvinsights 18 07 21'!D:D | BK15: 'pvinsights 09 08 21'!D:D | BL15: ="'"&BL$7&"'!"&BL14&":"&BL14 -> 'pvinsights 24 09 21'!D:D | BM15: 'pvinsights 05 11 21'!D:D | BN15: ="'"&BN$7&"'!"&BN14&":"&BN14 -> 'pvinsights 12 12 21'!D:D | BO15: 'pvinsights 18 01 22'!D:D | BP15: ="'"&BP$7&"'!"&BP14&":"&BP14 -> 'pvinsights 23 02 22'!D:D | BQ15: 'pvinsights 13 03 22'!D:D | BR15: ="'"&BR$7&"'!"&BR14&":"&BR14 -> 'pvinsights 13 04 22'!D:D | BS15: 'pvinsights 08 05 22'!D:D | BT15: ="'"&BT$7&"'!"&BT14&":"&BT14 -> 'pvinsights 06 06 22'!D:D | BU15: 'pvinsights 26 06 22'!D:D | BV15: ="'"&BV$7&"'!"&BV14&":"&BV14 -> 'pvinsights 24 08 22'!D:D | BW15: 'pvinsights 17 09 22'!D:D
C16: Polysilicon Column | D16: USD/kg | G16: =MATCH(D11,7:7,0) -> 18 | H16: =G16 -> 18 | K16: Row | L16: =MATCH(L13,INDIRECT(L15),0) -> 40 | M16: =MATCH(M13,INDIRECT(M15),0) -> 40 | N16: 40 | O16: 40 | P16: 40 | Q16: 41 | R16: =MATCH(R13,INDIRECT(R15),0) -> 41 | S16: 41 | T16: =MATCH(T13,INDIRECT(T15),0) -> 42 | U16: =MATCH(U13,INDIRECT(U15),0) -> 42 | V16: 42 | W16: 47 | X16: 47 | Y16: 47 | Z16: 47 | AA16: 48 | AB16: =MATCH(AB13,INDIRECT(AB15),0) -> 48 | AC16: 44 | AD16: =MATCH(AD13,INDIRECT(AD15),0) -> 44 | AE16: =MATCH(AE13,INDIRECT(AE15),0) -> 45 | AF16: 43 | AG16: 43 | AH16: 43 | AI16: 43 | AJ16: 43 | AK16: =MATCH(AK13,INDIRECT(AK15),0) -> 43 | AL16: 41 | AM16: =MATCH(AM13,INDIRECT(AM15),0) -> 41 | AN16: 40 | AO16: =MATCH(AO13,INDIRECT(AO15),0) -> 40 | AP16: 40 | AQ16: =MATCH(AQ13,INDIRECT(AQ15),0) -> 40 | AR16: =MATCH(AR13,INDIRECT(AR15),0) -> 40 | AS16: 40 | AT16: =MATCH(AT13,INDIRECT(AT15),0) -> 42 | AU16: 43 | AV16: =MATCH(AV13,INDIRECT(AV15),0) -> 43 | AW16: 43 | AX16: =MATCH(AX13,INDIRECT(AX15),0) -> 43 | AY16: 43 | AZ16: =MATCH(AZ13,INDIRECT(AZ15),0) -> 43 | BA16: =MATCH(BA13,INDIRECT(BA15),0) -> 43 | BB16: 43 | BC16: =MATCH(BC13,INDIRECT(BC15),0) -> 46 | BD16: 46 | BE16: =MATCH(BE13,INDIRECT(BE15),0) -> 46 | BF16: 46 | BG16: =MATCH(BG13,INDIRECT(BG15),0) -> 46 | BH16: 46 | BI16: =MATCH(BI13,INDIRECT(BI15),0) -> 46 | BJ16: =MATCH(BJ13,INDIRECT(BJ15),0) -> 46 | BK16: 46 | BL16: =MATCH(BL13,INDIRECT(BL15),0) -> 45 | BM16: 45 | BN16: =MATCH(BN13,INDIRECT(BN15),0) -> 43 | BO16: 43 | BP16: =MATCH(BP13,INDIRECT(BP15),0) -> 43 | BQ16: 43 | BR16: =MATCH(BR13,INDIRECT(BR15),0) -> 43 | BS16: 43 | BT16: =MATCH(BT13,INDIRECT(BT15),0) -> 43 | BU16: 43 | BV16: =MATCH(BV13,INDIRECT(BV15),0) -> 45 | BW16: 45
C17: Conversion | D17: kg/lb | E17: 2.679209 | F17: =1/E17 -> 0.3732444912 | G17: USD/kg | H17: USD/lb | K17: Price Col | L17: I | M17: I | N17: I | O17: I | P17: I | Q17: I | R17: I | S17: I | T17: I | U17: I | V17: I | W17: I | X17: I | Y17: I | Z17: I | AA17: I | AB17: I | AC17: I | AD17: I | AE17: I | AF17: I | AG17: I | AH17: I | AI17: I | AJ17: I | AK17: I | AL17: I | AM17: I | AN17: I | AO17: I | AP17: I | AQ17: I | AR17: I | AS17: I | AT17: I | AU17: I | AV17: I | AW17: I | AX17: I | AY17: I | AZ17: I | BA17: I | BB17: I | BC17: I | BD17: I | BE17: G | BF17: G | BG17: G | BH17: G | BI17: G | BJ17: G | BK17: G | BL17: G | BM17: G | BN17: G | BO17: G | BP17: G | BQ17: G | BR17: G | BS17: G | BT17: G | BU17: G | BV17: G | BW17: G
C18: Price in USD/lb | G18: =INDEX(11:11,G16) -> 12.65 | H18: =G18/E17 -> 4.721542814 | K18: Indirect Key for Index | L18: ="'"&L$7&"'!"&L17&":"&L17 -> 'pvinsights 05 02 15'!I:I | M18: ="'"&M$7&"'!"&M17&":"&M17 -> 'pvinsights 29 05 15'!I:I | N18: 'pvinsights 15 06 15'!I:I | O18: 'pvinsights 29 05 15'!I:I | P18: 'pvinsights 13 11 15'!I:I | Q18: 'pvinsights 31 07 16'!I:I | R18: ="'"&R$7&"'!"&R17&":"&R17 -> 'pvinsights 02 10 16'!I:I | S18: 'pvinsights 08 01 17'!I:I | T18: ="'"&T$7&"'!"&T17&":"&T17 -> 'pvinsights 26 02 17'!I:I | U18: 'pvinsights 06 04 17'!I:I | V18: ="'"&V$7&"'!"&V17&":"&V17 -> 'pvinsights 01 06 17'!I:I | W18: 'pvinsights 26 08 17'!I:I | X18: ="'"&X$7&"'!"&X17&":"&X17 -> 'pvinsights 16 09 17'!I:I | Y18: 'pvinsights 30 10 17'!I:I | Z18: ="'"&Z$7&"'!"&Z17&":"&Z17 -> 'pvinsights 20 11 17'!I:I | AA18: 'pvinsights 01 02 18'!I:I | AB18: ="'"&AB$7&"'!"&AB17&":"&AB17 -> 'pvinsights 09 04 18'!I:I | AC18: 'pvinsights 05 06 18'!I:I | AD18: ="'"&AD$7&"'!"&AD17&":"&AD17 -> 'pvinsights 09 07 18'!I:I | AE18: ="'"&AE$7&"'!"&AE17&":"&AE17 -> 'pvinsights 31 08 18'!I:I | AF18: 'pvinsights 21 09 18'!I:I | AG18: ="'"&AG$7&"'!"&AG17&":"&AG17 -> 'pvinsights 31 10 18'!I:I | AH18: 'pvinsights 02 12 18'!I:I | AI18: ="'"&AI$7&"'!"&AI17&":"&AI17 -> 'pvinsights 02 01 19'!I:I | AJ18: 'pvinsights 29 01 19'!I:I | AK18: ="'"&AK$7&"'!"&AK17&":"&AK17 -> 'pvinsights 05 03 19'!I:I | AL18: 'pvinsights 07 05 19'!I:I | AM18: ="'"&AM$7&"'!"&AM17&":"&AM17 -> 'pvinsights 19 05 19'!I:I | AN18: 'pvinsights 27 06 19'!I:I | AO18: ="'"&AO$7&"'!"&AO17&":"&AO17 -> 'pvinsights 12 08 19'!I:I | AP18: 'pvinsights 07 09 19'!I:I | AQ18: ="'"&AQ$7&"'!"&AQ17&":"&AQ17 -> 'pvinsights 24 11 19'!I:I | AR18: ="'"&AR$7&"'!"&AR17&":"&AR17 -> 'pvinsights 13 12 19'!I:I | AS18: 'pvinsights 22 12 19'!I:I | AT18: ="'"&AT$7&"'!"&AT17&":"&AT17 -> 'pvinsights 08 02 20'!I:I | AU18: 'pvinsights 25 04 20'!I:I | AV18: ="'"&AV$7&"'!"&AV17&":"&AV17 -> 'pvinsights 25 05 20'!I:I | AW18: 'pvinsights 26 06 20'!I:I | AX18: ="'"&AX$7&"'!"&AX17&":"&AX17 -> 'pvinsights 28 07 20'!I:I | AY18: 'pvinsights 16 08 20'!I:I | AZ18: ="'"&AZ$7&"'!"&AZ17&":"&AZ17 -> 'pvinsights 19 09 20'!I:I | BA18: ="'"&BA$7&"'!"&BA17&":"&BA17 -> 'pvinsights 06 10 20'!I:I | BB18: 'pvinsights 30 11 20'!I:I | BC18: ="'"&BC$7&"'!"&BC17&":"&BC17 -> 'pvinsights 11 01 21'!I:I | BD18: 'pvinsights 22 01 21'!I:I | BE18: ="'"&BE$7&"'!"&BE17&":"&BE17 -> 'pvinsights 21 02 21'!G:G | BF18: 'pvinsights 21 03 21'!G:G | BG18: ="'"&BG$7&"'!"&BG17&":"&BG17 -> 'pvinsights 04 05 21'!G:G | BH18: 'pvinsights 28 06 21'!G:G | BI18: ="'"&BI$7&"'!"&BI17&":"&BI17 -> 'pvinsights 12 07 21'!G:G | BJ18: ="'"&BJ$7&"'!"&BJ17&":"&BJ17 -> 'pvinsights 18 07 21'!G:G | BK18: 'pvinsights 09 08 21'!G:G | BL18: ="'"&BL$7&"'!"&BL17&":"&BL17 -> 'pvinsights 24 09 21'!G:G | BM18: 'pvinsights 05 11 21'!G:G | BN18: ="'"&BN$7&"'!"&BN17&":"&BN17 -> 'pvinsights 12 12 21'!G:G | BO18: 'pvinsights 18 01 22'!G:G | BP18: ="'"&BP$7&"'!"&BP17&":"&BP17 -> 'pvinsights 23 02 22'!G:G | BQ18: 'pvinsights 13 03 22'!G:G | BR18: ="'"&BR$7&"'!"&BR17&":"&BR17 -> 'pvinsights 13 04 22'!G:G | BS18: 'pvinsights 08 05 22'!G:G | BT18: ="'"&BT$7&"'!"&BT17&":"&BT17 -> 'pvinsights 06 06 22'!G:G | BU18: 'pvinsights 26 06 22'!G:G | BV18: ="'"&BV$7&"'!"&BV17&":"&BV17 -> 'pvinsights 24 08 22'!G:G | BW18: 'pvinsights 17 09 22'!G:G
K20: Polysilicon Average | L20: =INDEX(INDIRECT(L18),L16) -> 0.607 | M20: 0.555 | N20: 0.55 | O20: 0.555 | P20: 0.561 | Q20: 0.48 | R20: =INDEX(INDIRECT(R18),R16) -> 0.402 | S20: 0.358 | T20: 0.35 | U20: 0.341 | V20: 0.333 | W20: 0.321 | X20: =INDEX(INDIRECT(X18),X16) -> 0.322 | Y20: 0.318 | Z20: =INDEX(INDIRECT(Z18),Z16) -> 0.315 | AA20: =INDEX(INDIRECT(AA18),AA16) -> 0.31 | AB20: 0.302 | AC20: 0.292 | AD20: 0.266 | AE20: 0.239 | AF20: 0.234 | AG20: =INDEX(INDIRECT(AG18),AG16) -> 0.212 | AH20: 0.204 | AI20: =INDEX(INDIRECT(AI18),AI16) -> 0.208 | AJ20: 0.207 | AK20: =INDEX(INDIRECT(AK18),AK16) -> 0.207 | AL20: 0.206 | AM20: =INDEX(INDIRECT(AM18),AM16) -> 0.204 | AN20: 0.212 | AO20: =INDEX(INDIRECT(AO18),AO16) -> 0.204 | AP20: 0.2 | AQ20: =INDEX(INDIRECT(AQ18),AQ16) -> 0.194 | AR20: =INDEX(INDIRECT(AR18),AR16) -> 0.192 | AS20: 0.192 | AT20: =INDEX(INDIRECT(AT18),AT16) -> 0.191 | AU20: 0.174 | AV20: =INDEX(INDIRECT(AV18),AV16) -> 0.168 | AW20: 0.161 | AX20: =INDEX(INDIRECT(AX18),AX16) -> 0.16 | AY20: 0.167 | AZ20: =INDEX(INDIRECT(AZ18),AZ16) -> 0.171 | BA20: =INDEX(INDIRECT(BA18),BA16) -> 0.17 | BB20: 0.173 | BC20: =INDEX(INDIRECT(BC18),BC16) -> 0.168 | BD20: 0.167 | BE20: =INDEX(INDIRECT(BE18),BE16) -> 0.177 | BF20: 0.178 | BG20: =INDEX(INDIRECT(BG18),BG16) -> 0.181 | BH20: 0.198 | BI20: =INDEX(INDIRECT(BI18),BI16) -> 0.196 | BJ20: =INDEX(INDIRECT(BJ18),BJ16) -> 0.195 | BK20: 0.193 | BL20: =INDEX(INDIRECT(BL18),BL16) -> 0.193 | BM20: 0.217 | BN20: =INDEX(INDIRECT(BN18),BN16) -> 0.206 | BO20: 0.201 | BP20: =INDEX(INDIRECT(BP18),BP16) -> 0.203 | BQ20: 0.203 | BR20: =INDEX(INDIRECT(BR18),BR16) -> 0.201 | BS20: 0.2 | BT20: =INDEX(INDIRECT(BT18),BT16) -> 0.209 | BU20: 0.208 | BV20: =INDEX(INDIRECT(BV18),BV16) -> 0.217 | BW20: 0.212
C21: Revise Macro:
C22: 1: Count colums | E22: 1 | F22: kg | G22: 100 | L22: ThinFilm Solar Module | M22: ThinFilm Solar Module | N22: ThinFilm Solar Module | O22: ThinFilm Solar Module | P22: ThinFilm Solar Module | Q22: ThinFilm Solar Module | R22: ThinFilm Solar Module | S22: ThinFilm Solar Module | T22: ThinFilm Solar Module | U22: ThinFilm Solar Module | V22: ThinFilm Solar Module | W22: ThinFilm Solar Module | X22: ThinFilm Solar Module | Y22: ThinFilm Solar Module | Z22: ThinFilm Solar Module | AA22: ThinFilm Solar Module | AB22: ThinFilm Solar Module | AC22: ThinFilm Solar Module | AD22: ThinFilm Solar Module | AE22: ThinFilm Solar Module | AF22: ThinFilm Solar Module | AG22: ThinFilm Solar Module | AH22: ThinFilm Solar Module | AI22: ThinFilm Solar Module | AJ22: ThinFilm Solar Module | AK22: ThinFilm Solar Module | AL22: ThinFilm Solar Module | AM22: ThinFilm Solar Module | AN22: ThinFilm Solar Module | AO22: ThinFilm Solar Module | AP22: ThinFilm Solar Module | AQ22: ThinFilm Solar Module | AR22: ThinFilm Solar Module | AS22: ThinFilm Solar Module | AT22: ThinFilm Solar Module | AU22: ThinFilm Solar Module | AV22: ThinFilm Solar Module | AW22: ThinFilm Solar Module | AX22: ThinFilm Solar Module | AY22: ThinFilm Solar Module | AZ22: ThinFilm Solar Module | BA22: ThinFilm Solar Module | BB22: ThinFilm Solar Module | BC22: ThinFilm Solar Module | BD22: ThinFilm Solar Module | BE22: ThinFilm Solar Module | BF22: ThinFilm Solar Module | BG22: ThinFilm Solar Module | BH22: ThinFilm Solar Module | BI22: ThinFilm Solar Module | BJ22: ThinFilm Solar Module | BK22: ThinFilm Solar Module | BL22: ThinFilm Solar Module | BM22: ThinFilm Solar Module | BN22: ThinFilm Solar Module | BO22: ThinFilm Solar Module | BP22: ThinFilm Solar Module | BQ22: ThinFilm Solar Module | BR22: ThinFilm Solar Module | BS22: ThinFilm Solar Module | BT22: ThinFilm Solar Module | BU22: ThinFilm Solar Module | BV22: ThinFilm Solar Module | BW22: ThinFilm Solar Module
C23: 2: Copy the last column | E23: =E17 -> 2.679209 | F23: lb | G23: =G22/E23 -> 37.32444912 | K23: Match | L23: =MATCH(L22,INDIRECT(L15),0) -> 41 | M23: 41 | N23: 41 | O23: 41 | P23: 41 | Q23: 42 | R23: =MATCH(R22,INDIRECT(R15),0) -> 42 | S23: 42 | T23: =MATCH(T22,INDIRECT(T15),0) -> 43 | U23: =MATCH(U22,INDIRECT(U15),0) -> 43 | V23: 43 | W23: 48 | X23: 48 | Y23: 50 | Z23: 50 | AA23: 51 | AB23: =MATCH(AB22,INDIRECT(AB15),0) -> 51 | AC23: 47 | AD23: =MATCH(AD22,INDIRECT(AD15),0) -> 47 | AE23: =MATCH(AE22,INDIRECT(AE15),0) -> 49 | AF23: 47 | AG23: =MATCH(AG22,INDIRECT(AG15),0) -> 47 | AH23: 47 | AI23: =MATCH(AI22,INDIRECT(AI15),0) -> 47 | AJ23: 47 | AK23: =MATCH(AK22,INDIRECT(AK15),0) -> 47 | AL23: 45 | AM23: =MATCH(AM22,INDIRECT(AM15),0) -> 45 | AN23: 44 | AO23: =MATCH(AO22,INDIRECT(AO15),0) -> 44 | AP23: 44 | AQ23: =MATCH(AQ22,INDIRECT(AQ15),0) -> 44 | AR23: =MATCH(AR22,INDIRECT(AR15),0) -> 44 | AS23: 44 | AT23: =MATCH(AT22,INDIRECT(AT15),0) -> 46 | AU23: 47 | AV23: =MATCH(AV22,INDIRECT(AV15),0) -> 47 | AW23: 47 | AX23: =MATCH(AX22,INDIRECT(AX15),0) -> 47 | AY23: 47 | AZ23: =MATCH(AZ22,INDIRECT(AZ15),0) -> 47 | BA23: =MATCH(BA22,INDIRECT(BA15),0) -> 47 | BB23: =MATCH(BB22,INDIRECT(BB15),0) -> 47 | BC23: =MATCH(BC22,INDIRECT(BC15),0) -> 54 | BD23: 54 | BE23: =MATCH(BE22,INDIRECT(BE15),0) -> 54 | BF23: 54 | BG23: =MATCH(BG22,INDIRECT(BG15),0) -> 54 | BH23: 54 | BI23: =MATCH(BI22,INDIRECT(BI15),0) -> 54 | BJ23: =MATCH(BJ22,INDIRECT(BJ15),0) -> 54 | BK23: 54 | BL23: =MATCH(BL22,INDIRECT(BL15),0) -> 53 | BM23: 53 | BN23: =MATCH(BN22,INDIRECT(BN15),0) -> 51 | BO23: 51 | BP23: =MATCH(BP22,INDIRECT(BP15),0) -> 51 | BQ23: 51 | BR23: =MATCH(BR22,INDIRECT(BR15),0) -> 51 | BS23: 51 | BT23: =MATCH(BT22,INDIRECT(BT15),0) -> 51 | BU23: 51 | BV23: =MATCH(BV22,INDIRECT(BV15),0) -> 53 | BW23: 53
C24: 3: Put in the last sheet | K24: Thin Film Average | L24: =INDEX(INDIRECT(L18),L23) -> 0.634 | M24: 0.604 | N24: 0.596 | O24: 0.604 | P24: 0.59 | Q24: 0.506 | R24: =INDEX(INDIRECT(R18),R23) -> 0.42 | S24: 0.374 | T24: =INDEX(INDIRECT(T18),T23) -> 0.363 | U24: =INDEX(INDIRECT(U18),U23) -> 0.353 | V24: 0.346 | W24: 0.34 | X24: 0.341 | Y24: 0.339 | Z24: 0.336 | AA24: 0.331 | AB24: =INDEX(INDIRECT(AB18),AB23) -> 0.322 | AC24: 0.314 | AD24: 0.296 | AE24: 0.274 | AF24: 0.265 | AG24: 0.247 | AH24: 0.243 | AI24: =INDEX(INDIRECT(AI18),AI23) -> 0.246 | AJ24: 0.245 | AK24: =INDEX(INDIRECT(AK18),AK23) -> 0.244 | AL24: 0.246 | AM24: =INDEX(INDIRECT(AM18),AM23) -> 0.248 | AN24: 0.248 | AO24: =INDEX(INDIRECT(AO18),AO23) -> 0.245 | AP24: 0.243 | AQ24: =INDEX(INDIRECT(AQ18),AQ23) -> 0.237 | AR24: =INDEX(INDIRECT(AR18),AR23) -> 0.236 | AS24: 0.236 | AT24: =INDEX(INDIRECT(AT18),AT23) -> 0.231 | AU24: 0.218 | AV24: =INDEX(INDIRECT(AV18),AV23) -> 0.213 | AW24: 0.208 | AX24: =INDEX(INDIRECT(AX18),AX23) -> 0.207 | AY24: 0.209 | AZ24: =INDEX(INDIRECT(AZ18),AZ23) -> 0.212 | BA24: =INDEX(INDIRECT(BA18),BA23) -> 0.211 | BB24: 0.213 | BC24: =INDEX(INDIRECT(BC18),BC23) -> 0.211 | BD24: 0.209 | BE24: =INDEX(INDIRECT(BE18),BE23) -> 0.214 | BF24: 0.216 | BG24: =INDEX(INDIRECT(BG18),BG23) -> 0.217 | BH24: 0.23 | BI24: =INDEX(INDIRECT(BI18),BI23) -> 0.228 | BJ24: =INDEX(INDIRECT(BJ18),BJ23) -> 0.227 | BK24: 0.225 | BL24: =INDEX(INDIRECT(BL18),BL23) -> 0.225 | BM24: 0.244 | BN24: =INDEX(INDIRECT(BN18),BN23) -> 0.234 | BO24: 0.228 | BP24: =INDEX(INDIRECT(BP18),BP23) -> 0.228 | BQ24: 0.228 | BR24: =INDEX(INDIRECT(BR18),BR23) -> 0.227 | BS24: 0.226 | BT24: =INDEX(INDIRECT(BT18),BT23) -> 0.232 | BU24: 0.231 | BV24: =INDEX(INDIRECT(BV18),BV23) -> 0.239 | BW24: 0.236
C25: 4: Copy and Paste Names
C27: Last Sheet Num | D27: =D7 -> 79
C28: Last Column Before Copy | D28: =COUNTA(6:6) -> 64
C29: Column Name
C30: Column Number Base | D30: =MATCH(D8,7:7,0)-1 -> 73

Sheet Data for Graphs
B1: Text Date | D1: Silicon USD/kg | E1: Polysilcon - Cost/kW | F1: Thin Film - Cost/kW | K1: =E1 -> Polysilcon - Cost/kW | L1: =F1 -> Thin Film - Cost/kW
B2: =TRANSPOSE('Database Sheet'!L6:CCC6) -> 02 15 | C2: =IF(ISNUMBER(B2),NA(),DATE(RIGHT(B2,2)+2000,LEFT(B2,2),1)) -> 2015-02-01 | D2: =TRANSPOSE('Database Sheet'!L11:CCC11) -> 19.08 | E2: =TRANSPOSE('Database Sheet'!L20:CCC20)*1000 -> 607 | F2: =TRANSPOSE('Database Sheet'!L24:CCC24)*1000 -> 634 | G2: =IFERROR(F2/E2-1,FALSE) -> 0.04448105437 | H2: =IF(ISNUMBER(C2),YEAR(C2)) -> 2015 | J2: =C2 -> 2015-02-01 | K2: =E2 -> 607 | L2: =F2 -> 634 | O2: ="Polysilicon and Thin Film Panel Prices: "&CHAR(13) -> Polysilicon and Thin Film Panel Prices: | P2: Recent Date | Q2: =MAX_NA(C:C) -> 2022-09-01 | R2: Polysilicon Panel Price in USD/kWp | S2: =INDEX(E:E,MATCH(Q2,C:C,0)) -> 212
B3: 05 15 | C3: =IF(ISNUMBER(B3),NA(),DATE(RIGHT(B3,2)+2000,LEFT(B3,2),1)) -> 2015-05-01 | D3: 15.79 | E3: 555 | F3: 604 | G3: =IFERROR(F3/E3-1,FALSE) -> 0.08828828829 | H3: =IF(ISNUMBER(C3),YEAR(C3)) -> 2015 | J3: =C3 -> 2015-05-01 | K3: =E3 -> 555 | L3: =F3 -> 604
B4: 06 15 | C4: 2015-06-01 | D4: 15.58 | E4: 550 | F4: 596 | G4: 0.08363636364 | H4: 2015 | J4: 2015-06-01 | K4: 550 | L4: 596
B5: 05 15 | C5: 2015-05-01 | D5: 15.79 | E5: 555 | F5: 604 | G5: 0.08828828829 | H5: 2015 | J5: 2015-05-01 | K5: 555 | L5: 604 | N5: =Q2 -> 2022-09-01 | O5: Polysilicon | P5: =INDEX(E:E,S2) -> 0 | Q5: Thin Film | R5: =INDEX(F:F,S2) -> 0 | S5: =INDEX(D:D,MATCH(N5,C:C,0)) -> 37.07
B6: 11 15 | C6: 2015-11-01 | D6: 14.1 | E6: 561 | F6: 590 | G6: 0.05169340463 | H6: 2015 | J6: 2015-11-01 | K6: 561 | L6: 590
B7: 07 16 | C7: 2016-07-01 | D7: 15.9 | E7: 480 | F7: 506 | G7: 0.05416666667 | H7: 2016 | J7: 2016-07-01 | K7: 480 | L7: 506
B8: 10 16 | C8: 2016-10-01 | D8: 12.65 | E8: 402 | F8: 420 | G8: 0.0447761194 | H8: 2016 | J8: 2016-10-01 | K8: 402 | L8: 420 | O8: ="Polysilicon Commodity and Panel Prices"&CHAR(13) -> Polysilicon Commodity and Panel Prices | P8: =P2 -> Recent Date | Q8: =Q2 -> 2022-09-01 | R8: =R2 -> Polysilicon Panel Price in USD/kWp | S8: =S2 -> 212 | T8: Polysilicon Commodity | U8: =S5 -> 37.07
B9: 01 17 | C9: 2017-01-01 | D9: 15.37 | E9: 358 | F9: 374 | G9: 0.04469273743 | H9: 2017 | J9: 2017-01-01 | K9: 358 | L9: 374
B10: 02 17 | C10: 2017-02-01 | D10: 16.22 | E10: 350 | F10: 363 | G10: 0.03714285714 | H10: 2017 | J10: 2017-02-01 | K10: 350 | L10: 363
B11: 04 17 | C11: 2017-04-01 | D11: 14.21 | E11: 341 | F11: 353 | G11: 0.03519061584 | H11: 2017 | J11: 2017-04-01 | K11: 341 | L11: 353
B12: 06 17 | C12: 2017-06-01 | D12: 13.85 | E12: 333 | F12: 346 | G12: 0.03903903904 | H12: 2017 | J12: 2017-06-01 | K12: 333 | L12: 346
B13: 08 17 | C13: 2017-08-01 | D13: 15.55 | E13: 321 | F13: 340 | G13: 0.05919003115 | H13: 2017 | J13: 2017-08-01 | K13: 321 | L13: 340
B14: 09 17 | C14: 2017-09-01 | D14: 16.71 | E14: 322 | F14: 341 | G14: 0.05900621118 | H14: 2017 | J14: 2017-09-01 | K14: 322 | L14: 341
B15: 10 17 | C15: 2017-10-01 | D15: 16.68 | E15: 318 | F15: 339 | G15: 0.06603773585 | H15: 2017 | J15: 2017-10-01 | K15: 318 | L15: 339
B16: 11 17 | C16: 2017-11-01 | D16: 16.66 | E16: 315 | F16: 336 | G16: 0.06666666667 | H16: 2017 | J16: 2017-11-01 | K16: 315 | L16: 336
B17: 02 18 | C17: 2018-02-01 | D17: 17.44 | E17: 310 | F17: 331 | G17: 0.06774193548 | H17: 2018 | J17: 2018-02-01 | K17: 310 | L17: 331
B18: 04 18 | C18: 2018-04-01 | D18: 15.41 | E18: 302 | F18: 322 | G18: 0.06622516556 | H18: 2018 | J18: 2018-04-01 | K18: 302 | L18: 322
B19: 06 18 | C19: 2018-06-01 | D19: 14.65 | E19: 292 | F19: 314 | G19: 0.07534246575 | H19: 2018 | J19: 2018-06-01 | K19: 292 | L19: 314
B20: 07 18 | C20: 2018-07-01 | D20: 11.16 | E20: 266 | F20: 296 | G20: 0.1127819549 | H20: 2018 | J20: 2018-07-01 | K20: 266 | L20: 296
B21: 08 18 | C21: 2018-08-01 | D21: 11.26 | E21: 239 | F21: 274 | G21: 0.1464435146 | H21: 2018 | J21: 2018-08-01 | K21: 239 | L21: 274
B22: 09 18 | C22: 2018-09-01 | D22: 10.68 | E22: 234 | F22: 265 | G22: 0.1324786325 | H22: 2018 | J22: 2018-09-01 | K22: 234 | L22: 265
B23: 10 18 | C23: 2018-10-01 | D23: 9.75 | E23: 212 | F23: 247 | G23: 0.1650943396 | H23: 2018 | J23: 2018-10-01 | K23: 212 | L23: 247
B24: 12 18 | C24: 2018-12-01 | D24: 9.53 | E24: 204 | F24: 243 | G24: 0.1911764706 | H24: =IF(ISNUMBER(C24),YEAR(C24)) -> 2018 | J24: 2018-12-01 | K24: 204 | L24: 243
B25: 01 19 | C25: 2019-01-01 | D25: 9.26 | E25: 208 | F25: 246 | G25: 0.1826923077 | H25: 2019 | J25: 2019-01-01 | K25: 208 | L25: 246
B26: 01 19 | C26: 2019-01-01 | D26: 8.9 | E26: 207 | F26: 245 | G26: 0.1835748792 | H26: 2019 | J26: 2019-01-01 | K26: 207 | L26: 245
B27: 03 19 | C27: 2019-03-01 | D27: 9.04 | E27: 207 | F27: 244 | G27: 0.1787439614 | H27: 2019 | J27: 2019-03-01 | K27: 207 | L27: 244
B28: 05 19 | C28: 2019-05-01 | D28: 8.42 | E28: 206 | F28: 246 | G28: 0.1941747573 | H28: 2019 | J28: 2019-05-01 | K28: 206 | L28: 246
B29: 05 19 | C29: 2019-05-01 | D29: 8.34 | E29: 204 | F29: 248 | G29: 0.2156862745 | H29: 2019 | J29: 2019-05-01 | K29: 204 | L29: 248
B30: 06 19 | C30: 2019-06-01 | D30: 8.14 | E30: 212 | F30: 248 | G30: 0.1698113208 | H30: 2019 | J30: 2019-06-01 | K30: 212 | L30: 248
B31: 08 19 | C31: 2019-08-01 | D31: 7.92 | E31: 204 | F31: 245 | G31: 0.2009803922 | H31: 2019 | J31: 2019-08-01 | K31: 204 | L31: 245
B32: 09 19 | C32: 2019-09-01 | D32: 7.66 | E32: 200 | F32: 243 | G32: 0.215 | H32: 2019 | J32: 2019-09-01 | K32: 200 | L32: 243
B33: 11 19 | C33: 2019-11-01 | D33: 7.5 | E33: 194 | F33: 237 | G33: 0.2216494845 | H33: 2019 | J33: 2019-11-01 | K33: 194 | L33: 237
B34: 12 19 | C34: 2019-12-01 | D34: 7.41 | E34: 192 | F34: 236 | G34: =IFERROR(F34/E34-1,FALSE) -> 0.2291666667 | H34: =IF(ISNUMBER(C34),YEAR(C34)) -> 2019 | J34: =C34 -> 2019-12-01 | K34: =E34 -> 192 | L34: =F34 -> 236
B35: 12 19 | C35: 2019-12-01 | D35: 7.28 | E35: 192 | F35: 236 | G35: 0.2291666667 | H35: 2019 | J35: 2019-12-01 | K35: 192 | L35: 236
B36: 02 20 | C36: 2020-02-01 | D36: 7.1 | E36: 191 | F36: 231 | G36: 0.2094240838 | H36: 2020 | J36: 2020-02-01 | K36: 191 | L36: 231
B37: 04 20 | C37: 2020-04-01 | D37: 6.43 | E37: 174 | F37: 218 | G37: 0.2528735632 | H37: 2020 | J37: 2020-04-01 | K37: 174 | L37: 218
B38: 05 20 | C38: 2020-05-01 | D38: 6.28 | E38: 168 | F38: 213 | G38: 0.2678571429 | H38: 2020 | J38: 2020-05-01 | K38: 168 | L38: 213
B39: 06 20 | C39: 2020-06-01 | D39: 6.19 | E39: 161 | F39: 208 | G39: 0.2919254658 | H39: 2020 | J39: 2020-06-01 | K39: 161 | L39: 208
B40: 07 20 | C40: 2020-07-01 | D40: 8.21 | E40: 160 | F40: 207 | G40: 0.29375 | H40: 2020 | J40: 2020-07-01 | K40: 160 | L40: 207
B41: 08 20 | C41: 2020-08-01 | D41: 10.68 | E41: 167 | F41: 209 | G41: 0.251497006 | H41: 2020 | J41: 2020-08-01 | K41: 167 | L41: 209
B42: 09 20 | C42: 2020-09-01 | D42: 10.84 | E42: 171 | F42: 212 | G42: =IFERROR(F42/E42-1,FALSE) -> 0.2397660819 | H42: =IF(ISNUMBER(C42),YEAR(C42)) -> 2020 | J42: =C42 -> 2020-09-01 | K42: =E42 -> 171 | L42: =F42 -> 212
B43: 10 20 | C43: 2020-10-01 | D43: 10.64 | E43: 170 | F43: 211 | G43: 0.2411764706 | H43: 2020 | J43: 2020-10-01 | K43: 170 | L43: 211
B44: 11 20 | C44: 2020-11-01 | D44: 9.95 | E44: 173 | F44: 213 | G44: 0.2312138728 | H44: 2020 | J44: 2020-11-01 | K44: 173 | L44: 213
B45: 01 21 | C45: 2021-01-01 | D45: 10.79 | E45: 168 | F45: 211 | G45: 0.255952381 | H45: 2021 | J45: 2021-01-01 | K45: 168 | L45: 211
B46: 01 21 | C46: 2021-01-01 | D46: 11.09 | E46: 167 | F46: 209 | G46: 0.251497006 | H46: 2021 | J46: 2021-01-01 | K46: 167 | L46: 209
B47: 02 21 | C47: 2021-02-01 | D47: 12.06 | E47: 177 | F47: 214 | G47: 0.209039548 | H47: 2021 | J47: 2021-02-01 | K47: 177 | L47: 214
B48: 03 21 | C48: 2021-03-01 | D48: 15.63 | E48: 178 | F48: 216 | G48: 0.2134831461 | H48: 2021 | J48: 2021-03-01 | K48: 178 | L48: 216
B49: 05 21 | C49: 2021-05-01 | D49: 20.02 | E49: 181 | F49: 217 | G49: 0.1988950276 | H49: 2021 | J49: 2021-05-01 | K49: 181 | L49: 217
B50: 06 21 | C50: 2021-06-01 | D50: 27.63 | E50: 198 | F50: 230 | G50: 0.1616161616 | H50: 2021 | J50: 2021-06-01 | K50: 198 | L50: 230
B51: 07 21 | C51: 2021-07-01 | D51: 27.35 | E51: 196 | F51: 228 | G51: 0.1632653061 | H51: 2021 | J51: 2021-07-01 | K51: 196 | L51: 228
B52: 07 21 | C52: 2021-07-01 | D52: 27.11 | E52: 195 | F52: 227 | G52: 0.1641025641 | H52: 2021 | J52: 2021-07-01 | K52: 195 | L52: 227
B53: 08 21 | C53: 2021-08-01 | D53: 26.95 | E53: 193 | F53: 225 | G53: 0.1658031088 | H53: 2021 | J53: 2021-08-01 | K53: 193 | L53: 225
B54: 09 21 | C54: 2021-09-01 | D54: 28.79 | E54: 193 | F54: 225 | G54: 0.1658031088 | H54: 2021 | J54: 2021-09-01 | K54: 193 | L54: 225
B55: 11 21 | C55: 2021-11-01 | D55: 35.81 | E55: 217 | F55: 244 | G55: 0.1244239631 | H55: 2021 | J55: 2021-11-01 | K55: 217 | L55: 244
B56: 12 21 | C56: 2021-12-01 | D56: 31.65 | E56: 206 | F56: 234 | G56: 0.1359223301 | H56: 2021 | J56: 2021-12-01 | K56: 206 | L56: 234
B57: 01 22 | C57: 2022-01-01 | D57: 30.56 | E57: 201 | F57: 228 | G57: 0.1343283582 | H57: 2022 | J57: 2022-01-01 | K57: 201 | L57: 228
B58: 02 22 | C58: 2022-02-01 | D58: 33.05 | E58: 203 | F58: 228 | G58: =IFERROR(F58/E58-1,FALSE) -> 0.1231527094 | H58: =IF(ISNUMBER(C58),YEAR(C58)) -> 2022 | J58: =C58 -> 2022-02-01 | K58: =E58 -> 203 | L58: =F58 -> 228
B59: 03 22 | C59: 2022-03-01 | D59: 33.07 | E59: 203 | F59: 228 | G59: 0.1231527094 | H59: 2022 | J59: 2022-03-01 | K59: 203 | L59: 228
B60: 04 22 | C60: 2022-04-01 | D60: 32.87 | E60: 201 | F60: 227 | G60: 0.1293532338 | H60: 2022 | J60: 2022-04-01 | K60: 201 | L60: 227
B61: 05 22 | C61: 2022-05-01 | D61: 32.12 | E61: 200 | F61: 226 | G61: 0.13 | H61: 2022 | J61: 2022-05-01 | K61: 200 | L61: 226
B62: 06 22 | C62: 2022-06-01 | D62: 32.28 | E62: 209 | F62: 232 | G62: 0.1100478469 | H62: 2022 | J62: 2022-06-01 | K62: 209 | L62: 232
B63: 06 22 | C63: 2022-06-01 | D63: 33.15 | E63: 208 | F63: 231 | G63: =IFERROR(F63/E63-1,FALSE) -> 0.1105769231 | H63: =IF(ISNUMBER(C63),YEAR(C63)) -> 2022 | J63: =C63 -> 2022-06-01 | K63: =E63 -> 208 | L63: =F63 -> 231
B64: 08 22 | C64: 2022-08-01 | D64: 38.13 | E64: 217 | F64: 239 | G64: 0.1013824885 | H64: 2022 | J64: 2022-08-01 | K64: 217 | L64: 239
B65: 09 22 | C65: 2022-09-01 | D65: 37.07 | E65: 212 | F65: 236 | G65: 0.1132075472 | H65: 2022 | J65: 2022-09-01 | K65: 212 | L65: 236
B66: 0 | D66: 0 | E66: 0 | F66: 0 | G66: FALSE | H66: FALSE | K66: 0 | L66: 0
B67: 0 | C67: =IF(ISNUMBER(B67),NA(),DATE(RIGHT(B67,2)+2000,LEFT(B67,2),1)) ->  | D67: 0 | E67: 0 | F67: 0 | G67: FALSE | H67: FALSE | K67: 0 | L67: 0
B68: 0 | D68: 0 | E68: 0 | F68: 0 | G68: FALSE | H68: FALSE | K68: 0 | L68: 0
B69: 0 | D69: 0 | E69: 0 | F69: 0 | G69: FALSE | H69: FALSE | K69: 0 | L69: 0
B70: 0 | D70: 0 | E70: 0 | F70: 0 | G70: FALSE | H70: FALSE | K70: 0 | L70: 0
B71: 0 | D71: 0 | E71: 0 | F71: 0 | G71: FALSE | H71: FALSE | K71: 0 | L71: 0
B72: 0 | D72: 0 | E72: 0 | F72: 0 | G72: FALSE | H72: FALSE | K72: 0 | L72: 0
B73: 0 | D73: 0 | E73: 0 | F73: 0 | G73: FALSE | H73: FALSE | K73: 0 | L73: 0
B74: 0 | D74: 0 | E74: 0 | F74: 0 | G74: FALSE | H74: FALSE | K74: 0 | L74: 0
B75: 0 | D75: 0 | E75: 0 | F75: 0 | G75: FALSE | H75: FALSE | K75: 0 | L75: 0
B76: 0 | D76: 0 | E76: 0 | F76: 0 | G76: FALSE | H76: FALSE | K76: 0 | L76: 0
B77: 0 | D77: 0 | E77: 0 | F77: 0 | G77: FALSE | H77: FALSE | K77: 0 | L77: 0
B78: 0 | D78: 0 | E78: 0 | F78: 0 | G78: FALSE | H78: FALSE | K78: 0 | L78: 0
B79: 0 | D79: 0 | E79: 0 | F79: 0 | G79: FALSE | H79: FALSE | K79: 0 | L79: 0

Sheet Polysilicon History
C3: Silicon Price (USD/kg) | U3: Price of Crystaline Panels
B4: 1999 | C4: 8 | W4: =V35 -> 2010-04-01 | X4: 1900
B5: 2000 | C5: 14 | W5: =V49 -> 2011-06-01 | X5: 1500
B6: 2001 | C6: 18 | W6: =V59 -> 2012-04-01 | X6: 1000
B7: 2002 | C7: 20 | W7: =V92 -> 2015-01-01 | X7: 607
B8: 2003 | C8: 26 | W8: Module | X8: Silicon
B9: 2004 | C9: 30 | V9: 1985-01-01 | W9: =P60 -> 6800
B10: 2005 | C10: 40 | V10: =EDATE(V9,12) -> 1986-01-01 | W10: =P61 -> 6200
B11: 2006 | C11: 94 | V11: =EDATE(V10,12) -> 1987-01-01 | W11: 5600
B12: 2007 | C12: 138 | V12: 1988-01-01 | W12: 5800
B13: 2008 | C13: 207 | V13: 1989-01-01 | W13: 6100
B14: 2009 | C14: 91 | V14: 1990-01-01 | W14: 5900
B15: 2010 | C15: 56 | V15: 1991-01-01 | W15: 5800
B16: 2011 | C16: 59 | V16: 1992-01-01 | W16: 5300
B17: 2012 | C17: 25 | V17: 1993-01-01 | W17: 5200
B18: 2013 | C18: 16 | V18: 1994-01-01 | W18: 5100
B19: 2014 | C19: 16 | V19: 1995-01-01 | W19: 4600
B20: 2015 | C20: =AVERAGEIF('Data for Graphs'!H:H,'Polysilicon History'!B20,'Data for Graphs'!D:D) -> 16.068 | V20: 1996-01-01 | W20: 4200
B21: 2016 | C21: =AVERAGEIF('Data for Graphs'!H:H,'Polysilicon History'!B21,'Data for Graphs'!D:D) -> 14.275 | V21: 1997-01-01 | W21: 4100
B22: 2017 | C22: =AVERAGEIF('Data for Graphs'!H:H,'Polysilicon History'!B22,'Data for Graphs'!D:D) -> 15.65625 | V22: 1998-01-01 | W22: 3500
B23: 2018 | C23: =AVERAGEIF('Data for Graphs'!H:H,'Polysilicon History'!B23,'Data for Graphs'!D:D) -> 12.485 | V23: 1999-01-01 | W23: 2800 | X23: =C4 -> 8
B24: 2019 | C24: =AVERAGEIF('Data for Graphs'!H:H,'Polysilicon History'!B24,'Data for Graphs'!D:D) -> 8.17 | V24: 2000-01-01 | W24: 2700 | X24: =C5 -> 14
B25: 2020 | C25: =AVERAGEIF('Data for Graphs'!H:H,'Polysilicon History'!B25,'Data for Graphs'!D:D) -> 8.48 | V25: 2001-01-01 | W25: 2800 | X25: 18
B26: 2021 | C26: =AVERAGEIF('Data for Graphs'!H:H,'Polysilicon History'!B26,'Data for Graphs'!D:D) -> 22.90666667 | V26: 2002-01-01 | W26: 2900 | X26: 20
B27: 2022 | C27: =AVERAGEIF('Data for Graphs'!H:H,'Polysilicon History'!B27,'Data for Graphs'!D:D) -> 33.58888889 | V27: 2003-01-01 | W27: 2800 | X27: 26
V28: 2004-01-01 | W28: 2900 | X28: 30
V29: 2005-01-01 | W29: 3000 | X29: 40
V30: 2006-01-01 | W30: 3300 | X30: 94
V31: 2007-01-01 | W31: 3400 | X31: 138
V32: 2008-01-01 | W32: 3200 | X32: 207
V33: 2009-01-01 | W33: 2800 | X33: 91
V34: 2010-01-01 | W34: 1800 | X34: 56
U35: =YEAR(V35) -> 2010 | V35: 2010-04-01 | W35: =interpolate_look_up(V35,$W$4:$W$7,$X$4:$X$7) -> 1900 | X35: =interpolate_look_up(U35,B:B,C:C) -> 56
U36: =YEAR(V36) -> 2010 | V36: =EDATE(V35,1) -> 2010-05-01 | W36: =interpolate_look_up(V36,$W$4:$W$7,$X$4:$X$7) -> 1868.63233 | X36: =interpolate_look_up(U36,B:B,C:C) -> 56
U37: 2010 | V37: =EDATE(V36,1) -> 2010-06-01 | W37: 1836.76301 | X37: =interpolate_look_up(U37,B:B,C:C) -> 56
U38: 2010 | V38: 2010-07-01 | W38: 1806.439339 | X38: =interpolate_look_up(U38,B:B,C:C) -> 56
U39: 2010 | V39: 2010-08-01 | W39: 1775.630714 | X39: =interpolate_look_up(U39,B:B,C:C) -> 56
U40: 2010 | V40: 2010-09-01 | W40: 1745.347526 | X40: =interpolate_look_up(U40,B:B,C:C) -> 56
U41: 2010 | V41: 2010-10-01 | W41: 1716.533061 | X41: =interpolate_look_up(U41,B:B,C:C) -> 56
U42: 2010 | V42: 2010-11-01 | W42: 1687.257777 | X42: =interpolate_look_up(U42,B:B,C:C) -> 56
U43: 2010 | V43: 2010-12-01 | W43: 1659.402332 | X43: =interpolate_look_up(U43,B:B,C:C) -> 56
U44: 2011 | V44: 2011-01-01 | W44: 1631.101407 | X44: =interpolate_look_up(U44,B:B,C:C) -> 59
U45: 2011 | V45: 2011-02-01 | W45: 1603.283151 | X45: =interpolate_look_up(U45,B:B,C:C) -> 59
U46: 2011 | V46: 2011-03-01 | W46: 1578.564999 | X46: =interpolate_look_up(U46,B:B,C:C) -> 59
U47: 2011 | V47: 2011-04-01 | W47: 1551.642745 | X47: =interpolate_look_up(U47,B:B,C:C) -> 59
U48: 2011 | V48: 2011-05-01 | W48: 1526.02621 | X48: =interpolate_look_up(U48,B:B,C:C) -> 59
U49: 2011 | V49: 2011-06-01 | W49: 1500 | X49: =interpolate_look_up(U49,B:B,C:C) -> 59
U50: 2011 | V50: 2011-07-01 | W50: 1441.354497 | X50: =interpolate_look_up(U50,B:B,C:C) -> 59
U51: 2011 | V51: 2011-08-01 | W51: 1383.161867 | X51: =interpolate_look_up(U51,B:B,C:C) -> 59
U52: 2011 | V52: 2011-09-01 | W52: 1327.318682 | X52: =interpolate_look_up(U52,B:B,C:C) -> 59
U53: 2011 | V53: 2011-10-01 | W53: 1275.424501 | X53: =interpolate_look_up(U53,B:B,C:C) -> 59
U54: 2011 | V54: 2011-11-01 | W54: 1223.931058 | X54: =interpolate_look_up(U54,B:B,C:C) -> 59
U55: 2011 | V55: 2011-12-01 | W55: 1176.079023 | X55: =interpolate_look_up(U55,B:B,C:C) -> 59
U56: 2012 | V56: 2012-01-01 | W56: 1128.596511 | X56: =interpolate_look_up(U56,B:B,C:C) -> 25
U57: 2012 | V57: 2012-02-01 | W57: 1083.031039 | X57: =interpolate_look_up(U57,B:B,C:C) -> 25
U58: 2012 | V58: 2012-03-01 | W58: 1042.072176 | X58: =interpolate_look_up(U58,B:B,C:C) -> 25
U59: 2012 | V59: 2012-04-01 | W59: 1000 | X59: =interpolate_look_up(U59,B:B,C:C) -> 25
O60: 1985 | P60: 6800 | U60: 2012 | V60: 2012-05-01 | W60: 985.2082063 | X60: =interpolate_look_up(U60,B:B,C:C) -> 25
O61: 1986 | P61: 6200 | U61: 2012 | V61: 2012-06-01 | W61: 970.1531734 | X61: =interpolate_look_up(U61,B:B,C:C) -> 25
O62: 1987 | P62: 5600 | U62: 2012 | V62: 2012-07-01 | W62: 955.8028678 | X62: =interpolate_look_up(U62,B:B,C:C) -> 25
O63: 1988 | P63: 5800 | U63: 2012 | V63: 2012-08-01 | W63: 941.1971799 | X63: =interpolate_look_up(U63,B:B,C:C) -> 25
O64: 1989 | P64: 6100 | U64: 2012 | V64: 2012-09-01 | W64: 926.8146825 | X64: =interpolate_look_up(U64,B:B,C:C) -> 25
O65: 1990 | P65: 5900 | U65: 2012 | V65: 2012-10-01 | W65: 913.1054309 | X65: =interpolate_look_up(U65,B:B,C:C) -> 25
O66: 1991 | P66: 5800 | U66: 2012 | V66: 2012-11-01 | W66: 899.1522054 | X66: =interpolate_look_up(U66,B:B,C:C) -> 25
O67: 1992 | P67: 5300 | U67: 2012 | V67: 2012-12-01 | W67: 885.8521314 | X67: =interpolate_look_up(U67,B:B,C:C) -> 25
O68: 1993 | P68: 5200 | U68: 2013 | V68: 2013-01-01 | W68: 872.3153654 | X68: =interpolate_look_up(U68,B:B,C:C) -> 16
O69: 1994 | P69: 5100 | U69: 2013 | V69: 2013-02-01 | W69: 858.9854557 | X69: =interpolate_look_up(U69,B:B,C:C) -> 16
O70: 1995 | P70: 4600 | U70: 2013 | V70: 2013-03-01 | W70: 847.1207042 | X70: =interpolate_look_up(U70,B:B,C:C) -> 16
O71: 1996 | P71: 4200 | U71: 2013 | V71: 2013-04-01 | W71: 834.1757958 | X71: =interpolate_look_up(U71,B:B,C:C) -> 16
O72: 1997 | P72: 4100 | U72: 2013 | V72: 2013-05-01 | W72: 821.8368395 | X72: =interpolate_look_up(U72,B:B,C:C) -> 16
O73: 1998 | P73: 3500 | U73: 2013 | V73: 2013-06-01 | W73: 809.2782955 | X73: =interpolate_look_up(U73,B:B,C:C) -> 16
O74: 1999 | P74: 2800 | U74: 2013 | V74: 2013-07-01 | W74: 797.3076178 | X74: =interpolate_look_up(U74,B:B,C:C) -> 16
O75: 2000 | P75: 2700 | U75: 2013 | V75: 2013-08-01 | W75: 785.1239065 | X75: =interpolate_look_up(U75,B:B,C:C) -> 16
O76: 2001 | P76: 2800 | U76: 2013 | V76: 2013-09-01 | W76: 773.1263753 | X76: =interpolate_look_up(U76,B:B,C:C) -> 16
O77: 2002 | P77: 2900 | U77: 2013 | V77: 2013-10-01 | W77: 761.6904494 | X77: =interpolate_look_up(U77,B:B,C:C) -> 16
O78: 2003 | P78: 2800 | U78: 2013 | V78: 2013-11-01 | W78: 750.0510064 | X78: =interpolate_look_up(U78,B:B,C:C) -> 16
O79: 2004 | P79: 2900 | U79: 2013 | V79: 2013-12-01 | W79: 738.9564067 | X79: =interpolate_look_up(U79,B:B,C:C) -> 16
O80: 2005 | P80: 3000 | U80: 2014 | V80: 2014-01-01 | W80: 727.6643641 | X80: =interpolate_look_up(U80,B:B,C:C) -> 16
O81: 2006 | P81: 3300 | U81: 2014 | V81: 2014-02-01 | W81: 716.544876 | X81: =interpolate_look_up(U81,B:B,C:C) -> 16
O82: 2007 | P82: 3400 | U82: 2014 | V82: 2014-03-01 | W82: 706.6475876 | X82: =interpolate_look_up(U82,B:B,C:C) -> 16
O83: 2008 | P83: 3200 | U83: 2014 | V83: 2014-04-01 | W83: 695.8492583 | X83: =interpolate_look_up(U83,B:B,C:C) -> 16
O84: 2009 | P84: 2800 | U84: 2014 | V84: 2014-05-01 | W84: 685.5563996 | X84: =interpolate_look_up(U84,B:B,C:C) -> 16
O85: 2010 | P85: 1800 | U85: 2014 | V85: 2014-06-01 | W85: 675.0803661 | X85: =interpolate_look_up(U85,B:B,C:C) -> 16
O86: 2011 | S86: 2015 | U86: 2014 | V86: 2014-07-01 | W86: 665.0947166 | X86: =interpolate_look_up(U86,B:B,C:C) -> 16
O87: 2012 | U87: 2014 | V87: 2014-08-01 | W87: 654.9313595 | X87: =interpolate_look_up(U87,B:B,C:C) -> 16
O88: 2013 | U88: 2014 | V88: 2014-09-01 | W88: 644.9233093 | X88: =interpolate_look_up(U88,B:B,C:C) -> 16
O89: 2014 | U89: 2014 | V89: 2014-10-01 | W89: 635.3837368 | X89: =interpolate_look_up(U89,B:B,C:C) -> 16
U90: 2014 | V90: 2014-11-01 | W90: 625.6743952 | X90: =interpolate_look_up(U90,B:B,C:C) -> 16
U91: 2014 | V91: 2014-12-01 | W91: 616.4195486 | X91: =interpolate_look_up(U91,B:B,C:C) -> 16
U92: 2015 | V92: 2015-01-01 | W92: 607 | X92: =interpolate_look_up(U92,B:B,C:C) -> 16.068
S93: Change | U93: 2015 | V93: ='Data for Graphs'!C2 -> 2015-02-01 | W93: ='Data for Graphs'!E2 -> 607 | X93: ='Data for Graphs'!D2 -> 19.08
U94: 2015 | V94: ='Data for Graphs'!C3 -> 2015-05-01 | W94: ='Data for Graphs'!E3 -> 555 | X94: ='Data for Graphs'!D3 -> 15.79
U95: 2015 | V95: ='Data for Graphs'!C4 -> 2015-06-01 | W95: ='Data for Graphs'!E4 -> 550 | X95: ='Data for Graphs'!D4 -> 15.58
U96: 2015 | V96: ='Data for Graphs'!C5 -> 2015-05-01 | W96: ='Data for Graphs'!E5 -> 555 | X96: ='Data for Graphs'!D5 -> 15.79
U97: 2015 | V97: ='Data for Graphs'!C6 -> 2015-11-01 | W97: ='Data for Graphs'!E6 -> 561 | X97: ='Data for Graphs'!D6 -> 14.1
U98: 2016 | V98: ='Data for Graphs'!C7 -> 2016-07-01 | W98: ='Data for Graphs'!E7 -> 480 | X98: ='Data for Graphs'!D7 -> 15.9
U99: 2016 | V99: ='Data for Graphs'!C8 -> 2016-10-01 | W99: ='Data for Graphs'!E8 -> 402 | X99: ='Data for Graphs'!D8 -> 12.65
U100: =YEAR(V100) -> 2017 | V100: ='Data for Graphs'!C9 -> 2017-01-01 | W100: ='Data for Graphs'!E9 -> 358 | X100: ='Data for Graphs'!D9 -> 15.37
U101: 2017 | V101: ='Data for Graphs'!C10 -> 2017-02-01 | W101: ='Data for Graphs'!E10 -> 350 | X101: ='Data for Graphs'!D10 -> 16.22
U102: 2017 | V102: ='Data for Graphs'!C11 -> 2017-04-01 | W102: ='Data for Graphs'!E11 -> 341 | X102: ='Data for Graphs'!D11 -> 14.21
U103: 2017 | V103: ='Data for Graphs'!C12 -> 2017-06-01 | W103: ='Data for Graphs'!E12 -> 333 | X103: ='Data for Graphs'!D12 -> 13.85
U104: 2017 | V104: ='Data for Graphs'!C13 -> 2017-08-01 | W104: ='Data for Graphs'!E13 -> 321 | X104: ='Data for Graphs'!D13 -> 15.55
U105: 2017 | V105: ='Data for Graphs'!C14 -> 2017-09-01 | W105: ='Data for Graphs'!E14 -> 322 | X105: ='Data for Graphs'!D14 -> 16.71
U106: 2017 | V106: ='Data for Graphs'!C15 -> 2017-10-01 | W106: ='Data for Graphs'!E15 -> 318 | X106: ='Data for Graphs'!D15 -> 16.68
U107: 2017 | V107: ='Data for Graphs'!C16 -> 2017-11-01 | W107: ='Data for Graphs'!E16 -> 315 | X107: ='Data for Graphs'!D16 -> 16.66
U108: 2018 | V108: ='Data for Graphs'!C17 -> 2018-02-01 | W108: ='Data for Graphs'!E17 -> 310 | X108: ='Data for Graphs'!D17 -> 17.44
U109: 2018 | V109: ='Data for Graphs'!C18 -> 2018-04-01 | W109: ='Data for Graphs'!E18 -> 302 | X109: ='Data for Graphs'!D18 -> 15.41
U110: 2018 | V110: ='Data for Graphs'!C19 -> 2018-06-01 | W110: ='Data for Graphs'!E19 -> 292 | X110: ='Data for Graphs'!D19 -> 14.65
U111: 2018 | V111: ='Data for Graphs'!C20 -> 2018-07-01 | W111: ='Data for Graphs'!E20 -> 266 | X111: ='Data for Graphs'!D20 -> 11.16
U112: 2018 | V112: ='Data for Graphs'!C21 -> 2018-08-01 | W112: ='Data for Graphs'!E21 -> 239 | X112: ='Data for Graphs'!D21 -> 11.26
U113: 2018 | V113: ='Data for Graphs'!C22 -> 2018-09-01 | W113: ='Data for Graphs'!E22 -> 234 | X113: ='Data for Graphs'!D22 -> 10.68
U114: 2018 | V114: ='Data for Graphs'!C23 -> 2018-10-01 | W114: ='Data for Graphs'!E23 -> 212 | X114: ='Data for Graphs'!D23 -> 9.75
U115: 2018 | V115: ='Data for Graphs'!C24 -> 2018-12-01 | W115: ='Data for Graphs'!E24 -> 204 | X115: ='Data for Graphs'!D24 -> 9.53
U116: 2019 | V116: ='Data for Graphs'!C25 -> 2019-01-01 | W116: ='Data for Graphs'!E25 -> 208 | X116: ='Data for Graphs'!D25 -> 9.26
U117: 2019 | V117: ='Data for Graphs'!C26 -> 2019-01-01 | W117: ='Data for Graphs'!E26 -> 207 | X117: ='Data for Graphs'!D26 -> 8.9
U118: 2019 | V118: ='Data for Graphs'!C27 -> 2019-03-01 | W118: ='Data for Graphs'!E27 -> 207 | X118: ='Data for Graphs'!D27 -> 9.04
U119: 2019 | V119: ='Data for Graphs'!C28 -> 2019-05-01 | W119: ='Data for Graphs'!E28 -> 206 | X119: ='Data for Graphs'!D28 -> 8.42
U120: 2019 | V120: ='Data for Graphs'!C29 -> 2019-05-01 | W120: ='Data for Graphs'!E29 -> 204 | X120: ='Data for Graphs'!D29 -> 8.34
U121: 2019 | V121: ='Data for Graphs'!C30 -> 2019-06-01 | W121: ='Data for Graphs'!E30 -> 212 | X121: ='Data for Graphs'!D30 -> 8.14
U122: 2019 | V122: ='Data for Graphs'!C31 -> 2019-08-01 | W122: ='Data for Graphs'!E31 -> 204 | X122: ='Data for Graphs'!D31 -> 7.92
U123: 2019 | V123: ='Data for Graphs'!C32 -> 2019-09-01 | W123: ='Data for Graphs'!E32 -> 200 | X123: ='Data for Graphs'!D32 -> 7.66
U124: 2019 | V124: ='Data for Graphs'!C33 -> 2019-11-01 | W124: ='Data for Graphs'!E33 -> 194 | X124: ='Data for Graphs'!D33 -> 7.5
U125: 2019 | V125: ='Data for Graphs'!C34 -> 2019-12-01 | W125: ='Data for Graphs'!E34 -> 192 | X125: ='Data for Graphs'!D34 -> 7.41
U126: 2019 | V126: ='Data for Graphs'!C35 -> 2019-12-01 | W126: ='Data for Graphs'!E35 -> 192 | X126: ='Data for Graphs'!D35 -> 7.28
U127: 2020 | V127: ='Data for Graphs'!C36 -> 2020-02-01 | W127: ='Data for Graphs'!E36 -> 191 | X127: ='Data for Graphs'!D36 -> 7.1
U128: 2020 | V128: ='Data for Graphs'!C37 -> 2020-04-01 | W128: ='Data for Graphs'!E37 -> 174 | X128: ='Data for Graphs'!D37 -> 6.43
U129: 2020 | V129: ='Data for Graphs'!C38 -> 2020-05-01 | W129: ='Data for Graphs'!E38 -> 168 | X129: ='Data for Graphs'!D38 -> 6.28
U130: 2020 | V130: ='Data for Graphs'!C39 -> 2020-06-01 | W130: ='Data for Graphs'!E39 -> 161 | X130: ='Data for Graphs'!D39 -> 6.19
U131: 2020 | V131: ='Data for Graphs'!C40 -> 2020-07-01 | W131: ='Data for Graphs'!E40 -> 160 | X131: ='Data for Graphs'!D40 -> 8.21
U132: 2020 | V132: ='Data for Graphs'!C41 -> 2020-08-01 | W132: ='Data for Graphs'!E41 -> 167 | X132: ='Data for Graphs'!D41 -> 10.68
U133: 2020 | V133: ='Data for Graphs'!C42 -> 2020-09-01 | W133: ='Data for Graphs'!E42 -> 171 | X133: ='Data for Graphs'!D42 -> 10.84
U134: 2020 | V134: ='Data for Graphs'!C43 -> 2020-10-01 | W134: ='Data for Graphs'!E43 -> 170 | X134: ='Data for Graphs'!D43 -> 10.64
U135: 2020 | V135: ='Data for Graphs'!C44 -> 2020-11-01 | W135: ='Data for Graphs'!E44 -> 173 | X135: ='Data for Graphs'!D44 -> 9.95
U136: 2021 | V136: ='Data for Graphs'!C45 -> 2021-01-01 | W136: ='Data for Graphs'!E45 -> 168 | X136: ='Data for Graphs'!D45 -> 10.79
U137: 2021 | V137: ='Data for Graphs'!C46 -> 2021-01-01 | W137: ='Data for Graphs'!E46 -> 167 | X137: ='Data for Graphs'!D46 -> 11.09
U138: 2021 | V138: ='Data for Graphs'!C47 -> 2021-02-01 | W138: ='Data for Graphs'!E47 -> 177 | X138: ='Data for Graphs'!D47 -> 12.06
U139: 2021 | V139: ='Data for Graphs'!C48 -> 2021-03-01 | W139: ='Data for Graphs'!E48 -> 178 | X139: ='Data for Graphs'!D48 -> 15.63
U140: 2021 | V140: ='Data for Graphs'!C49 -> 2021-05-01 | W140: ='Data for Graphs'!E49 -> 181 | X140: ='Data for Graphs'!D49 -> 20.02
U141: 2021 | V141: ='Data for Graphs'!C50 -> 2021-06-01 | W141: ='Data for Graphs'!E50 -> 198 | X141: ='Data for Graphs'!D50 -> 27.63
U142: 2021 | V142: ='Data for Graphs'!C51 -> 2021-07-01 | W142: ='Data for Graphs'!E51 -> 196 | X142: ='Data for Graphs'!D51 -> 27.35
U143: 2021 | V143: ='Data for Graphs'!C52 -> 2021-07-01 | W143: ='Data for Graphs'!E52 -> 195 | X143: ='Data for Graphs'!D52 -> 27.11
U144: 2021 | V144: ='Data for Graphs'!C53 -> 2021-08-01 | W144: ='Data for Graphs'!E53 -> 193 | X144: ='Data for Graphs'!D53 -> 26.95
U145: 2021 | V145: ='Data for Graphs'!C54 -> 2021-09-01 | W145: ='Data for Graphs'!E54 -> 193 | X145: ='Data for Graphs'!D54 -> 28.79
U146: 2021 | V146: ='Data for Graphs'!C55 -> 2021-11-01 | W146: ='Data for Graphs'!E55 -> 217 | X146: ='Data for Graphs'!D55 -> 35.81
U147: 2021 | V147: ='Data for Graphs'!C56 -> 2021-12-01 | W147: ='Data for Graphs'!E56 -> 206 | X147: ='Data for Graphs'!D56 -> 31.65
U148: 2022 | V148: ='Data for Graphs'!C57 -> 2022-01-01 | W148: ='Data for Graphs'!E57 -> 201 | X148: ='Data for Graphs'!D57 -> 30.56
U149: =YEAR(V149) -> 2022 | V149: ='Data for Graphs'!C58 -> 2022-02-01 | W149: ='Data for Graphs'!E58 -> 203 | X149: ='Data for Graphs'!D58 -> 33.05
U150: 2022 | V150: ='Data for Graphs'!C59 -> 2022-03-01 | W150: ='Data for Graphs'!E59 -> 203 | X150: ='Data for Graphs'!D59 -> 33.07
U151: 2022 | V151: ='Data for Graphs'!C60 -> 2022-04-01 | W151: ='Data for Graphs'!E60 -> 201 | X151: ='Data for Graphs'!D60 -> 32.87
U152: 2022 | V152: ='Data for Graphs'!C61 -> 2022-05-01 | W152: ='Data for Graphs'!E61 -> 200 | X152: ='Data for Graphs'!D61 -> 32.12
U153: 2022 | V153: ='Data for Graphs'!C62 -> 2022-06-01 | W153: ='Data for Graphs'!E62 -> 209 | X153: ='Data for Graphs'!D62 -> 32.28
U154: 2022 | V154: ='Data for Graphs'!C63 -> 2022-06-01 | W154: ='Data for Graphs'!E63 -> 208 | X154: ='Data for Graphs'!D63 -> 33.15
U155: 2022 | V155: ='Data for Graphs'!C64 -> 2022-08-01 | W155: ='Data for Graphs'!E64 -> 217 | X155: ='Data for Graphs'!D64 -> 38.13
U156: 2022 | V156: ='Data for Graphs'!C65 -> 2022-09-01 | W156: ='Data for Graphs'!E65 -> 212 | X156: ='Data for Graphs'!D65 -> 37.07
V157: ='Data for Graphs'!C66 ->  | W157: ='Data for Graphs'!E66 -> 0 | X157: ='Data for Graphs'!D66 -> 0
V158: ='Data for Graphs'!C67 ->  | W158: ='Data for Graphs'!E67 -> 0 | X158: ='Data for Graphs'!D67 -> 0
V159: ='Data for Graphs'!C68 ->  | W159: ='Data for Graphs'!E68 -> 0 | X159: ='Data for Graphs'!D68 -> 0
V160: ='Data for Graphs'!C69 ->  | W160: ='Data for Graphs'!E69 -> 0 | X160: ='Data for Graphs'!D69 -> 0
V161: ='Data for Graphs'!C70 ->  | W161: ='Data for Graphs'!E70 -> 0 | X161: ='Data for Graphs'!D70 -> 0
V162: ='Data for Graphs'!C71 ->  | W162: ='Data for Graphs'!E71 -> 0 | X162: ='Data for Graphs'!D71 -> 0
V163: ='Data for Graphs'!C72 ->  | W163: ='Data for Graphs'!E72 -> 0 | X163: ='Data for Graphs'!D72 -> 0
V164: ='Data for Graphs'!C73 ->  | W164: ='Data for Graphs'!E73 -> 0 | X164: ='Data for Graphs'!D73 -> 0
V165: ='Data for Graphs'!C74 ->  | W165: ='Data for Graphs'!E74 -> 0 | X165: ='Data for Graphs'!D74 -> 0
V166: ='Data for Graphs'!C75 ->  | W166: ='Data for Graphs'!E75 -> 0 | X166: ='Data for Graphs'!D75 -> 0
V167: ='Data for Graphs'!C76 ->  | W167: ='Data for Graphs'!E76 -> 0 | X167: ='Data for Graphs'!D76 -> 0
V168: ='Data for Graphs'!C77 ->  | W168: ='Data for Graphs'!E77 -> 0 | X168: ='Data for Graphs'!D77 -> 0
V169: ='Data for Graphs'!C78 ->  | W169: ='Data for Graphs'!E78 -> 0 | X169: ='Data for Graphs'!D78 -> 0

Sheet Polysilicon Cost Curve

Sheet Cell vs Module vs Array

Sheet Panel only
B1: ='Data for Graphs'!D1 -> Silicon USD/kg | C1: ='Data for Graphs'!E1 -> Polysilcon - Cost/kW | D1: ='Data for Graphs'!F1 -> Thin Film - Cost/kW
A2: ='Data for Graphs'!C2 -> 2015-02-01 | B2: ='Data for Graphs'!D2 -> 19.08 | C2: ='Data for Graphs'!E2 -> 607 | D2: ='Data for Graphs'!F2 -> 634
A3: ='Data for Graphs'!C3 -> 2015-05-01 | B3: ='Data for Graphs'!D3 -> 15.79 | C3: ='Data for Graphs'!E3 -> 555 | D3: ='Data for Graphs'!F3 -> 604
A4: ='Data for Graphs'!C4 -> 2015-06-01 | B4: ='Data for Graphs'!D4 -> 15.58 | C4: ='Data for Graphs'!E4 -> 550 | D4: ='Data for Graphs'!F4 -> 596
A5: ='Data for Graphs'!C5 -> 2015-05-01 | B5: ='Data for Graphs'!D5 -> 15.79 | C5: ='Data for Graphs'!E5 -> 555 | D5: ='Data for Graphs'!F5 -> 604
A6: ='Data for Graphs'!C6 -> 2015-11-01 | B6: ='Data for Graphs'!D6 -> 14.1 | C6: ='Data for Graphs'!E6 -> 561 | D6: ='Data for Graphs'!F6 -> 590
A7: ='Data for Graphs'!C7 -> 2016-07-01 | B7: ='Data for Graphs'!D7 -> 15.9 | C7: ='Data for Graphs'!E7 -> 480 | D7: ='Data for Graphs'!F7 -> 506
A8: ='Data for Graphs'!C8 -> 2016-10-01 | B8: ='Data for Graphs'!D8 -> 12.65 | C8: ='Data for Graphs'!E8 -> 402 | D8: ='Data for Graphs'!F8 -> 420
A9: ='Data for Graphs'!C9 -> 2017-01-01 | B9: ='Data for Graphs'!D9 -> 15.37 | C9: ='Data for Graphs'!E9 -> 358 | D9: ='Data for Graphs'!F9 -> 374
A10: ='Data for Graphs'!C10 -> 2017-02-01 | B10: ='Data for Graphs'!D10 -> 16.22 | C10: ='Data for Graphs'!E10 -> 350 | D10: ='Data for Graphs'!F10 -> 363
A11: ='Data for Graphs'!C11 -> 2017-04-01 | B11: ='Data for Graphs'!D11 -> 14.21 | C11: ='Data for Graphs'!E11 -> 341 | D11: ='Data for Graphs'!F11 -> 353
A12: ='Data for Graphs'!C12 -> 2017-06-01 | B12: ='Data for Graphs'!D12 -> 13.85 | C12: ='Data for Graphs'!E12 -> 333 | D12: ='Data for Graphs'!F12 -> 346
A13: ='Data for Graphs'!C13 -> 2017-08-01 | B13: ='Data for Graphs'!D13 -> 15.55 | C13: ='Data for Graphs'!E13 -> 321 | D13: ='Data for Graphs'!F13 -> 340
A14: ='Data for Graphs'!C14 -> 2017-09-01 | B14: ='Data for Graphs'!D14 -> 16.71 | C14: ='Data for Graphs'!E14 -> 322 | D14: ='Data for Graphs'!F14 -> 341
A15: ='Data for Graphs'!C15 -> 2017-10-01 | B15: ='Data for Graphs'!D15 -> 16.68 | C15: ='Data for Graphs'!E15 -> 318 | D15: ='Data for Graphs'!F15 -> 339
A16: ='Data for Graphs'!C16 -> 2017-11-01 | B16: ='Data for Graphs'!D16 -> 16.66 | C16: ='Data for Graphs'!E16 -> 315 | D16: ='Data for Graphs'!F16 -> 336
A17: ='Data for Graphs'!C17 -> 2018-02-01 | B17: ='Data for Graphs'!D17 -> 17.44 | C17: ='Data for Graphs'!E17 -> 310 | D17: ='Data for Graphs'!F17 -> 331
A18: ='Data for Graphs'!C18 -> 2018-04-01 | B18: ='Data for Graphs'!D18 -> 15.41 | C18: ='Data for Graphs'!E18 -> 302 | D18: ='Data for Graphs'!F18 -> 322
A19: ='Data for Graphs'!C19 -> 2018-06-01 | B19: ='Data for Graphs'!D19 -> 14.65 | C19: ='Data for Graphs'!E19 -> 292 | D19: ='Data for Graphs'!F19 -> 314
A20: ='Data for Graphs'!C20 -> 2018-07-01 | B20: ='Data for Graphs'!D20 -> 11.16 | C20: ='Data for Graphs'!E20 -> 266 | D20: ='Data for Graphs'!F20 -> 296
A21: ='Data for Graphs'!C21 -> 2018-08-01 | B21: ='Data for Graphs'!D21 -> 11.26 | C21: ='Data for Graphs'!E21 -> 239 | D21: ='Data for Graphs'!F21 -> 274
A22: ='Data for Graphs'!C22 -> 2018-09-01 | B22: ='Data for Graphs'!D22 -> 10.68 | C22: ='Data for Graphs'!E22 -> 234 | D22: ='Data for Graphs'!F22 -> 265
A23: ='Data for Graphs'!C23 -> 2018-10-01 | B23: ='Data for Graphs'!D23 -> 9.75 | C23: ='Data for Graphs'!E23 -> 212 | D23: ='Data for Graphs'!F23 -> 247
A24: ='Data for Graphs'!C24 -> 2018-12-01 | B24: ='Data for Graphs'!D24 -> 9.53 | C24: ='Data for Graphs'!E24 -> 204 | D24: ='Data for Graphs'!F24 -> 243
A25: ='Data for Graphs'!C25 -> 2019-01-01 | B25: ='Data for Graphs'!D25 -> 9.26 | C25: ='Data for Graphs'!E25 -> 208 | D25: ='Data for Graphs'!F25 -> 246
A26: ='Data for Graphs'!C26 -> 2019-01-01 | B26: ='Data for Graphs'!D26 -> 8.9 | C26: ='Data for Graphs'!E26 -> 207 | D26: ='Data for Graphs'!F26 -> 245
A27: ='Data for Graphs'!C27 -> 2019-03-01 | B27: ='Data for Graphs'!D27 -> 9.04 | C27: ='Data for Graphs'!E27 -> 207 | D27: ='Data for Graphs'!F27 -> 244
A28: ='Data for Graphs'!C28 -> 2019-05-01 | B28: ='Data for Graphs'!D28 -> 8.42 | C28: ='Data for Graphs'!E28 -> 206 | D28: ='Data for Graphs'!F28 -> 246
A29: ='Data for Graphs'!C29 -> 2019-05-01 | B29: ='Data for Graphs'!D29 -> 8.34 | C29: ='Data for Graphs'!E29 -> 204 | D29: ='Data for Graphs'!F29 -> 248
A30: ='Data for Graphs'!C30 -> 2019-06-01 | B30: ='Data for Graphs'!D30 -> 8.14 | C30: ='Data for Graphs'!E30 -> 212 | D30: ='Data for Graphs'!F30 -> 248
A31: ='Data for Graphs'!C31 -> 2019-08-01 | B31: ='Data for Graphs'!D31 -> 7.92 | C31: ='Data for Graphs'!E31 -> 204 | D31: ='Data for Graphs'!F31 -> 245
A32: ='Data for Graphs'!C32 -> 2019-09-01 | B32: ='Data for Graphs'!D32 -> 7.66 | C32: ='Data for Graphs'!E32 -> 200 | D32: ='Data for Graphs'!F32 -> 243
A33: ='Data for Graphs'!C33 -> 2019-11-01 | B33: ='Data for Graphs'!D33 -> 7.5 | C33: ='Data for Graphs'!E33 -> 194 | D33: ='Data for Graphs'!F33 -> 237
A34: ='Data for Graphs'!C34 -> 2019-12-01 | B34: ='Data for Graphs'!D34 -> 7.41 | C34: ='Data for Graphs'!E34 -> 192 | D34: ='Data for Graphs'!F34 -> 236
A35: ='Data for Graphs'!C35 -> 2019-12-01 | B35: ='Data for Graphs'!D35 -> 7.28 | C35: ='Data for Graphs'!E35 -> 192 | D35: ='Data for Graphs'!F35 -> 236
A36: ='Data for Graphs'!C36 -> 2020-02-01 | B36: ='Data for Graphs'!D36 -> 7.1 | C36: ='Data for Graphs'!E36 -> 191 | D36: ='Data for Graphs'!F36 -> 231
A37: ='Data for Graphs'!C37 -> 2020-04-01 | B37: ='Data for Graphs'!D37 -> 6.43 | C37: ='Data for Graphs'!E37 -> 174 | D37: ='Data for Graphs'!F37 -> 218
A38: ='Data for Graphs'!C38 -> 2020-05-01 | B38: ='Data for Graphs'!D38 -> 6.28 | C38: ='Data for Graphs'!E38 -> 168 | D38: ='Data for Graphs'!F38 -> 213
A39: ='Data for Graphs'!C39 -> 2020-06-01 | B39: ='Data for Graphs'!D39 -> 6.19 | C39: ='Data for Graphs'!E39 -> 161 | D39: ='Data for Graphs'!F39 -> 208
A40: ='Data for Graphs'!C40 -> 2020-07-01 | B40: ='Data for Graphs'!D40 -> 8.21 | C40: ='Data for Graphs'!E40 -> 160 | D40: ='Data for Graphs'!F40 -> 207

Sheet VBA Code

Sheet pvinsights 05 02 15
B1: Login | C1: Register | D1: Member Center
A3: Home | B3: Why Solar | C3: Retailer Price | D3: Contract Price | E3: Inverter Price | F3: Weekly Snapshots | G3: Price Download | H3: Monthly Insights | I3: Weekly Forecast | J3: Price Forecast | K3: Premier Insights | L3: Premier Data | M3: Advertising
A5: Final Phase of The 2014 US AD & CVD Key Date and Notice
A8: Solar PV Corporate News Release | F8: PV Poly Silicon Weekly Spot Price
A9: JA Solar Reaches 100MWp of PV Module Shipments to Solarcentury for UK Projects in 2014 | F9: Item | G9: High | H9: Low | I9: Average | J9: AvgChg | K9: AvgChg%
A10: JA Solar | C10: Jan 05, 2015 | F10: PV Grade Poly Silicon Price (9N / 9N+) | G10: 20.25 | H10: 18 | I10: 19.08 | J10: -0.03 | K10: -0.0016
A11: JA Solar Supplies 100MW of Modules to First Large-Scale Solar Farm in Pakistan | F11: 2nd Grade Poly Silicon Price (6N - 8N) | G11: 19.25 | H11: 16.5 | I11: 18.18 | J11: -0.15 | K11: -0.0082
A12: JA Solar | C12: Jan 05, 2015 | F12: Unit: USD/Kg | G12: Last Update: 2015-02-04
A13: Hanwha Solarone Files Shareholder Circular for Acquisition of Hanwha Q CELLS | F13: Definition of PV Grade: Poly silicon chunk with high purity can be directly produced to Solar PV Ingots / Bricks
A14: Hanwha Solar | C14: Dec 29, 2014 | F14: Definition of 2nd Grade: Poly silicon chunk must be mixed with high purity polysilicon, when producing Solar PV Ingots / Bricks.
A15: Motech and Topcell Announced the Signing of Merger Agreement | F15: Solar PV Wafer Weekly Spot Price
A16: Motech | C16: Dec 26, 2014 | F16: Item | G16: High | H16: Low | I16: Average | J16: AvgChg | K16: AvgChg%
A17: JA Solar Supplies 100MW of Modules to First Large-Scale Solar Farm in Pakistan | F17: 156 mm Multi Solar Wafer | G17: 1 | H17: 0.81 | I17: 0.853 | J17: -0.011 | K17: -0.0127
A18: JA Solar | C18: Dec 08, 2014 | F18: 156 mm High Eff Multi Solar Wafer | G18: 1 | H18: 0.84 | I18: 0.87 | J18: -0.016 | K18: -0.0181
A19: Latest Solar PV News | F19: 156 mm Mono Solar Wafer | G19: 1.24 | H19: 1.08 | I19: 1.132 | J19: -0.017 | K19: -0.0148
F20: 125 mm Mono Solar Wafer | G20: 0.71 | H20: 0.64 | I20: 0.67 | J20: -0.004 | K20: -0.0059
A21: Global Solar Photovoltaic Balance of System Market Value to Lose $10 Billion ... | F21: 156 mm Non (TW or CN) Multi Wafer | G21: Visit here for more detail wafer price information
A22: AltEnergyMag (press release) | E22: Feb 05, 2015 | F22: Unit: USD | G22: more | I22: Last Update: 2015-02-04
A23: Natcore's Chief Technology Officer Gives Opening Address at World ... | F23: China-made wafers, Ingots and bricks are involved in the US AD and CVD investigations.
A24: PR Newswire (press release) | E24: Feb 05, 2015 | F24: Taiwan-made wafers, Ingots, and bricks are involved in the US AD investigation.
A25: Clark Public Utilities' community solar program embraced
A26: The Columbian | E26: Feb 05, 2015
A27: Making Solar "Wallpaper" Cheaper, More Efficient
A28: IEEE Spectrum | E28: Feb 05, 2015
A29: ABQ company becomes official Home Depot solar supplier | F29: Solar PV Cell Weekly Spot Price
A30: Albuquerque Business First | E30: Feb 05, 2015 | F30: Item | G30: High | H30: Low | I30: Average | J30: AvgChg | K30: AvgChg %
A31: Power play: Ketron hopes to use solar, geothermal to go off the grid | F31: Multi Cell Price Per Watt | G31: 0.42 | H31: 0.29 | I31: 0.313 | J31: -0.002 | K31: -0.0063
A32: Kingsport Times News | E32: Feb 05, 2015 | F32: 156 mm Multi Solar Cell | G32: 1.89 | H32: 1.19 | I32: 1.344 | J32: -0.008 | K32: -0.0059
A33: SRP solar critic hits the roof | F33: 156 mm Mono Solar Cell | G33: 2.55 | H33: 1.66 | I33: 1.811 | J33: -0.005 | K33: -0.0028
A34: azcentral.com | E34: Feb 05, 2015 | F34: 125 mm Mono Solar Cell | G34: 1.55 | H34: 0.97 | I34: 1.088 | J34: -0.003 | K34: -0.0027
A35: Israelis to dedicate largest solar field in east Africa | F35: Taiwan Poly Cell Per Watt | G35: 0.42 | H35: 0.29 | I35: 0.315 | J35: -0.002 | K35: -0.0063
A36: The Times of Israel | E36: Feb 05, 2015 | F36: Non (TW or CN) Poly Cell Per Watt | G36: Visit here for more detail Cell price information
A37: Elon ponders solar farms within the city | F37: Unit: USD | G37: more | I37: Last Update: 2015-02-04
A38: Burlington Times News | E38: Feb 05, 2015 | F38: Solar PV Module Weekly Spot Price
A39: This New PG&E Program Will Allow Customers to Go 100 Percent Solar | F39: Item | G39: High | H39: Low | I39: Average | J39: AvgChg | K39: AvgChg %
A40: Greentech Media | E40: Feb 05, 2015 | F40: Poly Silicon Solar Module | G40: 0.87 | H40: 0.5 | I40: 0.607 | J40: -0.004 | K40: -0.0065
A41: Minnesota's Great Leap Into Solar Begins | F41: ThinFilm Solar Module | G41: 0.83 | H41: 0.5 | I41: 0.634 | J41: -0.002 | K41: -0.0031
A42: Greentech Media | E42: Feb 05, 2015 | F42: US Multi Solar Module | G42: Visit here for more detail module price information
A43: Solar power advocates worry over new bill in Statehouse | F43: Mono Silicon Solar Module | G43: Visit here for more detail module price information
A44: WTHI | E44: Feb 05, 2015 | F44: Unit: USD / Watt | G44: more | I44: Last Update: 2015-02-04
A45: Report: Wind and solar energy have tripled since 2008 | F45: All Spot Prices are Tax excluded and updated on Wednesday
A46: Washington Post | E46: Feb 05, 2015
A47: Washington solar field nears completion after 4 years
A48: NJ.com | E48: Feb 05, 2015
A49: Using solar energy to improve desalination process
A50: Phys.Org | E50: Feb 04, 2015
A51: Last Update: 2015-Feb- 05 07:00 (GMT+8)
A55: Price Methodology | B55: Terms of Use | C55: Privacy Policy | D55: About Us | E55: Contact Us | F55: Site Map
A56: Copyright © 2015 PVinsights.com All rights reserved

Sheet pvinsights 29 05 15
B1: Login | C1: Register | D1: Member Center | J1: =MATCH(I9,I:I,0) -> 9 | K1: =INDEX(I:I,J1+1) -> 15.79
A3: Home | B3: Why Solar | C3: Retailer Price | D3: Contract Price | E3: Inverter Price | F3: Weekly Snapshots | G3: Price Download | H3: Monthly Insights | I3: Weekly Forecast | J3: Price Forecast | K3: Premier Insights | L3: Premier Data | M3: Advertising
A5: Final Phase of The 2014 US AD & CVD Key Date and Notice
A8: Solar PV Corporate News Release | F8: PV Poly Silicon Weekly Spot Price
A9: JA Solar and Essel Infraprojects Limited Sign MOU on 500MW PV Joint Venture | F9: Item | G9: High | H9: Low | I9: Average | J9: AvgChg | K9: AvgChg%
A10: JA Solar | C10: 2015-05-25 | F10: PV Grade Poly Silicon Price (9N / 9N+) | G10: 16.8 | H10: 14.9 | I10: 15.79 | J10: -0.05 | K10: -0.0032
A11: First Solar, Inc. Announces First Quarter 2015 Financial Results with net loss of USD 62 million | F11: 2nd Grade Poly Silicon Price (6N - 8N) | G11: 16.2 | H11: 10 | I11: 13.82 | J11: -0.1 | K11: -0.0072
A12: First Solar | C12: 2015-05-01 | F12: PV Poly Silicon Price in China | G12: Visit here for more detail module price information
A13: Israeli Parliament Solar Project Adopts JA Solar Modules | F13: PV Poly Silicon Price Outside China | G13: Visit here for more detail module price information
A14: JA Solar | C14: 2015-04-07 | F14: Unit: USD/Kg | G14: more | I14: Last Update: 2015-05-27
A15: JA Solar Supplies Modules Again to First Large-Scale Solar Farm in Central America | F15: Definition of PV Grade: Poly silicon chunk with high purity can be directly produced to Solar PV Ingots / Bricks
A16: JA Solar | C16: 2015-03-16 | F16: Definition of 2nd Grade: Poly silicon chunk must be mixed with high purity polysilicon, when producing Solar PV Ingots / Bricks.
A17: Hyundai offers compact 250W high-performance modules for UK rooftop market | F17: Solar PV Wafer Weekly Spot Price
A18: Hyundai | C18: 2015-03-12 | F18: Item | G18: High | H18: Low | I18: Average | J18: AvgChg | K18: AvgChg%
A19: Latest Solar PV News | F19: 156 mm Multi Solar Wafer | G19: 0.9 | H19: 0.78 | I19: 0.804 | J19: 0 | K19: 0
F20: 156 mm High Eff Multi Solar Wafer | G20: 0.9 | H20: 0.81 | I20: 0.82 | J20: 0 | K20: 0
A21: Solar Photovoltaic Backsheet Market To 2015: Latest Research Analysed | F21: 156 mm Mono Solar Wafer | G21: 1.11 | H21: 0.98 | I21: 1.015 | J21: -0.005 | K21: -0.0049
A22: Solar Plaza (press release) | E22: 2015-05-29 | F22: 125 mm Mono Solar Wafer | G22: 0.66 | H22: 0.61 | I22: 0.631 | J22: -0.001 | K22: -0.0016
A23: JinkoSolar ships 789.2 MW of solar photovoltaic products in Q1, 2015 ... | F23: 156 mm Non (TW or CN) Multi Wafer | G23: Visit here for more detail wafer price information
A24: solarserver.com | E24: 2015-05-29 | F24: Unit: USD | G24: more | I24: Last Update: 2015-05-27
A25: European Photovoltaic Industry Association rebrands: SolarPower Europe
A26: solarserver.com | E26: 2015-05-29
A27: Rays Power commissions 31.5 MW solar photovoltaic project in Punjab
A28: Economic Times | E28: 2015-05-29
A29: Supervisors, residents question Warren County solar selection process | F29: Solar PV Cell Weekly Spot Price
A30: Glens Falls Post-Star | E30: 2015-05-29 | F30: Item | G30: High | H30: Low | I30: Average | J30: AvgChg | K30: AvgChg %
A31: Controversy over location of proposed Upper Valley solar array | F31: Multi Cell Price Per Watt | G31: 0.39 | H31: 0.26 | I31: 0.291 | J31: 0.001 | K31: 0.0034
A32: WPTZ The Champlain Valley | E32: 2015-05-29 | F32: Taiwan Poly Cell Per Watt | G32: 0.39 | H32: 0.27 | I32: 0.294 | J32: 0.002 | K32: 0.0068
A33: Cedar Falls Utilities pitches solar project to potential investors | F33: 156 mm Multi Solar Cell | G33: 1.75 | H33: 1.07 | I33: 1.252 | J33: 0.004 | K33: 0.0032
A34: KCRG | E34: 2015-05-29 | F34: 156 mm Mono Solar Cell | G34: 2.3 | H34: 1.52 | I34: 1.668 | J34: -0.004 | K34: -0.0024
A35: CA struggles to compute value of solar | F35: 125 mm Mono Solar Cell | G35: 1.4 | H35: 0.89 | I35: 1.005 | J35: -0.002 | K35: -0.002
A36: U-T San Diego | E36: 2015-05-29 | F36: Non (TW or CN) Poly Cell Per Watt | G36: Visit here for more detail Cell price information
A37: Big Subsidies Make Solar Power Attractive for Home Developers | F37: Unit: USD | G37: more | I37: Last Update: 2015-05-27
A38: Wall Street Journal | E38: 2015-05-29 | F38: Solar PV Module Weekly Spot Price
A39: Report finds 7.7M renewable energy employees worldwide | F39: Item | G39: High | H39: Low | I39: Average | J39: AvgChg | K39: AvgChg %
A40: Fierce Energy | E40: 2015-05-29 | F40: Poly Silicon Solar Module | G40: 0.79 | H40: 0.48 | I40: 0.555 | J40: -0.004 | K40: -0.0072
A41: Department of Defense Moves Forward with Stricter Sourcing Requirements for ... | F41: ThinFilm Solar Module | G41: 0.8 | H41: 0.47 | I41: 0.604 | J41: -0.005 | K41: -0.0082
A42: The National Law Review | E42: 2015-05-29 | F42: US Multi Solar Module | G42: Visit here for more detail module price information
A43: Jinko Solar Q1 Earnings Crush Views, Revenue Shines JKS | F43: Mono Silicon Solar Module | G43: Visit here for more detail module price information
A44: Investor's Business Daily | E44: 2015-05-29 | F44: Unit: USD / Watt | G44: more | I44: Last Update: 2015-05-27
A45: What Was Here Before the Solar System? | F45: All Spot Prices are Tax excluded and updated on Wednesday
A46: Universe Today | E46: 2015-05-29
A47: Albemarle Co. Schools Team Up with Staunton Solar Company
A48: NBC 29 News | E48: 2015-05-29
A49: The Power of Solar: Energy in the Global South
A50: Huffington Post | E50: 2015-05-29
A51: Last Update: 2015-May- 29 14:00 (GMT+8)
A55: Price Methodology | B55: Terms of Use | C55: Privacy Policy | D55: About Us | E55: Contact Us | F55: Site Map
A56: Copyright © 2015 PVinsights.com All rights reserved

Sheet pvinsights 15 06 15
B1: Login | C1: Register | D1: Member Center
A3: Home | B3: Why Solar | C3: Retailer Price | D3: Contract Price | E3: Inverter Price | F3: Weekly Snapshots | G3: Price Download | H3: Monthly Insights | I3: Weekly Forecast | J3: Price Forecast | K3: Premier Insights | L3: Premier Data | M3: Advertising
A5: Final Phase of The 2014 US AD & CVD Key Date and Notice
A8: Solar PV Corporate News Release | F8: PV Poly Silicon Weekly Spot Price
A9: JA Solar and Essel Infraprojects Limited Sign MOU on 500MW PV Joint Venture | F9: Item | G9: High | H9: Low | I9: Average | J9: AvgChg | K9: AvgChg%
A10: JA Solar | C10: 2015-05-25 | F10: PV Grade Poly Silicon Price (9N / 9N+) | G10: 16.65 | H10: 14.8 | I10: 15.58 | J10: -0.11 | K10: -0.007
A11: First Solar, Inc. Announces First Quarter 2015 Financial Results with net loss of USD 62 million | F11: 2nd Grade Poly Silicon Price (6N - 8N) | G11: 16.2 | H11: 10 | I11: 13.62 | J11: -0.08 | K11: -0.0058
A12: First Solar | C12: 2015-05-01 | F12: PV Poly Silicon Price in China | G12: Visit here for more detail module price information
A13: Israeli Parliament Solar Project Adopts JA Solar Modules | F13: PV Poly Silicon Price Outside China | G13: Visit here for more detail module price information
A14: JA Solar | C14: 2015-04-07 | F14: Unit: USD/Kg | G14: more | I14: Last Update: 2015-06-10
A15: JA Solar Supplies Modules Again to First Large-Scale Solar Farm in Central America | F15: Definition of PV Grade: Poly silicon chunk with high purity can be directly produced to Solar PV Ingots / Bricks
A16: JA Solar | C16: 2015-03-16 | F16: Definition of 2nd Grade: Poly silicon chunk must be mixed with high purity polysilicon, when producing Solar PV Ingots / Bricks.
A17: Hyundai offers compact 250W high-performance modules for UK rooftop market | F17: Solar PV Wafer Weekly Spot Price
A18: Hyundai | C18: 2015-03-12 | F18: Item | G18: High | H18: Low | I18: Average | J18: AvgChg | K18: AvgChg%
A19: Latest Solar PV News | F19: 156 mm Multi Solar Wafer | G19: 0.9 | H19: 0.78 | I19: 0.804 | J19: 0 | K19: 0
F20: 156 mm High Eff Multi Solar Wafer | G20: 0.9 | H20: 0.81 | I20: 0.82 | J20: 0 | K20: 0
A21: Dairyland Power Seeks Solar Photovoltaic Energy Resources | F21: 156 mm Mono Solar Wafer | G21: 1.1 | H21: 0.96 | I21: 1 | J21: -0.01 | K21: -0.0099
A22: Virtual Press Office (press release) | E22: 2015-06-15 | F22: 125 mm Mono Solar Wafer | G22: 0.65 | H22: 0.6 | I22: 0.623 | J22: -0.005 | K22: -0.008
A23: BSF Gujarat plans to power outposts with photovoltaic installations | F23: 156 mm Non (TW or CN) Multi Wafer | G23: Visit here for more detail wafer price information
A24: Greentech Lead | E24: 2015-06-15 | F24: Unit: USD | G24: more | I24: Last Update: 2015-06-10
A25: Hanergy Scraps Talks to Sell $585 Million in Solar Kit to Parent
A26: Bloomberg | E26: 2015-06-15
A27: Solar cells in the roof and nanotechnology in the walls
A28: Phys.Org | E28: 2015-06-15
A29: Exclusive: First Solar's CTO Discusses Record 18.6% Efficient Thin-Film Module | F29: Solar PV Cell Weekly Spot Price
A30: Greentech Media | E30: 2015-06-15 | F30: Item | G30: High | H30: Low | I30: Average | J30: AvgChg | K30: AvgChg %
A31: National Guard Helping Install Solar Panels Near Porcupine | F31: Multi Cell Price Per Watt | G31: 0.39 | H31: 0.28 | I31: 0.3 | J31: 0.006 | K31: 0.0204
A32: KELOLAND TV | E32: 2015-06-15 | F32: Taiwan Poly Cell Per Watt | G32: 0.39 | H32: 0.29 | I32: 0.303 | J32: 0.006 | K32: 0.0202
A33: Adani Group in pact for 10000 mw solar power park in JV with Rajasthan ... | F33: 156 mm Multi Solar Cell | G33: 1.75 | H33: 1.16 | I33: 1.3 | J33: 0.036 | K33: 0.0285
A34: Economic Times | E34: 2015-06-15 | F34: 156 mm Mono Solar Cell | G34: 2.3 | H34: 1.52 | I34: 1.658 | J34: -0.004 | K34: -0.0024
A35: Kelso Council to consider community solar project | F35: 125 mm Mono Solar Cell | G35: 1.4 | H35: 0.89 | I35: 0.997 | J35: -0.004 | K35: -0.004
A36: Longview Daily News | E36: 2015-06-15 | F36: Non (TW or CN) Poly Cell Per Watt | G36: Visit here for more detail Cell price information
A37: The first solar plane flying around the world | F37: Unit: USD | G37: more | I37: Last Update: 2015-06-10
A38: USA TODAY | E38: 2015-06-15 | F38: Solar PV Module Weekly Spot Price
A39: UBS Lays Out âDreamâ Solar Scenario: 50% Of Global Generation By 2050 | F39: Item | G39: High | H39: Low | I39: Average | J39: AvgChg | K39: AvgChg %
A40: CleanTechnica | E40: 2015-06-15 | F40: Poly Silicon Solar Module | G40: 0.78 | H40: 0.48 | I40: 0.55 | J40: -0.002 | K40: -0.0036
A41: PUC Founder to submit for 50MW solar photovoltaic plant | F41: ThinFilm Solar Module | G41: 0.8 | H41: 0.47 | I41: 0.596 | J41: -0.003 | K41: -0.005
A42: The Sun Daily | E42: 2015-06-15 | F42: US Multi Solar Module | G42: Visit here for more detail module price information
A43: Solarize Mass Plainfield-Ashfield-Buckland selects photovoltaic panel installer | F43: Mono Silicon Solar Module | G43: Visit here for more detail module price information
A44: GazetteNET | E44: 2015-06-15 | F44: Unit: USD / Watt | G44: more | I44: Last Update: 2015-06-10
A45: global markets and technologies for photovoltaic systems | F45: All Spot Prices are Tax excluded and updated on Wednesday
A46: Virtual Press Office (press release) | E46: 2015-06-15
A47: Neil Kelly Company Installs Solar Photovoltaic System for Best Western Inn at ...
A48: Benzinga | E48: 2015-06-15
A49: BRIEF-Shenzhen Jiawei Photovoltaic Lighting gets regulatory approval for ...
A50: Reuters | E50: 2015-06-15
A51: Last Update: 2015-Jun- 15 23:01 (GMT+8)
A55: Price Methodology | B55: Terms of Use | C55: Privacy Policy | D55: About Us | E55: Contact Us | F55: Site Map
A56: Copyright © 2015 PVinsights.com All rights reserved

Sheet pvinsights 25 09 15
B1: Login | C1: Register | D1: Member Center
A3: Home | B3: Why Solar | C3: Retailer Price | D3: Contract Price | E3: Inverter Price | F3: Weekly Snapshots | G3: Price Download | H3: Monthly Insights | I3: Weekly Forecast | J3: Price Forecast | K3: Premier Insights | L3: Premier Data | M3: Advertising
A5: Final Phase of The 2014 US AD & CVD Key Date and Notice
A8: Solar PV Corporate News Release | F8: PV Poly Silicon Weekly Spot Price
A9: Yingli Green Energy Reports Second Quarter 2015 Results | F9: Item | G9: High | H9: Low | I9: Average | J9: AvgChg | K9: AvgChg%
A10: Yingli | C10: 2015-09-08 | F10: PV Grade Poly Silicon Price (9N / 9N+) | G10: 15.7 | H10: 13.5 | I10: 14.86 | J10: -0.12 | K10: -0.008
A11: Hanwha Q CELLS Reports Second Quarter 2015 Results | F11: 2nd Grade Poly Silicon Price (6N - 8N) | G11: 15 | H11: 10 | I11: 12.81 | J11: -0.09 | K11: -0.007
A12: Hanwha | C12: 2015-08-27 | F12: PV Poly Silicon Price in China | G12: Visit here for more Poly-Si price | K12: -0.0093
A13: TSMC to Cease Solar Manufacturing Operations | F13: PV Poly Silicon Price Outside China | G13: Visit here for more Poly-Si price | K13: -0.0043
A14: TSMC | C14: 2015-08-25 | F14: Unit: USD/Kg | G14: more | I14: Last Update: 2015-09-23
A15: JinkoSolar Announces Better-Than-Expected Second Quarter 2015 Financial Results | F15: Definition of PV Grade: Poly silicon chunk with high purity can be directly produced to Solar PV Ingots / Bricks
A16: Jinko | C16: 2015-08-20 | F16: Definition of 2nd Grade: Poly silicon chunk must be mixed with high purity polysilicon, when producing Solar PV Ingots / Bricks.
A17: Trina Solar Announces $43.1 million of Net Profits for Second Quarter 2015 Results | F17: Solar PV Wafer Weekly Spot Price
A18: Trina | C18: 2015-08-18 | F18: Item | G18: High | H18: Low | I18: Average | J18: AvgChg | K18: AvgChg%
A19: Latest Solar PV News | F19: 156 mm Multi Solar Wafer | G19: 0.9 | H19: 0.79 | I19: 0.819 | J19: 0.002 | K19: 0.0024
F20: 156 mm High Eff Multi Solar Wafer | G20: 0.9 | H20: 0.8 | I20: 0.829 | J20: 0.001 | K20: 0.0012
A21: BRIEF-01Cyberaton to launch 34 photovoltaic units in Bukowina Tatrzanska, Poland | F21: 156 mm Mono Solar Wafer | G21: 1 | H21: 0.9 | I21: 0.932 | J21: -0.004 | K21: -0.0043
A22: Reuters | E22: 2015-09-25 | F22: 125 mm Mono Solar Wafer | G22: 0.63 | H22: 0.59 | I22: 0.608 | J22: -0.001 | K22: -0.0016
A23: Short Sellers Heading for the Sidelines on Solar, Alt Energy Stocks? | F23: 156 mm Non (TW or CN) Multi Wafer | G23: Visit here for more detail wafer price information
A24: 24/7 Wall St. | E24: 2015-09-25 | F24: Unit: USD | G24: more | I24: Last Update: 2015-09-23
A25: Entergy is OK'd for solar contract
A26: Arkansas Online | E26: 2015-09-25
A27: Turkey Commissions First Utility-Scale CIS Thin-Film Solar PV Plant
A28: CleanTechnica | E28: 2015-09-25
A29: Fraunhofer ISE Sets Another Solar Cell Efficiency Record | F29: Solar PV Cell Weekly Spot Price
A30: CleanTechnica | E30: 2015-09-25 | F30: Item | G30: High | H30: Low | I30: Average | J30: AvgChg | K30: AvgChg %
A31: Brazil Could Be the Next Global Solar Superpower. But There's Still Work to Do | F31: Multi Cell Price Per Watt | G31: 0.39 | H31: 0.28 | I31: 0.315 | J31: 0.001 | K31: 0.0032
A32: Greentech Media | E32: 2015-09-25 | F32: Taiwan Poly Cell Per Watt | G32: 0.39 | H32: 0.29 | I32: 0.318 | J32: 0.001 | K32: 0.0032
A33: Space-Based Solar Power: Here's How It Could Work | F33: 156 mm Multi Solar Cell | G33: 1.75 | H33: 1.16 | I33: 1.381 | J33: 0.01 | K33: 0.0073
A34: Forbes | E34: 2015-09-25 | F34: 156 mm Mono Solar Cell | G34: 2.25 | H34: 1.42 | I34: 1.609 | J34: -0.009 | K34: -0.0056
A35: EU PVSEC 2015: Photovoltaics becoming mainstream, and cheapest form of ... | F35: 125 mm Mono Solar Cell | G35: 1.37 | H35: 0.84 | I35: 0.972 | J35: -0.003 | K35: -0.0031
A36: solarserver.com | E36: 2015-09-25 | F36: Non (TW or CN) Poly Cell Per Watt | G36: Visit here for more detail Cell price information
A37: Primary schools go photovoltaic | F37: Unit: USD | G37: more | I37: Last Update: 2015-09-23
A38: Barbados Today | E38: 2015-09-25 | F38: Solar PV Module Weekly Spot Price
A39: Global Material for Next Generation Photovoltaics Market Analysis, Trends ... | F39: Item | G39: High | H39: Low | I39: Average | J39: AvgChg | K39: AvgChg %
A40: Industry Today (press release) | E40: 2015-09-25 | F40: Poly Silicon Solar Module | G40: 0.78 | H40: 0.48 | I40: 0.556 | J40: 0.001 | K40: 0.0018
A41: The precision of solar photovoltaic power measurements doubled | F41: ThinFilm Solar Module | G41: 0.79 | H41: 0.47 | I41: 0.592 | J41: 0 | K41: 0
A42: Phys.Org | E42: 2015-09-25 | F42: US Multi Solar Module | G42: Visit here for more detail module price information
A43: North Carolina reaches solar power milestone | F43: Mono Silicon Solar Module | G43: Visit here for more detail module price information
A44: UPI.com | E44: 2015-09-25 | F44: Unit: USD / Watt | G44: more | I44: Last Update: 2015-09-23
A45: Costa Rica's capital to have solar energy powered traffic lights Public ... | F45: All Spot Prices are Tax excluded and updated on Wednesday
A46: The Tico Times | E46: 2015-09-25
A47: Sacramento State Ready To Play Underdog Spoiler In Prestigious Solar Power ...
A48: CBS Local | E48: 2015-09-25
A49: Want a Solar-Powered Home? Here's a New Battery That Won't Ignite
A50: National Geographic | E50: 2015-09-25
A51: Last Update: 2015-Sep- 25 23:00 (GMT+8)
A52: Price Methodology | B52: Terms of Use | C52: Privacy Policy | D52: About Us | E52: Contact Us | F52: Site Map
A53: Copyright © 2015 PVinsights.com All rights reserved

Sheet pvinsights 13 11 15
B1: Login | C1: Register | D1: Member Center
A3: Home | B3: Why Solar | C3: Retailer Price | D3: Contract Price | E3: Inverter Price | F3: Weekly Snapshots | G3: Price Download | H3: Monthly Insights | I3: Weekly Forecast | J3: Price Forecast | K3: Premier Insights | L3: Premier Data | M3: Advertising
A5: Final Phase of The 2014 US AD & CVD Key Date and Notice
A8: Solar PV Corporate News Release | F8: PV Poly Silicon Weekly Spot Price
A9: SunEdison Reports Third Quarter 2015 Results | F9: Item | G9: High | H9: Low | I9: Average | J9: AvgChg | K9: AvgChg%
A10: SunEdison | C10: 2015-11-10 | F10: PV Grade Poly Silicon Price (9N / 9N+) | G10: 15.05 | H10: 12.8 | I10: 14.1 | J10: -0.11 | K10: -0.0077
A11: Canadian Solar Reports Third Quarter 2015 Results | F11: 2nd Grade Poly Silicon Price (6N - 8N) | G11: 15 | H11: 10 | I11: 12.51 | J11: 0 | K11: 0
A12: Canadian | C12: 2015-11-10 | F12: PV Poly Silicon Price in China | G12: Visit here for more Poly-Si price | K12: -0.0078
A13: Yingli Green Energy Reports Second Quarter 2015 Results | F13: PV Poly Silicon Price Outside China | G13: Visit here for more Poly-Si price | K13: -0.0045
A14: Yingli | C14: 2015-09-08 | F14: Unit: USD/Kg | G14: more | I14: Last Update: 2015-11-11
A15: Hanwha Q CELLS Reports Second Quarter 2015 Results | F15: Definition of PV Grade: Poly silicon chunk with high purity can be directly produced to Solar PV Ingots / Bricks
A16: Hanwha | C16: 2015-08-27 | F16: Definition of 2nd Grade: Poly silicon chunk must be mixed with high purity polysilicon, when producing Solar PV Ingots / Bricks.
A17: TSMC to Cease Solar Manufacturing Operations | F17: Solar PV Wafer Weekly Spot Price
A18: TSMC | C18: 2015-08-25 | F18: Item | G18: High | H18: Low | I18: Average | J18: AvgChg | K18: AvgChg%
A19: Latest Solar PV News | F19: 156 mm Multi Solar Wafer | G19: 0.9 | H19: 0.81 | I19: 0.834 | J19: 0.002 | K19: 0.0024
F20: 156 mm High Eff Multi Solar Wafer | G20: 0.9 | H20: 0.82 | I20: 0.843 | J20: 0.002 | K20: 0.0024
A21: Peru President inaugurates Photovoltaic Power Plant in Southern Peru | F21: 156 mm Mono Solar Wafer | G21: 1 | H21: 0.86 | I21: 0.913 | J21: -0.007 | K21: -0.0076
A22: Andina - Agencia Peruana de Noticias | E22: 2015-11-13 | F22: 125 mm Mono Solar Wafer | G22: 0.63 | H22: 0.57 | I22: 0.597 | J22: -0.006 | K22: -0.01
A23: City OKs solar park tax abatement | F23: 156 mm Non (TW or CN) Multi Wafer | G23: Visit here for more detail wafer price information
A24: The Herald Bulletin | E24: 2015-11-13 | F24: Unit: USD | G24: more | I24: Last Update: 2015-11-11
A25: New âInvisibleâ Solar Jobs Exposed By 19 Solar Startups
A26: CleanTechnica | E26: 2015-11-13
A27: City of Beaufort mounts effort to encourage solar energy
A28: Island Packet | E28: 2015-11-13
A29: Solar Continues to Beat Fossil Fuel Prices in Chile, Boosting Confidence in ... | F29: Solar PV Cell Weekly Spot Price
A30: Greentech Media | E30: 2015-11-13 | F30: Item | G30: High | H30: Low | I30: Average | J30: AvgChg | K30: AvgChg %
A31: Action on solar bill at center of fight between Eversource, National Grid and ... | F31: Multi Cell Price Per Watt | G31: 0.39 | H31: 0.29 | I31: 0.322 | J31: 0.001 | K31: 0.0031
A32: MassLive.com | E32: 2015-11-13 | F32: Taiwan Poly Cell Per Watt | G32: 0.39 | H32: 0.3 | I32: 0.325 | J32: 0.001 | K32: 0.0031
A33: How Solar Installations Can Be the Barn-Raisings of the 21st Century | F33: 156 mm Multi Solar Cell | G33: 1.75 | H33: 1.2 | I33: 1.41 | J33: 0.005 | K33: 0.0036
A34: Slate Magazine | E34: 2015-11-13 | F34: 156 mm Mono Solar Cell | G34: 2.25 | H34: 1.42 | I34: 1.575 | J34: -0.004 | K34: -0.0025
A35: Photovoltaics Add Value to Homes, Berkeley Lab Study Concludes | F35: 125 mm Mono Solar Cell | G35: 1.37 | H35: 0.84 | I35: 0.951 | J35: -0.003 | K35: -0.0031
A36: Solar Novus Today | E36: 2015-11-13 | F36: Non (TW or CN) Poly Cell Per Watt | G36: Visit here for more detail Cell price information
A37: Research on Transparent Organic Photovoltaic Glass Facades | F37: Unit: USD | G37: more | I37: Last Update: 2015-11-11
A38: Solar Novus Today | E38: 2015-11-13 | F38: Solar PV Module Weekly Spot Price
A39: Appeals Judge Upholds BPU's Decision to Block Solar Farm in Apple Orchard | F39: Item | G39: High | H39: Low | I39: Average | J39: AvgChg | K39: AvgChg %
A40: NJ Spotlight | E40: 2015-11-13 | F40: Poly Silicon Solar Module | G40: 0.78 | H40: 0.48 | I40: 0.561 | J40: 0.001 | K40: 0.0018
A41: First Solar Road Surpasses Expectations | F41: ThinFilm Solar Module | G41: 0.79 | H41: 0.47 | I41: 0.59 | J41: 0 | K41: 0
A42: Triple Pundit (registration) (blog) | E42: 2015-11-13 | F42: US Multi Solar Module | G42: Visit here for more detail module price information
A43: Grant awards $2.5 million, funds advancement of new solar energy | F43: Mono Silicon Solar Module | G43: Visit here for more detail module price information
A44: Dailybarometer | E44: 2015-11-13 | F44: Unit: USD / Watt | G44: more | I44: Last Update: 2015-11-11
A45: Japan Gaming Machine Maker Completes 20MW Solar Power Plant | F45: All Spot Prices are Tax excluded and updated on Wednesday
A46: Bloomberg | E46: 2015-11-13
A47: Utility Money Far Outpaces Solar Money in Florida Ballot Standoff Over Grid Access
A48: Greentech Media | E48: 2015-11-13
A49: Sun brewed: Bitter Root Brewing praised for use of solar power system
A50: Ravalli Republic | E50: 2015-11-13
A51: Last Update: 2015-Nov- 13 23:01 (GMT+8)
A52: Price Methodology | B52: Terms of Use | C52: Privacy Policy | D52: About Us | E52: Contact Us | F52: Site Map
A53: Copyright © 2015 PVinsights.com All rights reserved

Sheet pvinsights 09 04 16
B1: Login | C1: Register | D1: Member Center
A3: Home | B3: Why Solar | C3: Retailer Price | D3: Contract Price | E3: Inverter Price | F3: Weekly Snapshots | G3: Price Download | H3: Monthly Insights | I3: Weekly Forecast | J3: Price Forecast | K3: Premier Insights | L3: Premier Data | M3: Advertising
A5: Final Phase of The 2014 US AD & CVD Key Date and Notice
A8: Solar PV Corporate News Release | F8: PV Poly Silicon Weekly Spot Price
A9: JinkoSolar Announces Fourth Quarter and Full Year 2015 Financial Results | F9: Item | G9: High | H9: Low | I9: Average | J9: AvgChg | K9: AvgChg%
A10: Jinko | C10: 2016-03-01 | F10: PV Grade Poly Silicon Price (9N / 9N+) | G10: 16.5 | H10: 12.7 | I10: 14.58 | J10: 0.14 | K10: 0.0097
A11: JinkoSolar Announces Fourth Quarter and Full Year 2015 Financial Results | F11: 2nd Grade Poly Silicon Price (6N - 8N) | G11: 14.4 | H11: 10.85 | I11: 12.14 | J11: 0.08 | K11: 0.0066
A12: Jinko | C12: 2016-03-01 | F12: PV Poly Silicon Price in China | G12: Visit here for more Poly-Si price | K12: 0.0176
A13: First Solar, Inc. Announces Fourth Quarter & Full Year 2015 Financial Results | F13: PV Poly Silicon Price Outside China | G13: Visit here for more Poly-Si price | K13: 0.007
A14: First Solar | C14: 2016-02-24 | F14: Unit: USD/Kg | G14: more | I14: Last Update: 2016-04-06
A15: SunPower Corp. announced financial results for its fourth quarter and fiscal year ended Jan. 3, 2016 | F15: Definition of PV Grade: Poly silicon chunk with high purity can be directly produced to Solar PV Ingots / Bricks
A16: Sunpower | C16: 2016-02-18 | F16: Definition of 2nd Grade: Poly silicon chunk must be mixed with high purity polysilicon, when producing Solar PV Ingots / Bricks.
A17: Trina Solar Announces Receipt of a Preliminary Non-Binding Proposal to Acquire the Company | F17: Solar PV Wafer Weekly Spot Price
A18: Trina | C18: 2015-12-14 | F18: Item | G18: High | H18: Low | I18: Average | J18: AvgChg | K18: AvgChg%
A19: Latest Solar PV News | F19: 156 mm Multi Solar Wafer | G19: 0.92 | H19: 0.84 | I19: 0.857 | J19: -0.001 | K19: -0.0012
F20: 156 mm High Eff Multi Solar Wafer | G20: 0.92 | H20: 0.85 | I20: 0.864 | J20: -0.002 | K20: -0.0023
A21: Africa Solar Photovoltaic (PV) Market Size, Regional Analysis, Price,Competitive Landscape & Forecast by 2023 ... | F21: 156 mm Mono Solar Wafer | G21: 0.96 | H21: 0.85 | I21: 0.893 | J21: -0.001 | K21: -0.0011
A22: Digital Journal | E22: 2016-04-09 | F22: 125 mm Mono Solar Wafer | G22: 0.61 | H22: 0.57 | I22: 0.589 | J22: 0 | K22: 0
A23: Photovoltaic Pump Industry 2016 Japan Market Analysis, Regional Forecasts, Major Applications, Requirements ... | F23: 156 mm Non (TW or CN) Multi Wafer | G23: Visit here for more detail wafer price information
A24: Digital Journal | E24: 2016-04-09 | F24: Unit: USD | G24: more | I24: Last Update: 2016-04-06
A25: n-tech Research Announces New Report on Organic Photovoltaic Markets
A26: PRUnderground (press release) | E26: 2016-04-09
A27: New Market Study Published: China Photovoltaic (PV) Glass Industry
A28: NewsMaker (press release) | E28: 2016-04-09
A29: Reader's View: Support officials who see benefits of solar power | F29: Solar PV Cell Weekly Spot Price
A30: Duluth News Tribune | E30: 2016-04-09 | F30: Item | G30: High | H30: Low | I30: Average | J30: AvgChg | K30: AvgChg %
A31: Massive solar storm would pose considerable dangers â are we ready? | F31: Multi Cell Price Per Watt | G31: 0.39 | H31: 0.28 | I31: 0.305 | J31: -0.01 | K31: -0.0317
A32: Gizmag | E32: 2016-04-09 | F32: Taiwan Poly Cell Per Watt | G32: 0.39 | H32: 0.29 | I32: 0.307 | J32: -0.011 | K32: -0.0346
A33: PV - Photovoltaic Glass Sales Market 2015 - Costs and Price, Market Trends and Technology Report 2015 By Radiant ... | F33: 156 mm Multi Solar Cell | G33: 1.75 | H33: 1.17 | I33: 1.345 | J33: -0.045 | K33: -0.0324
A34: Press Release Rocket | E34: 2016-04-09 | F34: 156 mm Mono Solar Cell | G34: 2.25 | H34: 1.46 | I34: 1.591 | J34: -0.004 | K34: -0.0025
A35: "Solar Photovoltaic (PV) in Republic of Korea, Market Outlook to 2030, Update 2016" Now Available | F35: 125 mm Mono Solar Cell | G35: 1.37 | H35: 0.86 | I35: 0.96 | J35: -0.003 | K35: -0.0031
A36: Digital Journal | E36: 2016-04-09 | F36: Non (TW or CN) Poly Cell Per Watt | G36: Visit here for more detail Cell price information
A37: Chile Solar Photovoltaic (PV) Market 2016 Analysis , Size, Share, Outlook 2030 | F37: Unit: USD | G37: more | I37: Last Update: 2016-04-06
A38: Patriarc | E38: 2016-04-09 | F38: Solar PV Module Weekly Spot Price
A39: Let the sun shine in: Church adds more solar panels | F39: Item | G39: High | H39: Low | I39: Average | J39: AvgChg | K39: AvgChg %
A40: Yakima Herald-Republic | E40: 2016-04-09 | F40: Poly Silicon Solar Module | G40: 0.74 | H40: 0.46 | I40: 0.533 | J40: -0.002 | K40: -0.0037
A41: Church installs more solar while awaiting decision | F41: ThinFilm Solar Module | G41: 0.74 | H41: 0.47 | I41: 0.562 | J41: -0.001 | K41: -0.0018
A42: Greensboro News & Record | E42: 2016-04-09 | F42: US Multi Solar Module | G42: Visit here for more detail module price information
A43: UPDATE 1-Solar power firms seek delay to Brazil solar farm startups | F43: Mono Silicon Solar Module | G43: Visit here for more detail module price information
A44: Reuters | E44: 2016-04-09 | F44: Unit: USD / Watt | G44: more | I44: Last Update: 2016-04-06
A45: City considering solar panel installation in downtown | F45: All Spot Prices are Tax excluded and updated on Wednesday
A46: Columbia Daily Tribune | E46: 2016-04-09
A47: San Diego No. 2 in nation for solar
A48: The San Diego Union-Tribune | E48: 2016-04-09
A49: Solar garden backers may seek bill to improve accessibility
A50: The Denver Post | E50: 2016-04-09
A51: Last Update: 2016-Apr- 09 20:00 (GMT+8)
A52: Price Methodology | B52: Terms of Use | C52: Privacy Policy | D52: About Us | E52: Contact Us | F52: Site Map
A53: Copyright © 2016 PVinsights.com All rights reserved

Sheet pvinsights 31 07 16
B1: Login | C1: Register | D1: Member Center
A3: Home | B3: Why Solar | C3: Retailer Price | D3: Contract Price | E3: Inverter Price | F3: Weekly Snapshots | G3: Price Download | H3: Monthly Insights | I3: Weekly Forecast | J3: Price Forecast | K3: Premier Insights | L3: Premier Data | M3: Advertising
A5: Final Phase of The 2014 US AD & CVD Key Date and Notice
A8: Solar PV Corporate News Release | F8: PV Poly Silicon Weekly Spot Price
A9: First Solar, Inc. Announces First Quarter 2016 Financial Results | F9: Item | G9: High | H9: Low | I9: Average | J9: AvgChg | K9: AvgChg%
A10: First Solar | C10: 2016-04-27 | F10: PV Grade Poly Silicon Price (9N / 9N+) | G10: 17.9 | H10: 14 | I10: 15.9 | J10: -0.11 | K10: -0.0069
A11: JinkoSolar Announces Fourth Quarter and Full Year 2015 Financial Results | F11: 2nd Grade Poly Silicon Price (6N - 8N) | G11: 15.8 | H11: 11.5 | I11: 12.98 | J11: -0.08 | K11: -0.0061
A12: Jinko | C12: 2016-03-01 | F12: PV Poly Silicon Price in China | G12: Visit here for more Poly-Si price | K12: -0.0076
A13: JinkoSolar Announces Fourth Quarter and Full Year 2015 Financial Results | F13: PV Poly Silicon Price Outside China | G13: Visit here for more Poly-Si price | K13: -0.0062
A14: Jinko | C14: 2016-03-01 | F14: Unit: USD/Kg | G14: more | I14: Last Update: 2016-07-27
A15: First Solar, Inc. Announces Fourth Quarter & Full Year 2015 Financial Results | F15: Definition of PV Grade: Poly silicon chunk with high purity can be directly produced to Solar PV Ingots / Bricks
A16: First Solar | C16: 2016-02-24 | F16: Definition of 2nd Grade: Poly silicon chunk must be mixed with high purity polysilicon, when producing Solar PV Ingots / Bricks.
A17: SunPower Corp. announced financial results for its fourth quarter and fiscal year ended Jan. 3, 2016 | F17: Solar PV Wafer Weekly Spot Price
A18: Sunpower | C18: 2016-02-18 | F18: Item | G18: High | H18: Low | I18: Average | J18: AvgChg | K18: AvgChg%
A19: Latest Solar PV News | F19: 156 mm Multi Solar Wafer | G19: 0.8 | H19: 0.7 | I19: 0.725 | J19: -0.015 | K19: -0.0203
F20: 156 mm High Eff Multi Solar Wafer | G20: 0.8 | H20: 0.71 | I20: 0.736 | J20: -0.013 | K20: -0.0174
A21: Solar projects can't save the forest for the trees? | F21: 156 mm Mono Solar Wafer | G21: 0.9 | H21: 0.78 | I21: 0.815 | J21: -0.02 | K21: -0.024
A22: Dubuque Telegraph Herald | E22: 2016-07-31 | F22: 125 mm Mono Solar Wafer | G22: 0.57 | H22: 0.55 | I22: 0.552 | J22: -0.004 | K22: -0.0072
A23: Warnings issued for farmers striking solar deals | F23: 156 mm Mono Wafer Outside China | G23: 0.9 | H23: 0.83 | I23: 0.842 | J23: -0.018 | K23: -0.0209
A24: Lockport Union-Sun & Journal | E24: 2016-07-31 | F24: 156 mm Multi Wafer Outside China | G24: Visit here for more detail wafer price information
A25: How NASA's Juno Will Teach Us About Other Solar Systems | F25: Unit: USD | G25: more | I25: Last Update: 2016-07-27
A26: Forbes | E26: 2016-07-31
A27: Optimum Tracker Selected for 30MW Photovoltaic Plant in Senegal
A28: Solar Novus Today | E28: 2016-07-31
A29: Solar project and history, Roosevelt School's fate
A30: Great Falls Tribune | E30: 2016-07-31 | F30: Solar PV Cell Weekly Spot Price
A31: American Solar Challenge underway | F31: Item | G31: High | H31: Low | I31: Average | J31: AvgChg | K31: AvgChg %
A32: WKYC-TV | E32: 2016-07-31 | F32: Multi Cell Price Per Watt | G32: 0.35 | H32: 0.23 | I32: 0.25 | J32: -0.005 | K32: -0.0196
A33: Vivint Solar & Renovate America Partnering To Expand Homeowner Access To Rooftop Solar PV Financing | F33: Taiwan Poly Cell Per Watt | G33: 0.35 | H33: 0.24 | I33: 0.254 | J33: -0.006 | K33: -0.0231
A34: CleanTechnica | E34: 2016-07-31 | F34: 156 mm Multi Solar Cell | G34: 1.6 | H34: 0.98 | I34: 1.122 | J34: -0.021 | K34: -0.0184
A35: New solar options for home and business owners coming to Weare | F35: 156 mm Mono Solar Cell | G35: 1.84 | H35: 1.18 | I35: 1.333 | J35: -0.042 | K35: -0.0305
A36: Concord Monitor | E36: 2016-07-31 | F36: 125 mm Mono Solar Cell | G36: 1.14 | H36: 0.7 | I36: 0.807 | J36: -0.027 | K36: -0.0324
A37: This one book will help you better understand solar energy | F37: Non (TW or CN) Poly Cell Per Watt | G37: Visit here for more detail Cell price information
A38: The San Gabriel Valley Tribune | E38: 2016-07-31 | F38: Unit: USD | G38: more | I38: Last Update: 2016-07-27
A39: American Solar Challenge is underway | WKYC.com | F39: Solar PV Module Weekly Spot Price
A40: WKYC-TV | E40: 2016-07-31 | F40: Item | G40: High | H40: Low | I40: Average | J40: AvgChg | K40: AvgChg %
A41: Breakthrough invention of solar cell that works like a plant | F41: Poly Silicon Solar Module | G41: 0.67 | H41: 0.4 | I41: 0.48 | J41: -0.007 | K41: -0.0144
A42: The Indian Express | E42: 2016-07-31 | F42: ThinFilm Solar Module | G42: 0.68 | H42: 0.4 | I42: 0.506 | J42: -0.006 | K42: -0.0117
A43: Solar deals come with caveats for farmers | Local News ... | F43: US Multi Solar Module | G43: Visit here for more detail module price information
A44: Plattsburgh Press Republican | E44: 2016-07-31 | F44: Mono Silicon Solar Module | G44: Visit here for more detail module price information
A45: New solar option rises for county | F45: Unit: USD / Watt | G45: more | I45: Last Update: 2016-07-27
A46: Niagara Gazette | E46: 2016-07-31 | F46: All Spot Prices are Tax excluded and updated on Wednesday
A47: How Juno Gathers Solar Power 588 Million KM from Sun
A48: EE Times | E48: 2016-07-31
A49: MIT researchers host Reddit Ask Me Anything session on photovoltaic EDR system
A50: desalination.biz | E50: 2016-07-30
A51: Last Update: 2016-Jul- 31 20:00 (GMT+8)
A52: Price Methodology | B52: Terms of Use | C52: Privacy Policy | D52: About Us | E52: Contact Us | F52: Site Map
A53: Copyright © 2016 PVinsights.com All rights reserved

Sheet pvinsights 01 08 16
B1: Login | C1: Register | D1: Member Center
A3: Home | B3: Why Solar | C3: Retailer Price | D3: Contract Price | E3: Inverter Price | F3: Weekly Snapshots | G3: Price Download | H3: Monthly Insights | I3: Weekly Forecast | J3: Price Forecast | K3: Premier Insights | L3: Premier Data | M3: Advertising
A5: Final Phase of The 2014 US AD & CVD Key Date and Notice
A8: Solar PV Corporate News Release | F8: PV Poly Silicon Weekly Spot Price
A9: First Solar, Inc. Announces First Quarter 2016 Financial Results | F9: Item | G9: High | H9: Low | I9: Average | J9: AvgChg | K9: AvgChg%
A10: First Solar | C10: 2016-04-27 | F10: PV Grade Poly Silicon Price (9N / 9N+) | G10: 17.9 | H10: 14 | I10: 15.9 | J10: -0.11 | K10: -0.0069
A11: JinkoSolar Announces Fourth Quarter and Full Year 2015 Financial Results | F11: 2nd Grade Poly Silicon Price (6N - 8N) | G11: 15.8 | H11: 11.5 | I11: 12.98 | J11: -0.08 | K11: -0.0061
A12: Jinko | C12: 2016-03-01 | F12: PV Poly Silicon Price in China | G12: Visit here for more Poly-Si price | K12: -0.0076
A13: JinkoSolar Announces Fourth Quarter and Full Year 2015 Financial Results | F13: PV Poly Silicon Price Outside China | G13: Visit here for more Poly-Si price | K13: -0.0062
A14: Jinko | C14: 2016-03-01 | F14: Unit: USD/Kg | G14: more | I14: Last Update: 2016-07-27
A15: First Solar, Inc. Announces Fourth Quarter & Full Year 2015 Financial Results | F15: Definition of PV Grade: Poly silicon chunk with high purity can be directly produced to Solar PV Ingots / Bricks
A16: First Solar | C16: 2016-02-24 | F16: Definition of 2nd Grade: Poly silicon chunk must be mixed with high purity polysilicon, when producing Solar PV Ingots / Bricks.
A17: SunPower Corp. announced financial results for its fourth quarter and fiscal year ended Jan. 3, 2016 | F17: Solar PV Wafer Weekly Spot Price
A18: Sunpower | C18: 2016-02-18 | F18: Item | G18: High | H18: Low | I18: Average | J18: AvgChg | K18: AvgChg%
A19: Latest Solar PV News | F19: 156 mm Multi Solar Wafer | G19: 0.8 | H19: 0.7 | I19: 0.725 | J19: -0.015 | K19: -0.0203
F20: 156 mm High Eff Multi Solar Wafer | G20: 0.8 | H20: 0.71 | I20: 0.736 | J20: -0.013 | K20: -0.0174
A21: UMass Amherst installing thousands of photovoltaic panels | F21: 156 mm Mono Solar Wafer | G21: 0.9 | H21: 0.78 | I21: 0.815 | J21: -0.02 | K21: -0.024
A22: The Recorder | E22: 2016-08-01 | F22: 125 mm Mono Solar Wafer | G22: 0.57 | H22: 0.55 | I22: 0.552 | J22: -0.004 | K22: -0.0072
A23: Telangana beats solar power target; 10 per cent more than demand | F23: 156 mm Mono Wafer Outside China | G23: 0.9 | H23: 0.83 | I23: 0.842 | J23: -0.018 | K23: -0.0209
A24: Deccan Chronicle | E24: 2016-08-01 | F24: 156 mm Multi Wafer Outside China | G24: Visit here for more detail wafer price information
A25: Cycle Of Life: 79 days, 7513 km to raise solar awareness, IIT innovator peddles his way to glory | F25: Unit: USD | G25: more | I25: Last Update: 2016-07-27
A26: The Indian Express | E26: 2016-08-01
A27: DESERT SOLAR: Here's how researchers hope to track bird deaths at Ivanpah plant
A28: Press-Enterprise | E28: 2016-08-01
A29: Artificial Leaf: New Solar Cell Uses Carbon Dioxide And Sunlight To ...
A30: Tech Times | E30: 2016-08-01 | F30: Solar PV Cell Weekly Spot Price
A31: Solar solution for Barmer's water woes | F31: Item | G31: High | H31: Low | I31: Average | J31: AvgChg | K31: AvgChg %
A32: Times of India | E32: 2016-08-01 | F32: Multi Cell Price Per Watt | G32: 0.35 | H32: 0.23 | I32: 0.25 | J32: -0.005 | K32: -0.0196
A33: Renewables Advocates Assess 'Stark' Difference Between Clinton and Trump On Solar and Wind | F33: Taiwan Poly Cell Per Watt | G33: 0.35 | H33: 0.24 | I33: 0.254 | J33: -0.006 | K33: -0.0231
A34: Forbes | E34: 2016-08-01 | F34: 156 mm Multi Solar Cell | G34: 1.6 | H34: 0.98 | I34: 1.122 | J34: -0.021 | K34: -0.0184
A35: Valley man creates solar-powered pool cleaner | F35: 156 mm Mono Solar Cell | G35: 1.84 | H35: 1.18 | I35: 1.333 | J35: -0.042 | K35: -0.0305
A36: FOX 10 News Phoenix | E36: 2016-08-01 | F36: 125 mm Mono Solar Cell | G36: 1.14 | H36: 0.7 | I36: 0.807 | J36: -0.027 | K36: -0.0324
A37: Will TeslaSolar continue to outsource the brain of its solar systems â the inverter â or develop in house? | F37: Non (TW or CN) Poly Cell Per Watt | G37: Visit here for more detail Cell price information
A38: Electrek | E38: 2016-08-01 | F38: Unit: USD | G38: more | I38: Last Update: 2016-07-27
A39: Could The Next Solar Power Plant Be At Chernobyl? | F39: Solar PV Module Weekly Spot Price
A40: Forbes | E40: 2016-08-01 | F40: Item | G40: High | H40: Low | I40: Average | J40: AvgChg | K40: AvgChg %
A41: Lowell hoping to power up solar project at treatment plant | Lake ... | F41: Poly Silicon Solar Module | G41: 0.67 | H41: 0.4 | I41: 0.48 | J41: -0.007 | K41: -0.0144
A42: nwitimes.com | E42: 2016-08-01 | F42: ThinFilm Solar Module | G42: 0.68 | H42: 0.4 | I42: 0.506 | J42: -0.006 | K42: -0.0117
A43: Solar Device Turns Carbon Dioxide Into Burnable Energy | F43: US Multi Solar Module | G43: Visit here for more detail module price information
A44: Headlines & Global News | E44: 2016-08-01 | F44: Mono Silicon Solar Module | G44: Visit here for more detail module price information
A45: Warnings issued for farmers striking solar deals | Local News ... | F45: Unit: USD / Watt | G45: more | I45: Last Update: 2016-07-27
A46: Lockport Union-Sun & Journal | E46: 2016-08-01 | F46: All Spot Prices are Tax excluded and updated on Wednesday
A47: Cycle Of Life: 9 days, 7513 km to raise solar awareness, IIT innovator peddles his way to glory
A48: The Indian Express | E48: 2016-08-01
A49: Chernobyl Wasteland Could Become One Large Solar Plant | Digital ...
A50: Digital Trends | E50: 2016-08-01
A51: Last Update: 2016-Aug- 01 14:00 (GMT+8)
A52: Price Methodology | B52: Terms of Use | C52: Privacy Policy | D52: About Us | E52: Contact Us | F52: Site Map
A53: Copyright © 2016 PVinsights.com All rights reserved

Sheet pvinsights 02 10 16
B1: Login | C1: Register | D1: Member Center
A3: Home | B3: Why Solar | C3: Retailer Price | D3: Contract Price | E3: Inverter Price | F3: Weekly Snapshots | G3: Price Download | H3: Monthly Insights | I3: Weekly Forecast | J3: Price Forecast | K3: Premier Insights | L3: Premier Data | M3: Advertising
A5: Final Phase of The 2014 US AD & CVD Key Date and Notice
A8: Solar PV Corporate News Release | F8: PV Poly Silicon Weekly Spot Price
A9: Hanwha Q CELLS Reports Second Quarter 2016 Results | F9: Item | G9: High | H9: Low | I9: Average | J9: AvgChg | K9: AvgChg%
A10: Hanwha Solar | C10: 2016-08-23 | F10: PV Grade PolySilicon (9N/9N+) | G10: 14.5 | H10: 11 | I10: 12.65 | J10: -0.18 | K10: -0.014
A11: Yingli Green Energy Reports Second Quarter 2016 Results | F11: 2nd Grade PolySilicon (6N-8N) | G11: 13.5 | H11: 10 | I11: 10.98 | J11: -0.17 | K11: -0.0152
A12: Yingli | C12: 2016-08-23 | F12: PV Grade PolySilicon in China (9N/9N+) | G12: Visit here for more Poly-Si price | K12: %
A13: Canadian Solar Reports Second Quarter 2016 Results | F13: PV Grade PolySilicon Outside China (9N/9N+) | G13: Visit here for more Poly-Si price | K13: %
A14: Canadian Sol | C14: 2016-08-18 | F14: Unit: USD/Kg | G14: more | I14: Last Update: 2016-09-28
A15: JA Solar Announces Second Quarter 2016 Results | F15: Definition of PV Grade: Poly silicon chunk with high purity can be directly produced to Solar PV Ingots / Bricks
A16: JA Solar | C16: 2016-08-17 | F16: Definition of 2nd Grade: Poly silicon chunk must be mixed with high purity polysilicon, when producing Solar PV Ingots / Bricks.
A17: SunPower Reports Second Quarter 2016 Results | F17: Solar PV Wafer Weekly Spot Price
A18: SunPower | C18: 2016-08-10 | F18: Item | G18: High | H18: Low | I18: Average | J18: AvgChg | K18: AvgChg%
A19: Latest Solar PV News | F19: 156 mm Multi Solar Wafer | G19: 0.59 | H19: 0.48 | I19: 0.51 | J19: 0 | K19: 0
F20: 156 mm High Eff Multi Solar Wafer | G20: 0.59 | H20: 0.5 | I20: 0.516 | J20: 0 | K20: 0
A21: Photovoltaic Solar panels is anticipated to reach $125.5 billion till year 2016. | F21: 156 mm Mono Solar Wafer | G21: 0.72 | H21: 0.63 | I21: 0.654 | J21: 0 | K21: 0
A22: NewsMaker (press release) | E22: 2016-10-02 | F22: 156 mm Mono Wafer Outside China | G22: 0.72 | H22: 0.67 | I22: 0.675 | J22: 0 | K22: 0
A23: Home News The Solar Industry Is Set To Soar Again Through the Use of... | F23: 156 mm Multi Wafer Outside China | G23: Visit here for more detail wafer price information
A24: Trendintech (press release) | E24: 2016-10-02 | F24: 156 mm N-Mono Wafer | G24: Visit here for more detail
A25: Results for DC Solar 350 Truck Series race in Las Vegas | F25: Unit: USD | G25: more | I25: Last Update: 2016-09-28
A26: FOXSports.com | E26: 2016-10-02
A27: Solar deals carry risks for farmers
A28: Lockport Union-Sun & Journal | E28: 2016-10-02
A29: Hawaii Sitting On The Lid Of A Solar Explosion
A30: Forbes | E30: 2016-10-02 | F30: Solar PV Cell Weekly Spot Price
A31: Perovskite Photovoltaics 2015-2025: Technologies, Markets, Players | F31: Item | G31: High | H31: Low | I31: Average | J31: AvgChg | K31: AvgChg %
A32: PR Newswire (press release) | E32: 2016-10-02 | F32: Multi Cell Price Per Watt | G32: 0.28 | H32: 0.17 | I32: 0.188 | J32: 0 | K32: 0
A33: Solar project to add power to West Boylston grid | F33: Taiwan Poly Cell Per Watt | G33: 0.28 | H33: 0.17 | I33: 0.19 | J33: 0 | K33: 0
A34: Worcester Telegram | E34: 2016-10-02 | F34: 156 mm Multi Solar Cell | G34: 1.28 | H34: 0.72 | I34: 0.843 | J34: 0 | K34: 0
A35: Solar power attractive for region - Eau Claire Leader-Telegram | F35: 156 mm Mono Solar Cell | G35: 1.49 | H35: 0.95 | I35: 1.032 | J35: 0 | K35: 0
A36: Leader-Telegram | E36: 2016-10-02 | F36: 125 mm Mono Solar Cell | G36: 0.93 | H36: 0.57 | I36: 0.633 | J36: 0 | K36: 0
A37: Facts About the Solar Storm -- Massive Radiation Blasting the Earth | F37: Non (TW or CN) Poly Cell Per Watt | G37: Visit here for more detail Cell price information
A38: Nature World News | E38: 2016-10-02 | F38: Unit: USD | G38: more | I38: Last Update: 2016-09-28
A39: East Dundee's new police station part of Illinois Solar Tour | F39: Solar PV Module Weekly Spot Price
A40: Chicago Tribune | E40: 2016-10-02 | F40: Item | G40: High | H40: Low | I40: Average | J40: AvgChg | K40: AvgChg %
A41: Northern Idaho Solar Roadway Unveiling Pushed to Saturday | F41: Poly Silicon Solar Module | G41: 0.53 | H41: 0.34 | I41: 0.402 | J41: -0.008 | K41: -0.0195
A42: Boise Weekly | E42: 2016-10-02 | F42: ThinFilm Solar Module | G42: 0.54 | H42: 0.34 | I42: 0.42 | J42: -0.01 | K42: -0.0233
A43: Elgin mayor touts solar power by showcasing his house on tour | F43: US Multi Solar Module | G43: Visit here for more detail module price information
A44: Chicago Tribune | E44: 2016-10-02 | F44: Mono Silicon Solar Module | G44: Visit here for more detail module price information
A45: Weekend Workshop: Keep on rocking off the grid with a DIY solar Bluetooth speaker | F45: India Poly Module | G45: Visit here for more detail module price information
A46: Digital Trends | E46: 2016-10-02 | F46: Unit: USD / Watt | G46: more | I46: Last Update: 2016-09-28
A47: NREL Report Shows US Solar Photovoltaic Costs Continuing to Fall in 2016 | F47: All Spot Prices are Tax excluded and updated on Wednesday
A48: AltEnergyMag (press release) | E48: 2016-10-01
A49: 10 megawatt solar photovoltaic power plant for Monrovia
A50: Liberian Daily Observer | E50: 2016-10-01
A51: Last Update: 2016-Oct- 02 14:01 (GMT+8)
A53: Price Methodology | B53: Terms of Use | C53: Privacy Policy | D53: About Us | E53: Contact Us | F53: Site Map
A54: Copyright © 2016 PVinsights.com All rights reserved

Sheet pvinsights 08 01 17
B1: Login | C1: Register | D1: Member Center
A3: Home | B3: Why Solar | C3: Retailer Price | D3: Contract Price | E3: Inverter Price | F3: Weekly Snapshots | G3: Price Download | H3: Monthly Insights | I3: Weekly Forecast | J3: Price Forecast | K3: Premier Insights | L3: Premier Data | M3: Advertising
A5: Final Phase of The 2014 US AD & CVD Key Date and Notice
A8: Solar PV Corporate News Release | F8: PV Poly Silicon Weekly Spot Price
A9: Trina Solar Announces Third Quarter 2016 Results | F9: Item | G9: High | H9: Low | I9: Average | J9: AvgChg | K9: AvgChg%
A10: Trina Solar | C10: Nov 23, 2016 | F10: PV Grade PolySilicon (9N/9N+) | G10: 17.5 | H10: 13 | I10: 15.37 | J10: 0.14 | K10: 0.0092
A11: Canadian Solar Reports Third Quarter 2016 Results | F11: 2nd Grade PolySilicon (6N-8N) | G11: 16.5 | H11: 11.5 | I11: 13.1 | J11: 0.1 | K11: 0.0077
A12: Canadian Sol | C12: Nov 21, 2016 | F12: PV Grade PolySilicon in China (9N/9N+) | G12: Visit here for more Poly-Si price | K12: %
A13: JASolar Announces Third Quarter 2016 Financial Results | F13: PV Grade PolySilicon Outside China (9N/9N+) | G13: Visit here for more Poly-Si price | K13: %
A14: JA Solar | C14: Nov 17, 2016 | F14: Unit: USD/Kg | G14: more | I14: Last Update: 2017-01-04
A15: JinkoSolar Announces Third Quarter 2016 Financial Results | F15: Definition of PV Grade: Poly silicon chunk with high purity can be directly produced to Solar PV Ingots / Bricks
A16: Jinko | C16: Nov 16, 2016 | F16: Definition of 2nd Grade: Poly silicon chunk must be mixed with high purity polysilicon, when producing Solar PV Ingots / Bricks.
A17: SunPower Reports Third Quarter 2016 Results | F17: Solar PV Wafer Weekly Spot Price
A18: SunPower | C18: Nov 10, 2016 | F18: Item | G18: High | H18: Low | I18: Average | J18: AvgChg | K18: AvgChg%
A19: Latest Solar PV News | F19: 156 mm Multi Solar Wafer | G19: 0.68 | H19: 0.61 | I19: 0.621 | J19: -0.002 | K19: -0.0032
F20: 156 mm High Eff Multi Solar Wafer | G20: 0.68 | H20: 0.62 | I20: 0.626 | J20: -0.002 | K20: -0.0032
A21: Solar Farm Companies Stock Explode in Wake of De-Regulation | F21: 156 mm Mono Solar Wafer | G21: 0.85 | H21: 0.74 | I21: 0.77 | J21: 0 | K21: 0
A22: Yahoo Finance | E22: Jan 08, 2017 | F22: 156 mm Mono Wafer Outside China | G22: 0.85 | H22: 0.78 | I22: 0.798 | J22: 0 | K22: 0
A23: Solar Bears fall 5-2 to Colorado Eagles - Orlando Sentinel | F23: 156 mm Multi Wafer Outside China | G23: Visit here for more detail wafer price information
A24: Orlando Sentinel | E24: Jan 08, 2017 | F24: 156 mm N-Mono Wafer | G24: Visit here for more detail
A25: A star is hurtling towards our solar system and could knock millions of asteroids straight towards Earth | F25: Unit: USD | G25: more | I25: Last Update: 2017-01-04
A26: Business Insider | E26: Jan 08, 2017
A27: LETTER: Solar bylaw amendment proposal - News - Wicked Local ...
A28: Wicked Local Brockton | E28: Jan 08, 2017
A29: Building-Integrated Photovoltaic (BIPV) Roofing Market â Global Industry Analysis 2024
A30: Satellite PR News (press release) | E30: Jan 08, 2017 | F30: Solar PV Cell Weekly Spot Price
A31: Solar Bears fall 5-2 to Colorado Eagles | F31: Item | G31: High | H31: Low | I31: Average | J31: AvgChg | K31: AvgChg %
A32: Orlando Sentinel | E32: Jan 08, 2017 | F32: Multi Cell Price Per Watt | G32: 0.26 | H32: 0.2 | I32: 0.213 | J32: -0.002 | K32: -0.0093
A33: Solar storms trigger sparks, melt soil on Moon: NASA | F33: Taiwan Poly Cell Per Watt | G33: 0.26 | H33: 0.21 | I33: 0.214 | J33: -0.002 | K33: -0.0093
A34: Economic Times | E34: Jan 08, 2017 | F34: 156 mm Multi Solar Cell | G34: 1.19 | H34: 0.85 | I34: 0.955 | J34: -0.01 | K34: -0.0104
A35: Kenai Wildlife Refuge to track solar energy output | F35: 156 mm Mono Solar Cell | G35: 1.75 | H35: 1.04 | I35: 1.143 | J35: -0.009 | K35: -0.0078
A36: Juneau Empire (subscription) | E36: Jan 08, 2017 | F36: 125 mm Mono Solar Cell | G36: 1.09 | H36: 0.62 | I36: 0.7 | J36: -0.006 | K36: -0.0085
A37: LETTER: Solar bylaw amendment proposal | F37: Non (TW or CN) Poly Cell Per Watt | G37: Visit here for more detail Cell price information
A38: Wicked Local Brockton | E38: Jan 08, 2017 | F38: Unit: USD | G38: more | I38: Last Update: 2017-01-04
A39: LETTER FROM HOME / HAROLD BUBIL: The other reasons to 'go solar' | F39: Solar PV Module Weekly Spot Price
A40: Sarasota Herald-Tribune | E40: Jan 08, 2017 | F40: Item | G40: High | H40: Low | I40: Average | J40: AvgChg | K40: AvgChg %
A41: Stock Mover of the Day: Is Yingli Green Energy Holding Co Ltd (ADR) a Buy? The Stock Rises Again | F41: Poly Silicon Solar Module | G41: 0.42 | H41: 0.31 | I41: 0.358 | J41: -0.002 | K41: -0.0056
A42: Frisco Fastball | E42: Jan 08, 2017 | F42: ThinFilm Solar Module | G42: 0.43 | H42: 0.31 | I42: 0.374 | J42: -0.002 | K42: -0.0053
A43: Solar developer proposes 300-acre set-aside in Shoreham | F43: US Multi Solar Module | G43: Visit here for more detail module price information
A44: Newsday | E44: Jan 08, 2017 | F44: Mono Silicon Solar Module | G44: Visit here for more detail module price information
A45: For rural Urbana farmer, solar power is cool | F45: India Poly Module | G45: Visit here for more detail module price information
A46: Champaign/Urbana News-Gazette | E46: Jan 08, 2017 | F46: Unit: USD / Watt | G46: more | I46: Last Update: 2017-01-04
A47: LETTER: Solar bylaw amendment proposal | F47: All Spot Prices are Tax excluded and updated on Wednesday
A48: Wicked Local Abington | E48: Jan 08, 2017
A49: Jagler: Werner sees bright future in solar energy
A50: Milwaukee Journal Sentinel | E50: Jan 08, 2017
A51: Last Update: 2017-Jan- 08 23:00 (GMT+8)
A52: Price Methodology | B52: Terms of Use | C52: Privacy Policy | D52: About Us | E52: Contact Us | F52: Site Map
A53: Copyright © 2017 PVinsights.com All rights reserved

Sheet pvinsights 26 02 17
B1: Login | C1: Register | D1: Member Center
A3: Home | B3: Why Solar | C3: Retailer Price | D3: Contract Price | E3: Inverter Price | F3: Weekly Snapshots | G3: Price Download | H3: Monthly Insights | I3: Weekly Forecast | J3: Price Forecast | K3: Premier Insights | L3: Premier Data | M3: Advertising
A5: Final Phase of The 2014 US AD & CVD Key Date and Notice
A8: Solar PV Corporate News Release | F8: PV Poly Silicon Weekly Spot Price
A9: First Solar, Inc. Announces Fourth Quarter & Full Year 2016 Financial Results | F9: Item | G9: High | H9: Low | I9: Average | J9: AvgChg | K9: AvgChg%
A10: First Solar | C10: Feb 22, 2017 | F10: PV Grade PolySilicon (9N/9N+) | G10: 18.09 | H10: 13.5 | I10: 16.22 | J10: -0.03 | K10: -0.0018
A11: SunPower Reports Fourth Quarter 2016 Results | F11: 2nd Grade PolySilicon (6N-8N) | G11: 17 | H11: 11.5 | I11: 13.46 | J11: -0.09 | K11: -0.0066
A12: Sunpower | C12: Feb 16, 2017 | F12: PV Grade PolySilicon in China (9N/9N+) | G12: Visit here for more Poly-Si price | K12: %
A13: Trina Solar Announces Third Quarter 2016 Results | F13: PV Grade PolySilicon Outside China (9N/9N+) | G13: Visit here for more Poly-Si price | K13: %
A14: Trina Solar | C14: Nov 23, 2016 | F14: Unit: USD/Kg | G14: more | I14: Last Update: 2017-02-22
A15: Canadian Solar Reports Third Quarter 2016 Results | F15: Definition of PV Grade: Poly silicon chunk with high purity can be directly produced to Solar PV Ingots / Bricks
A16: Canadian Sol | C16: Nov 21, 2016 | F16: Definition of 2nd Grade: Poly silicon chunk must be mixed with high purity polysilicon, when producing Solar PV Ingots / Bricks.
A17: JASolar Announces Third Quarter 2016 Financial Results | F17: Solar PV Wafer Weekly Spot Price
A18: JA Solar | C18: Nov 17, 2016 | F18: Item | G18: High | H18: Low | I18: Average | J18: AvgChg | K18: AvgChg%
A19: Latest Solar PV News | F19: 156 mm Multi Solar Wafer | G19: 0.68 | H19: 0.61 | I19: 0.62 | J19: 0 | K19: 0
F20: 156 mm High Eff Multi Solar Wafer | G20: 0.68 | H20: 0.62 | I20: 0.625 | J20: 0 | K20: 0
A21: Solar panels get a face-lift with custom designs | F21: 156 mm Mono Solar Wafer | G21: 0.86 | H21: 0.77 | I21: 0.8 | J21: 0.008 | K21: 0.0101
A22: The MIT Tech | E22: Feb 26, 2017 | F22: 156 mm Mono Wafer Outside China | G22: 0.86 | H22: 0.8 | I22: 0.828 | J22: 0.01 | K22: 0.0122
A23: Malakoff to go it alone in solar photovoltaic project | F23: 156 mm Multi Wafer Outside China | G23: Visit here for more detail wafer price information
A24: The Sun Daily | E24: Feb 26, 2017 | F24: 156mm DiamondWire Poly Wafer | G24: Visit here for more detail wafer price information
A25: Global Thin Film Photovoltaic Modules Market 2017- Dunmore Corporation, Solarpower Systems, Kaneka-Solar, Aleo ... | F25: 156 mm N-Mono Wafer | G25: Visit here for more detail
A26: Publicist Report - Market Research News by Market.Biz (press release) | E26: Feb 26, 2017 | F26: Unit: USD | G26: more | I26: Last Update: 2017-02-22
A27: Mason City Library solar energy system has bright results
A28: Mason City Globe Gazette | E28: Feb 26, 2017
A29: Low cost solar imports from China hurting Centre's Make in India mission
A30: The Hindu | E30: Feb 26, 2017
A31: Solar's bright future seen in financing options | F31: Solar PV Cell Weekly Spot Price
A32: STLtoday.com | E32: Feb 26, 2017 | F32: Item | G32: High | H32: Low | I32: Average | J32: AvgChg | K32: AvgChg %
A33: Don't let utilities squash Kentucky's solar entrepreneurs. Here's a better plan. | F33: Multi Cell Price Per Watt | G33: 0.26 | H33: 0.2 | I33: 0.211 | J33: -0.001 | K33: -0.0047
A34: Lexington Herald Leader (blog) | E34: Feb 26, 2017 | F34: Taiwan Poly Cell Per Watt | G34: 0.26 | H34: 0.2 | I34: 0.212 | J34: -0.001 | K34: -0.0047
A35: A 'ring of fire' solar eclipse occurs Sunday morning â here's how to watch | F35: 156 mm Multi Solar Cell | G35: 1.19 | H35: 0.85 | I35: 0.946 | J35: -0.004 | K35: -0.0042
A36: Chicago Tribune | E36: Feb 26, 2017 | F36: 156 mm Mono Solar Cell | G36: 1.75 | H36: 1.04 | I36: 1.143 | J36: 0 | K36: 0
A37: Global Photovoltaic Coating Market 2017 â 3M, AK Coatings, AkzoNobel, AnCatt, Arkema | F37: 125 mm Mono Solar Cell | G37: 1.09 | H37: 0.62 | I37: 0.7 | J37: 0 | K37: 0
A38: First Newshawk | E38: Feb 26, 2017 | F38: Non (TW or CN) Poly Cell Per Watt | G38: Visit here for more detail Cell price information
A39: Solar photovoltaic windows rely on inexpensive silicon quantum dots | F39: Unit: USD | G39: more | I39: Last Update: 2017-02-22
A40: Laser Focus World | E40: Feb 26, 2017 | F40: Solar PV Module Weekly Spot Price
A41: This Week in Solar | F41: Item | G41: High | H41: Low | I41: Average | J41: AvgChg | K41: AvgChg %
A42: Madison.com | E42: Feb 26, 2017 | F42: Poly Silicon Solar Module | G42: 0.41 | H42: 0.3 | I42: 0.35 | J42: -0.002 | K42: -0.0057
A43: Other counties eye solar farm rules - Daily Advance | F43: ThinFilm Solar Module | G43: 0.42 | H43: 0.31 | I43: 0.363 | J43: -0.002 | K43: -0.0055
A44: The Daily Advance | E44: Feb 26, 2017 | F44: US Multi Solar Module | G44: Visit here for more detail module price information
A45: Solar-powered smoothies? You can find them at this Kendall farm. | F45: Mono Silicon Solar Module | G45: Visit here for more detail module price information
A46: Miami Herald | E46: Feb 26, 2017 | F46: India Poly Module | G46: Visit here for more detail module price information
A47: SC solar farms on hold, awaiting tax break | F47: Unit: USD / Watt | G47: more | I47: Last Update: 2017-02-22
A48: The State | E48: Feb 26, 2017 | F48: All Spot Prices are Tax excluded and updated on Wednesday
A49: Airport, solar and local real estate
A50: Florida Today | E50: Feb 26, 2017
A51: Last Update: 2017-Feb- 26 14:00 (GMT+8)
A54: Price Methodology | B54: Terms of Use | C54: Privacy Policy | D54: About Us | E54: Contact Us | F54: Site Map
A55: Copyright © 2017 PVinsights.com All rights reserved

Sheet pvinsights 06 04 17
B1: Login | C1: Register | D1: Member Center
A3: Home | B3: Why Solar | C3: Retailer Price | D3: Contract Price | E3: Inverter Price | F3: Weekly Snapshots | G3: Price Download | H3: Monthly Insights | I3: Weekly Forecast | J3: Price Forecast | K3: Premier Insights | L3: Premier Data | M3: Advertising
A5: Final Phase of The 2014 US AD & CVD Key Date and Notice
A8: Solar PV Corporate News Release | F8: PV Poly Silicon Weekly Spot Price
A9: Hanwha Q CELLS Reports Fourth Quarter and Full Year 2016 Results | F9: Item | G9: High | H9: Low | I9: Average | J9: AvgChg | K9: AvgChg%
A10: Hanwha | C10: Mar 23, 2017 | F10: PV Grade PolySilicon (9N/9N+) | G10: 15.5 | H10: 12.8 | I10: 14.21 | J10: -0.42 | K10: -0.0287
A11: JA Solar Announces Fourth Quarter and Fiscal Year 2016 Results | F11: 2nd Grade PolySilicon (6N-8N) | G11: 14.5 | H11: 10.8 | I11: 11.83 | J11: -0.29 | K11: -0.0239
A12: JA Solar | C12: Mar 16, 2017 | F12: PV Grade PolySilicon in China (9N/9N+) | G12: Visit here for more Poly-Si price | K12: %
A13: Higher yield of solar wafers and enhanced solar cell efficiency with new HeraGlaze coating by Heraeus | F13: PV Grade PolySilicon Outside China (9N/9N+) | G13: Visit here for more Poly-Si price | K13: %
A14: Heraeus | C14: Mar 01, 2017 | F14: Unit: USD/Kg | G14: more | I14: Last Update: 2017-04-05
A15: Heraeus enables significant higher efficiency gains with three new metallization pastes | F15: Definition of PV Grade: Poly silicon chunk with high purity can be directly produced to Solar PV Ingots / Bricks
A16: Heraeus | C16: Mar 01, 2017 | F16: Definition of 2nd Grade: Poly silicon chunk must be mixed with high purity polysilicon, when producing Solar PV Ingots / Bricks.
A17: First Solar, Inc. Announces Fourth Quarter & Full Year 2016 Financial Results | F17: Solar PV Wafer Weekly Spot Price
A18: First Solar | C18: Feb 22, 2017 | F18: Item | G18: High | H18: Low | I18: Average | J18: AvgChg | K18: AvgChg%
A19: Latest Solar PV News | F19: 156 mm Multi Solar Wafer | G19: 0.62 | H19: 0.54 | I19: 0.555 | J19: -0.01 | K19: -0.0177
F20: 156 mm High Eff Multi Solar Wafer | G20: 0.62 | H20: 0.55 | I20: 0.56 | J20: -0.01 | K20: -0.0175
A21: New wrinkle for roof repairs: Panasonic photovoltaic roof for plug-in Toyota Prius | F21: 156 mm Mono Solar Wafer | G21: 0.86 | H21: 0.77 | I21: 0.8 | J21: 0 | K21: 0
A22: Repairer Driven News (press release) (blog) | E22: Apr 06, 2017 | F22: 156 mm Mono Wafer Outside China | G22: 0.86 | H22: 0.8 | I22: 0.828 | J22: 0 | K22: 0
A23: Sluggish Growth Forecast in Key Photovoltaic Markets - Solar Novus ... | F23: 156 mm Multi Wafer Outside China | G23: Visit here for more detail wafer price information
A24: Solar Novus Today | E24: Apr 06, 2017 | F24: 156mm DiamondWire Poly Wafer | G24: Visit here for more detail wafer price information
A25: Multicrystalline Photovoltaic Modules Market Competition Analysis by Type, Region Forecast 2021 | F25: 156 mm N-Mono Wafer | G25: Visit here for more detail
A26: MilTech | E26: Apr 06, 2017 | F26: Unit: USD | G26: more | I26: Last Update: 2017-04-05
A27: COD Offers Photovoltaic Training
A28: Patch.com | E28: Apr 06, 2017
A29: Are Solar Stocks Due for a Rebound? (FAN, FSLR)
A30: Investopedia | E30: Apr 06, 2017
A31: First Solar wants out of 'yieldco' venture with SunPower | F31: Solar PV Cell Weekly Spot Price
A32: Reuters | E32: Apr 06, 2017 | F32: Item | G32: High | H32: Low | I32: Average | J32: AvgChg | K32: AvgChg %
A33: Australia launches overdue shift to solar | F33: Multi Cell Price Per Watt | G33: 0.25 | H33: 0.18 | I33: 0.19 | J33: -0.002 | K33: -0.0104
A34: Deutsche Welle | E34: Apr 06, 2017 | F34: Taiwan Poly Cell Per Watt | G34: 0.25 | H34: 0.18 | I34: 0.191 | J34: -0.002 | K34: -0.0104
A35: School sees solar panels as bright idea | F35: 156 mm Multi Solar Cell | G35: 1.14 | H35: 0.77 | I35: 0.852 | J35: -0.01 | K35: -0.0116
A36: ABC6OnYourSide.com | E36: Apr 06, 2017 | F36: 156 mm Mono Solar Cell | G36: 1.75 | H36: 0.99 | I36: 1.105 | J36: -0.005 | K36: -0.0045
A37: Solar eclipse mania spurs festivals, tours, sold-out hotels | F37: 125 mm Mono Solar Cell | G37: 1.09 | H37: 0.59 | I37: 0.676 | J37: -0.003 | K37: -0.0044
A38: Chicago Tribune | E38: Apr 06, 2017 | F38: Non (TW or CN) Poly Cell Per Watt | G38: Visit here for more detail Cell price information
A39: Arizona solar job growth not as fast as rest of nation | F39: Unit: USD | G39: more | I39: Last Update: 2017-04-05
A40: Arizona Daily Sun | E40: Apr 06, 2017 | F40: Solar PV Module Weekly Spot Price
A41: Students Benefit from the Use of Wind and Solar Power | F41: Item | G41: High | H41: Low | I41: Average | J41: AvgChg | K41: AvgChg %
A42: The Hudson Independent | E42: Apr 06, 2017 | F42: Poly Silicon Solar Module | G42: 0.41 | H42: 0.3 | I42: 0.341 | J42: -0.001 | K42: -0.0029
A43: Lyndon contracts to receive power from Route 5 solar project | F43: ThinFilm Solar Module | G43: 0.42 | H43: 0.3 | I43: 0.353 | J43: -0.001 | K43: -0.0028
A44: WCAX | E44: Apr 06, 2017 | F44: US Multi Solar Module | G44: Visit here for more detail module price information
A45: Wabash Valley Power installing new solar park in Peru | F45: Mono Silicon Solar Module | G45: Visit here for more detail module price information
A46: Kokomo Tribune | E46: Apr 06, 2017 | F46: India Poly Module | G46: Visit here for more detail module price information
A47: These Ancient Texts Might Help Us Predict the Next Massive Solar Storm | F47: Unit: USD / Watt | G47: more | I47: Last Update: 2017-04-05
A48: Gizmodo | E48: Apr 06, 2017 | F48: All Spot Prices are Tax excluded and updated on Wednesday
A49: FPL drafted portions of bill that puts tough requirements on rooftop solar companies
A50: Miami Herald | E50: Apr 06, 2017
A51: Last Update: 2017-Apr- 06 07:00 (GMT+8)
A54: Price Methodology | B54: Terms of Use | C54: Privacy Policy | D54: About Us | E54: Contact Us | F54: Site Map
A55: Copyright © 2017 PVinsights.com All rights reserved

Sheet pvinsights 01 06 17
B1: Login | C1: Register | D1: Member Center
A3: Home | B3: Why Solar | C3: Retailer Price | D3: Contract Price | E3: Inverter Price | F3: Weekly Snapshots | G3: Price Download | H3: Monthly Insights | I3: Weekly Forecast | J3: Price Forecast | K3: Premier Insights | L3: Premier Data | M3: Advertising
A5: Key Date of The US 2017 Section 201 Safeguard Investigation
A8: Solar PV Corporate News Release | F8: PV Poly Silicon Weekly Spot Price
A9: Hanwha Q CELLS Reports | F9: Item | G9: High | H9: Low | I9: Average | J9: AvgChg | K9: AvgChg%
A10: Hanwha Q Cel | C10: May 25, 2017 | F10: PV Grade PolySilicon (9N/9N+) | G10: 15.55 | H10: 12 | I10: 13.85 | J10: 0.42 | K10: 0.0313
A11: JA Solar Announces First Quarter 2017 Results | F11: 2nd Grade PolySilicon (6N-8N) | G11: 14.25 | H11: 10 | I11: 11.55 | J11: 0.33 | K11: 0.0294
A12: JA Solar | C12: May 24, 2017 | F12: PV Grade PolySilicon in China (9N/9N+) | G12: Visit here for more Poly-Si price | K12: %
A13: Yingli Green Energy Reports Fourth Quarter and Full Year 2016 Results | F13: PV Grade PolySilicon Outside China (9N/9N+) | G13: Visit here for more Poly-Si price | K13: %
A14: Yingli | C14: Apr 13, 2017 | F14: Unit: USD/Kg | G14: more | I14: Last Update: 2017-05-31
A15: Hanwha Q CELLS Reports Fourth Quarter and Full Year 2016 Results | F15: Definition of PV Grade: Poly silicon chunk with high purity can be directly produced to Solar PV Ingots / Bricks
A16: Hanwha | C16: Mar 23, 2017 | F16: Definition of 2nd Grade: Poly silicon chunk must be mixed with high purity polysilicon, when producing Solar PV Ingots / Bricks.
A17: JA Solar Announces Fourth Quarter and Fiscal Year 2016 Results | F17: Solar PV Wafer Weekly Spot Price
A18: JA Solar | C18: Mar 16, 2017 | F18: Item | G18: High | H18: Low | I18: Average | J18: AvgChg | K18: AvgChg%
A19: Latest Solar PV News | F19: 156 mm Multi Solar Wafer | G19: 0.63 | H19: 0.58 | I19: 0.597 | J19: 0.017 | K19: 0.0293
F20: 156 mm High Eff Multi Solar Wafer | G20: 0.63 | H20: 0.59 | I20: 0.602 | J20: 0.017 | K20: 0.0291
A21: More Than Half of Small-Scale Photovoltaic Generation Comes from Residential Rooftops | F21: 156 mm Mono Solar Wafer | G21: 0.86 | H21: 0.77 | I21: 0.795 | J21: 0 | K21: 0
A22: Energy Collective | E22: Jun 01, 2017 | F22: 156 mm Mono Wafer Outside China | G22: 0.86 | H22: 0.8 | I22: 0.823 | J22: 0 | K22: 0
A23: Former North Nashville landfill to transform into city's first solar program | F23: 156 mm Multi Wafer Outside China | G23: Visit here for more detail wafer price information
A24: WZTV | E24: Jun 01, 2017 | F24: 156mm DiamondWire Poly Wafer | G24: Visit here for more detail wafer price information
A25: Tazewell board acts to lure solar farms - News - Washington Times ... | F25: 156 mm N-Mono Wafer | G25: Visit here for more detail
A26: Washington Times-Reporter | E26: Jun 01, 2017 | F26: Unit: USD | G26: more | I26: Last Update: 2017-05-31
A27: Currituck listens to solar experts on safety, but not convinced yet
A28: Virginian-Pilot | E28: Jun 01, 2017
A29: A solar energy trade war may be looming
A30: Washington Examiner | E30: Jun 01, 2017
A31: Carbondale, Illinois Prepares to Broadcast 2017 Solar Eclipse Nationally | F31: Solar PV Cell Weekly Spot Price
A32: Space.com | E32: Jun 01, 2017 | F32: Item | G32: High | H32: Low | I32: Average | J32: AvgChg | K32: AvgChg %
A33: Construction begins at Abu Dhabi's largest solar power project | F33: Multi Cell Price Per Watt | G33: 0.26 | H33: 0.2 | I33: 0.215 | J33: 0.007 | K33: 0.0337
A34: The National | E34: Jun 01, 2017 | F34: Taiwan Poly Cell Per Watt | G34: 0.26 | H34: 0.2 | I34: 0.218 | J34: 0.008 | K34: 0.0381
A35: Financial agreements of Sweihan Photovoltaic Independent Power Project in Abu Dhabi were signed | F35: 156 mm Multi Solar Cell | G35: 1.19 | H35: 0.85 | I35: 0.965 | J35: 0.032 | K35: 0.0343
A36: RenewEconomy | E36: Jun 01, 2017 | F36: 156 mm Mono Solar Cell | G36: 1.75 | H36: 1.04 | I36: 1.192 | J36: 0.03 | K36: 0.0258
A37: Natcore Technology to Present Paper to IEEE Photovoltaic Conference | F37: 125 mm Mono Solar Cell | G37: 1.09 | H37: 0.62 | I37: 0.73 | J37: 0.018 | K37: 0.0253
A38: AltEnergyMag (press release) | E38: Jun 01, 2017 | F38: Non (TW or CN) Poly Cell Per Watt | G38: Visit here for more detail Cell price information
A39: Building Integrated Photovoltaic (PV) Solar Market to Record an Impressive Growth Rate During Forecast 2025 | F39: Unit: USD | G39: more | I39: Last Update: 2017-05-31
A40: MilTech | E40: Jun 01, 2017 | F40: Solar PV Module Weekly Spot Price
A41: RACE for Solar program helps residents reduce energy costs | F41: Item | G41: High | H41: Low | I41: Average | J41: AvgChg | K41: AvgChg %
A42: The Ridgefield Press | E42: Jun 01, 2017 | F42: Poly Silicon Solar Module | G42: 0.41 | H42: 0.3 | I42: 0.333 | J42: 0 | K42: 0
A43: Solar energy storage as a business | F43: ThinFilm Solar Module | G43: 0.42 | H43: 0.3 | I43: 0.346 | J43: 0 | K43: 0
A44: Deutsche Welle | E44: Jun 01, 2017 | F44: US Multi Solar Module | G44: Visit here for more detail module price information
A45: CNY coal plant owner to build one of New York's largest solar farms ... | F45: Mono Silicon Solar Module | G45: Visit here for more detail module price information
A46: Syracuse.com | E46: Jun 01, 2017 | F46: India Poly Module | G46: Visit here for more detail module price information
A47: One-megawatt solar field dedicated in Benton | KATV | F47: Unit: USD / Watt | G47: more | I47: Last Update: 2017-05-31
A48: KATV | E48: Jun 01, 2017 | F48: All Spot Prices are Tax excluded and updated on Wednesday
A49: Companies offering more aesthetically pleasing solar panels
A50: The Fayette Tribune | E50: Jun 01, 2017
A51: Last Update: 2017-Jun- 01 23:00 (GMT+8)
A54: Price Methodology | B54: Terms of Use | C54: Privacy Policy | D54: About Us | E54: Contact Us | F54: Site Map
A55: Copyright © 2017 PVinsights.com All rights reserved

Sheet pvinsights 26 08 17
B1: Login | C1: Register | D1: Member Center
A3: Home | B3: Why Solar | C3: Retailer Price | D3: Contract Price | E3: Inverter Price | F3: Weekly Snapshots | G3: Price Download | H3: Monthly Insights | I3: Weekly Forecast | J3: Price Forecast | K3: Premier Insights | L3: Premier Data | M3: Advertising
A5: Key Date of The US 2017 Section 201 Safeguard Investigation
A8: Solar PV Corporate News Release | F8: PV Poly Silicon Weekly Spot Price
A9: Panasonic Solar Promotes First Group of Authorized Installers to Premium Level | F9: Item | G9: High | H9: Low | I9: Average | J9: AvgChg | K9: AvgChg%
A10: Panasonic | C10: 2017-07-26 | F10: PV Grade PolySilicon (9N/9N+) | G10: 17.9 | H10: 12.5 | I10: 15.55 | J10: 0 | K10: 0
A11: Benefiting from the Leading Edge Technology, TZS Announced Mono-Crystalline Wafer Price Modification | F11: 2nd Grade PolySilicon (6N-8N) | G11: 15.8 | H11: 10.5 | I11: 12.78 | J11: 0 | K11: 0
A12: TZS | C12: 2017-07-18 | F12: PV Grade PolySilicon in China (9N/9N+) | G12: Visit here for more Poly-Si price | K12: %
A13: Canadian Solar Reports First Quarter 2017 Results | F13: PV Grade PolySilicon Outside China (9N/9N+) | G13: Visit here for more Poly-Si price | K13: %
A14: CanadianSola | C14: 2017-06-06 | F14: Unit: USD/Kg | G14: more | I14: Last Update: 2017-08-23
A15: JinkoSolar Announces First Quarter 2017 Financial Results | F15: Definition of PV Grade: Poly silicon chunk with high purity can be directly produced to Solar PV Ingots / Bricks
A16: Jinko | C16: 2017-06-05 | F16: Definition of 2nd Grade: Poly silicon chunk must be mixed with high purity polysilicon, when producing Solar PV Ingots / Bricks.
A17: Hanwha Q CELLS Reports | F17: PolySilicon Price In China: The Price is surveyed by RMB term with Tax and then shown in USD term without 17% of VAT.
A18: Hanwha Q Cel | C18: 2017-05-25 | F18: Solar PV Wafer Weekly Spot Price
A19: Latest Solar PV News | F19: Item | G19: High | H19: Low | I19: Average | J19: AvgChg | K19: AvgChg%
F20: 156 mm Multi Solar Wafer | G20: 0.7 | H20: 0.58 | I20: 0.647 | J20: 0 | K20: 0
A21: Comcast inks partnership deal with solar-power provider Sunrun | F21: 156 mm High Eff Multi Solar Wafer | G21: 0.7 | H21: 0.59 | I21: 0.652 | J21: 0 | K21: 0
A22: MarketWatch | E22: 2017-08-26 | F22: 156 mm Mono Solar Wafer | G22: 0.81 | H22: 0.73 | I22: 0.753 | J22: 0 | K22: 0
A23: Energy Drive: India needs to tread cautiously in its solar path | F23: 156 mm Mono Wafer Outside China | G23: 0.81 | H23: 0.77 | I23: 0.782 | J23: 0 | K23: 0
A24: International Business Times, India Edition | E24: 2017-08-26 | F24: 156 mm Multi Wafer Outside China | G24: Visit here for more detail wafer price information
A25: While you're watching the eclipse, solar power companies are going ... | F25: 156mm DiamondWire Poly Wafer | G25: Visit here for more detail wafer price information
A26: BGR | E26: 2017-08-26 | F26: 156 mm N-Mono Wafer | G26: Visit here for more detail
A27: Solar power companies are not excited for the solar eclipse | F27: Unit: USD | G27: more | I27: Last Update: 2017-08-23
A28: New York Post | E28: 2017-08-26 | F28: Wafer Prices In China: The Prices are surveyed by RMB term with Tax and then shown in USD term without 17% of VAT.
A29: Sunseap, ST Kinetics ink solar energy agreement
A30: THE BUSINESS TIMES | E30: 2017-08-26
A31: Comcast To Shine Marketing Resources On Residential Solar Panel ...
A32: Deadline | E32: 2017-08-26
A33: Why Comcast Wants to Sell You Solar Panels | F33: Solar PV Cell Weekly Spot Price
A34: Philadelphia magazine | E34: 2017-08-26 | F34: Item | G34: High | H34: Low | I34: Average | J34: AvgChg | K34: AvgChg %
A35: My Turn: Put solar power in the poor's hands. It'll pay off for all | F35: Multi Cell Price Per Watt | G35: 0.26 | H35: 0.2 | I35: 0.213 | J35: -0.002 | K35: -0.0093
A36: AZCentral.com | E36: 2017-08-26 | F36: Taiwan Poly Cell Per Watt | G36: 0.26 | H36: 0.2 | I36: 0.215 | J36: -0.002 | K36: -0.0092
A37: Fed turns to solar power at Phoenix cash-processing facility | F37: Poly PERC Cell Per Watt | G37: 0.26 | H37: 0.23 | I37: 0.249 | J37: -0.001 | K37: -0.004
A38: AZCentral.com | E38: 2017-08-25 | F38: Mono PERC Cell Per Watt | G38: 0.32 | H38: 0.27 | I38: 0.288 | J38: -0.003 | K38: -0.0103
A39: Why go for a Solar Energy System | F39: Taiwan Mono PERC Cell Per Watt | G39: 0.32 | H39: 0.23 | I39: 0.294 | J39: -0.002 | K39: -0.0068
A40: TG Daily (blog) | E40: 2017-08-25 | F40: 156 mm Multi Solar Cell | G40: 1.19 | H40: 0.85 | I40: 0.955 | J40: -0.01 | K40: -0.0104
A41: Solar Energy Stocks Dip Post-Solar Eclipse | F41: 156 mm Mono Solar Cell | G41: 1.64 | H41: 1.01 | I41: 1.095 | J41: -0.01 | K41: -0.009
A42: Investing News Network (registration) | E42: 2017-08-25 | F42: China Poly Cell Per Watt | G42: Visit here for more detail Cell price information
A43: Alternative energy: Residential solar power systems rising in ... | F43: Non (TW or CN) Poly Cell Per Watt | G43: Visit here for more detail Cell price information
A44: Tulsa World | E44: 2017-08-25 | F44: Unit: USD | G44: more | I44: Last Update: 2017-08-23
A45: Eclipse offers power companies opportunity for experiments | F45: Solar PV Module Weekly Spot Price
A46: The Gazette: Eastern Iowa Breaking News and Headlines | E46: 2017-08-25 | F46: Item | G46: High | H46: Low | I46: Average | J46: AvgChg | K46: AvgChg %
A47: Engie in talks with AST to provide off-grid power to telcos, banks | F47: Poly Silicon Solar Module | G47: 0.41 | H47: 0.28 | I47: 0.321 | J47: -0.002 | K47: -0.0062
A48: Livemint | E48: 2017-08-25 | F48: ThinFilm Solar Module | G48: 0.42 | H48: 0.29 | I48: 0.34 | J48: -0.002 | K48: -0.0058
A49: Total Eclipse Vs Solar Power | F49: US Multi Solar Module | G49: Visit here for more detail module price information
A50: Sky & Telescope | E50: 2017-08-25 | F50: Mono Silicon Solar Module | G50: Visit here for more detail module price information
A51: Last Update: 2017-Aug- 26 23:00 (GMT+8) | F51: India Poly Module | G51: Visit here for more detail module price information
F52: Unit: USD / Watt | G52: more | I52: Last Update: 2017-08-23
F53: All Spot Prices are Tax excluded and updated on Wednesday
A59: Price Methodology | B59: Terms of Use | C59: Privacy Policy | D59: About Us | E59: Contact Us | F59: Site Map
A60: Copyright © 2017 PVinsights.com All rights reserved

Sheet pvinsights 16 09 17
B1: Login | C1: Register | D1: Member Center
A3: Home | B3: Why Solar | C3: Retailer Price | D3: Contract Price | E3: Inverter Price | F3: Weekly Snapshots | G3: Price Download | H3: Monthly Insights | I3: Weekly Forecast | J3: Price Forecast | K3: Premier Insights | L3: Premier Data | M3: Advertising
A5: Key Date of The US 2017 Section 201 Safeguard Investigation
A8: Solar PV Corporate News Release | F8: PV Poly Silicon Weekly Spot Price
A9: Panasonic Solar Promotes First Group of Authorized Installers to Premium Level | F9: Item | G9: High | H9: Low | I9: Average | J9: AvgChg | K9: AvgChg%
A10: Panasonic | C10: 2017-07-26 | F10: PV Grade PolySilicon (9N/9N+) | G10: 19.57 | H10: 12.5 | I10: 16.71 | J10: 0 | K10: 0
A11: Benefiting from the Leading Edge Technology, TZS Announced Mono-Crystalline Wafer Price Modification | F11: 2nd Grade PolySilicon (6N-8N) | G11: 17.5 | H11: 10.5 | I11: 13.6 | J11: 0 | K11: 0
A12: TZS | C12: 2017-07-18 | F12: PV Grade PolySilicon in China (9N/9N+) | G12: Visit here for more Poly-Si price | K12: %
A13: Canadian Solar Reports First Quarter 2017 Results | F13: PV Grade PolySilicon Outside China (9N/9N+) | G13: Visit here for more Poly-Si price | K13: %
A14: CanadianSola | C14: 2017-06-06 | F14: Unit: USD/Kg | G14: more | I14: Last Update: 2017-09-13
A15: JinkoSolar Announces First Quarter 2017 Financial Results | F15: Definition of PV Grade: Poly silicon chunk with high purity can be directly produced to Solar PV Ingots / Bricks
A16: Jinko | C16: 2017-06-05 | F16: Definition of 2nd Grade: Poly silicon chunk must be mixed with high purity polysilicon, when producing Solar PV Ingots / Bricks.
A17: Hanwha Q CELLS Reports | F17: PolySilicon Price In China: The Price is surveyed by RMB term with Tax and then shown in USD term without 17% of VAT.
A18: Hanwha Q Cel | C18: 2017-05-25 | F18: Solar PV Wafer Weekly Spot Price
A19: Latest Solar PV News | F19: Item | G19: High | H19: Low | I19: Average | J19: AvgChg | K19: AvgChg%
F20: 156 mm Multi Solar Wafer | G20: 0.72 | H20: 0.58 | I20: 0.657 | J20: -0.002 | K20: -0.003
A21: Top residential solar power companies in US | F21: 156 mm High Eff Multi Solar Wafer | G21: 0.72 | H21: 0.59 | I21: 0.663 | J21: -0.002 | K21: -0.003
A22: Energy Business Review | E22: 2017-09-16 | F22: 156 mm Mono Solar Wafer | G22: 0.82 | H22: 0.74 | I22: 0.769 | J22: -0.001 | K22: -0.0013
A23: The scramble for solar is on! Hundreds go solar as discount program ... | F23: 156 mm Mono Wafer Outside China | G23: 0.82 | H23: 0.77 | I23: 0.796 | J23: -0.001 | K23: -0.0013
A24: The Courier | E24: 2017-09-16 | F24: 156 mm Multi Wafer Outside China | G24: Visit here for more detail wafer price information
A25: 'Solarize Tonawanda' campaign offers incentive for homeowners to ... | F25: 156mm DiamondWire Poly Wafer | G25: Visit here for more detail wafer price information
A26: wivb.com | E26: 2017-09-14 | F26: 156 mm N-Mono Wafer | G26: Visit here for more detail
A27: Cost of US Solar Drops 75 percent in Six Years, Ahead of Federal ... | F27: Unit: USD | G27: more | I27: Last Update: 2017-09-13
A28: Yale Environment 360 | E28: 2017-09-14 | F28: Wafer Prices In China: The Prices are surveyed by RMB term with Tax and then shown in USD term without 17% of VAT.
A29: Massive jump in solar energy roll-out means scarcity fears ...
A30: The Sydney Morning Herald | E30: 2017-09-14
A31: Upper Merion Township receives 'SolSmart Bronze' Award for ...
A32: The Times Herald | E32: 2017-09-14
A33: TVA Now Using Solar Energy At New Allen Gas Plant | F33: Solar PV Cell Weekly Spot Price
A34: www.localmemphis.com | E34: 2017-09-14 | F34: Item | G34: High | H34: Low | I34: Average | J34: AvgChg | K34: AvgChg %
A35: Solar energy industry inefficient | F35: Multi Cell Price Per Watt | G35: 0.26 | H35: 0.2 | I35: 0.211 | J35: -0.001 | K35: -0.0047
A36: Allentown Morning Call | E36: 2017-09-14 | F36: Taiwan Poly Cell Per Watt | G36: 0.26 | H36: 0.2 | I36: 0.213 | J36: -0.001 | K36: -0.0047
A37: Phinma Energy to develop solar energy in Batangas | F37: Poly PERC Cell Per Watt | G37: 0.26 | H37: 0.23 | I37: 0.247 | J37: -0.001 | K37: -0.004
A38: Inquirer.net | E38: 2017-09-14 | F38: Mono PERC Cell Per Watt | G38: 0.32 | H38: 0.27 | I38: 0.285 | J38: -0.002 | K38: -0.007
A39: Pro-Tech Energy Solutions Named to Solar Power World's Top 500 ... | F39: Taiwan Mono PERC Cell Per Watt | G39: 0.32 | H39: 0.23 | I39: 0.292 | J39: -0.001 | K39: -0.0034
A40: Marketwired (press release) | E40: 2017-09-14 | F40: 156 mm Multi Solar Cell | G40: 1.19 | H40: 0.85 | I40: 0.946 | J40: -0.004 | K40: -0.0042
A41: Solar power for Syria: Stepping away from the fuels at the centre of ... | F41: 156 mm Mono Solar Cell | G41: 1.64 | H41: 1.01 | I41: 1.085 | J41: -0.005 | K41: -0.0046
A42: Power Technology | E42: 2017-09-13 | F42: China Poly Cell Per Watt | G42: Visit here for more detail Cell price information
A43: Sunny Outlook for NJ's Solar Sector, Which Continues to Add Capacity | F43: Non (TW or CN) Poly Cell Per Watt | G43: Visit here for more detail Cell price information
A44: NJ Spotlight | E44: 2017-09-13 | F44: Unit: USD | G44: more | I44: Last Update: 2017-09-13
A45: Massachusetts solar marketplace changing | F45: Solar PV Module Weekly Spot Price
A46: Wicked Local Wayland | E46: 2017-09-13 | F46: Item | G46: High | H46: Low | I46: Average | J46: AvgChg | K46: AvgChg %
A47: French Ambassador opens solar power plant in Uttarakhand village | F47: Poly Silicon Solar Module | G47: 0.41 | H47: 0.28 | I47: 0.322 | J47: -0.001 | K47: -0.0031
A48: ETEnergyworld.com | E48: 2017-09-13 | F48: ThinFilm Solar Module | G48: 0.42 | H48: 0.29 | I48: 0.341 | J48: 0 | K48: 0
A49: Waseda Farms plugs into new energy source with solar power | F49: US Multi Solar Module | G49: Visit here for more detail module price information
A50: Wisconsin State Farmer | E50: 2017-09-13 | F50: Mono Silicon Solar Module | G50: Visit here for more detail module price information
A51: Last Update: 2017-Sep- 16 14:01 (GMT+8) | F51: India Poly Module | G51: Visit here for more detail module price information
F52: Unit: USD / Watt | G52: more | I52: Last Update: 2017-09-13
F53: All Spot Prices are Tax excluded and updated on Wednesday
A59: Price Methodology | B59: Terms of Use | C59: Privacy Policy | D59: About Us | E59: Contact Us | F59: Site Map
A60: Copyright © 2017 PVinsights.com All rights reserved

Sheet pvinsights 30 10 17
B1: Login | C1: Register | D1: Member Center
A3: Home | B3: Why Solar | C3: Retailer Price | D3: Contract Price | E3: Inverter Price | F3: Weekly Snapshots | G3: Price Download | H3: Monthly Insights | I3: Weekly Forecast | J3: Price Forecast | K3: Premier Insights | L3: Premier Data | M3: Advertising
A5: Key Date of The US 2017 Section 201 Safeguard Investigation
A8: Solar PV Corporate News Release | F8: PV Poly Silicon Weekly Spot Price
A9: Panasonic Solar Promotes First Group of Authorized Installers to Premium Level | F9: Item | G9: High | H9: Low | I9: Average | J9: AvgChg | K9: AvgChg%
A10: Panasonic | C10: 2017-07-26 | F10: PV Grade PolySilicon (9N/9N+) | G10: 19.3 | H10: 12.5 | I10: 16.68 | J10: 0 | K10: 0
A11: Benefiting from the Leading Edge Technology, TZS Announced Mono-Crystalline Wafer Price Modification | F11: 2nd Grade PolySilicon (6N-8N) | G11: 17.35 | H11: 10.5 | I11: 13.57 | J11: 0 | K11: 0
A12: TZS | C12: 2017-07-18 | F12: PV Grade PolySilicon in China (9N/9N+) | G12: Visit here for more Poly-Si price | K12: %
A13: Canadian Solar Reports First Quarter 2017 Results | F13: PV Grade PolySilicon Outside China (9N/9N+) | G13: Visit here for more Poly-Si price | K13: %
A14: CanadianSola | C14: 2017-06-06 | F14: Unit: USD/Kg | G14: more | I14: Last Update: 2017-10-25
A15: JinkoSolar Announces First Quarter 2017 Financial Results | F15: Definition of PV Grade: Poly silicon chunk with high purity can be directly produced to Solar PV Ingots / Bricks
A16: Jinko | C16: 2017-06-05 | F16: Definition of 2nd Grade: Poly silicon chunk must be mixed with high purity polysilicon, when producing Solar PV Ingots / Bricks.
A17: Hanwha Q CELLS Reports | F17: PolySilicon Price In China: The Price is surveyed by RMB term with Tax and then shown in USD term without 17% of VAT.
A18: Hanwha Q Cel | C18: 2017-05-25 | F18: Solar PV Wafer Weekly Spot Price
A19: Latest Solar PV News | F19: Item | G19: High | H19: Low | I19: Average | J19: AvgChg | K19: AvgChg%
F20: 156 mm Multi Solar Wafer | G20: 0.69 | H20: 0.58 | I20: 0.631 | J20: -0.003 | K20: -0.0047
A21: Initiate clean cooking movement by tapping solar energy market: PM ... | F21: 156 mm High Eff Multi Solar Wafer | G21: 0.69 | H21: 0.59 | I21: 0.637 | J21: -0.003 | K21: -0.0047
A22: Moneycontrol.com | E22: 2017-10-30 | F22: 156 mm Mono Solar Wafer | G22: 0.8 | H22: 0.74 | I22: 0.761 | J22: -0.003 | K22: -0.0039
A23: Solar power making gains | F23: 156 mm Mono Wafer Outside China | G23: 0.8 | H23: 0.77 | I23: 0.785 | J23: -0.005 | K23: -0.0063
A24: Lethbridge Herald | E24: 2017-10-30 | F24: 156 mm Multi Wafer Outside China | G24: Visit here for more detail wafer price information
A25: Sun kings: racing across Australia on solar power alone | F25: 156mm DiamondWire Poly Wafer | G25: Visit here for more detail wafer price information
A26: Telegraph.co.uk | E26: 2017-10-30 | F26: 156 mm N-Mono Wafer | G26: Visit here for more detail
A27: Nigeria: Sokoto State Govt to Connect Solar Power in Rural Areas | F27: Unit: USD | G27: more | I27: Last Update: 2017-10-25
A28: AllAfrica.com | E28: 2017-10-30 | F28: Wafer Prices In China: The Prices are surveyed by RMB term with Tax and then shown in USD term without 17% of VAT.
A29: PM Narendra Modi says more green energy should power India
A30: Financial Express | E30: 2017-10-30
A31: 'Need to focus more on renewable energy'
A32: The Hindu | E32: 2017-10-30
A33: New tech could turn windows into solar panels | F33: Solar PV Cell Weekly Spot Price
A34: The Sydney Morning Herald | E34: 2017-10-30 | F34: Item | G34: High | H34: Low | I34: Average | J34: AvgChg | K34: AvgChg %
A35: Solar Industry Anxious Ahead Of Tariff Decision | F35: Multi Cell Price Per Watt | G35: 0.24 | H35: 0.2 | I35: 0.204 | J35: -0.001 | K35: -0.0049
A36: NPR | E36: 2017-10-30 | F36: Taiwan Poly Cell Per Watt | G36: 0.24 | H36: 0.2 | I36: 0.204 | J36: -0.001 | K36: -0.0049
A37: Two major solar installations quadruple solar in Farmington electric ... | F37: Poly PERC Cell Per Watt | G37: 0.24 | H37: 0.23 | I37: 0.237 | J37: -0.002 | K37: -0.0084
A38: Farmington Daily Times | E38: 2017-10-30 | F38: Mono PERC Cell Per Watt | G38: 0.31 | H38: 0.26 | I38: 0.273 | J38: -0.002 | K38: -0.0073
A39: Possible tariff on imported solar panels makes the industry nervous | F39: Taiwan Mono PERC Cell Per Watt | G39: 0.31 | H39: 0.27 | I39: 0.277 | J39: -0.003 | K39: -0.0107
A40: Los Angeles Times | E40: 2017-10-30 | F40: 156 mm Multi Solar Cell | G40: 1.1 | H40: 0.85 | I40: 0.914 | J40: -0.004 | K40: -0.0044
A41: Backus renewable energy organization makes global connections | F41: 156 mm Mono Solar Cell | G41: 1.59 | H41: 0.96 | I41: 1.035 | J41: -0.005 | K41: -0.0048
A42: Duluth News Tribune | E42: 2017-10-28 | F42: China Poly Cell Per Watt | G42: Visit here for more detail Cell price information
A43: Interest in solar batteries spikes after Hurricane Irma power outages | F43: Non (TW or CN) Poly Cell Per Watt | G43: Visit here for more detail Cell price information
A44: Bradenton Herald | E44: 2017-10-28 | F44: Unit: USD | G44: more | I44: Last Update: 2017-10-25
A45: Switzerland Solar Energy Market Outlook to 2023 - Research and ... | F45: Solar PV Module Weekly Spot Price
A46: Business Wire (press release) | E46: 2017-10-28 | F46: Item | G46: High | H46: Low | I46: Average | J46: AvgChg | K46: AvgChg %
A47: Tesla uses solar energy to power Puerto Rico children's hospital | F47: Poly Silicon Solar Module | G47: 0.41 | H47: 0.28 | I47: 0.318 | J47: -0.001 | K47: -0.0031
A48: WSVN 7News | Miami News, Weather, Sports | Fort Lauderdale | E48: 2017-10-27 | F48: Poly High Eff / PERC Module | G48: 0.45 | H48: 0.35 | I48: 0.383 | J48: -0.001 | K48: -0.0026
A49: Elon Musk's Tesla delivers solar power to Puerto Rico children's ... | F49: Mono High Eff / PERC Module | G49: 0.55 | H49: 0.39 | I49: 0.425 | J49: -0.002 | K49: -0.0047
A50: Telegraph.co.uk | E50: 2017-10-27 | F50: ThinFilm Solar Module | G50: 0.42 | H50: 0.29 | I50: 0.339 | J50: 0 | K50: 0
A51: Last Update: 2017-Oct- 30 23:00 (GMT+8) | F51: US Multi Solar Module | G51: Visit here for more detail module price information
F52: Mono Silicon Solar Module | G52: Visit here for more detail module price information
F53: India Poly Module | G53: Visit here for more detail module price information
F54: Unit: USD / Watt | G54: more | I54: Last Update: 2017-10-25
F55: All Spot Prices are Tax excluded and updated on Wednesday
A61: Price Methodology | B61: Terms of Use | C61: Privacy Policy | D61: About Us | E61: Contact Us | F61: Site Map
A62: Copyright © 2017 PVinsights.com All rights reserved

Sheet pvinsights 20 11 17
B1: Login | C1: Register | D1: Member Center
A3: Home | B3: Why Solar | C3: Retailer Price | D3: Contract Price | E3: Inverter Price | F3: Weekly Snapshots | G3: Price Download | H3: Monthly Insights | I3: Weekly Forecast | J3: Price Forecast | K3: Premier Insights | L3: Premier Data | M3: Advertising
A5: Key Date of The US 2017 Section 201 Safeguard Investigation
A8: Solar PV Corporate News Release | F8: PV Poly Silicon Weekly Spot Price
A9: Panasonic Solar Promotes First Group of Authorized Installers to Premium Level | F9: Item | G9: High | H9: Low | I9: Average | J9: AvgChg | K9: AvgChg%
A10: Panasonic | C10: 2017-07-26 | F10: PV Grade PolySilicon (9N/9N+) | G10: 19.3 | H10: 12.5 | I10: 16.66 | J10: 0 | K10: 0
A11: Benefiting from the Leading Edge Technology, TZS Announced Mono-Crystalline Wafer Price Modification | F11: 2nd Grade PolySilicon (6N-8N) | G11: 17.35 | H11: 10.5 | I11: 13.56 | J11: 0 | K11: 0
A12: TZS | C12: 2017-07-18 | F12: PV Grade PolySilicon in China (9N/9N+) | G12: Visit here for more Poly-Si price | K12: %
A13: Canadian Solar Reports First Quarter 2017 Results | F13: PV Grade PolySilicon Outside China (9N/9N+) | G13: Visit here for more Poly-Si price | K13: %
A14: CanadianSola | C14: 2017-06-06 | F14: Unit: USD/Kg | G14: more | I14: Last Update: 2017-11-15
A15: JinkoSolar Announces First Quarter 2017 Financial Results | F15: Definition of PV Grade: Poly silicon chunk with high purity can be directly produced to Solar PV Ingots / Bricks
A16: Jinko | C16: 2017-06-05 | F16: Definition of 2nd Grade: Poly silicon chunk must be mixed with high purity polysilicon, when producing Solar PV Ingots / Bricks.
A17: Hanwha Q CELLS Reports | F17: PolySilicon Price In China: The Price is surveyed by RMB term with Tax and then shown in USD term without 17% of VAT.
A18: Hanwha Q Cel | C18: 2017-05-25 | F18: Solar PV Wafer Weekly Spot Price
A19: Latest Solar PV News | F19: Item | G19: High | H19: Low | I19: Average | J19: AvgChg | K19: AvgChg%
F20: 156 mm Multi Solar Wafer | G20: 0.69 | H20: 0.58 | I20: 0.626 | J20: -0.001 | K20: -0.0016
A21: Man injured after being shot with BB gun in Soulard | F21: 156 mm High Eff Multi Solar Wafer | G21: 0.69 | H21: 0.59 | I21: 0.632 | J21: -0.001 | K21: -0.0016
A22: KSDK | E22: 2017-11-20 | F22: 156 mm Mono Solar Wafer | G22: 0.8 | H22: 0.72 | I22: 0.735 | J22: -0.005 | K22: -0.0068
A23: Missouri city opens largest solar farm in the state | F23: 156 mm Mono Wafer Outside China | G23: 0.8 | H23: 0.74 | I23: 0.755 | J23: -0.005 | K23: -0.0066
A24: STLtoday.com | E24: 2017-11-20 | F24: 156 mm Multi Wafer Outside China | G24: Visit here for more detail wafer price information
A25: Go Green the Right Way | F25: 156mm DiamondWire Poly Wafer | G25: Visit here for more detail wafer price information
A26: RealClearEnergy | E26: 2017-11-20 | F26: 156 mm N-Mono Wafer | G26: Visit here for more detail
A27: Solar panels on skyscrapers not so farfetched | F27: Unit: USD | G27: more | I27: Last Update: 2017-11-15
A28: gulfnews.com | E28: 2017-11-20 | F28: Wafer Prices In China: The Prices are surveyed by RMB term with Tax and then shown in USD term without 17% of VAT.
A29: Solar 'revolution' as residents sharing energy create virtual power ...
A30: ABC Online | E30: 2017-11-20
A31: Beth McKee-Huger: Adding our part to renewable energy supply
A32: Greensboro News & Record | E32: 2017-11-20
A33: AGL to expand energy plan that allows householders to sell or share ... | F33: Solar PV Cell Weekly Spot Price
A34: The Advertiser | E34: 2017-11-20 | F34: Item | G34: High | H34: Low | I34: Average | J34: AvgChg | K34: AvgChg %
A35: The Coming Solar Energy Age? | F35: Multi Cell Price Per Watt | G35: 0.24 | H35: 0.19 | I35: 0.201 | J35: -0.001 | K35: -0.005
A36: ValueWalk | E36: 2017-11-20 | F36: Taiwan Poly Cell Per Watt | G36: 0.24 | H36: 0.19 | I36: 0.201 | J36: -0.001 | K36: -0.005
A37: Shallotte Community To Feature Solar Energy, Clean Water Systems | F37: Poly PERC Cell Per Watt | G37: 0.24 | H37: 0.21 | I37: 0.231 | J37: -0.001 | K37: -0.0043
A38: Greater Wilmington Business Journal | E38: 2017-11-18 | F38: Mono PERC Cell Per Watt | G38: 0.31 | H38: 0.24 | I38: 0.263 | J38: -0.003 | K38: -0.0113
A39: Despite huge Millington project, Tennessee lagging in solar power | F39: Taiwan Mono PERC Cell Per Watt | G39: 0.31 | H39: 0.25 | I39: 0.266 | J39: -0.003 | K39: -0.0112
A40: The Commercial Appeal | E40: 2017-11-18 | F40: 156 mm Multi Solar Cell | G40: 1.1 | H40: 0.81 | I40: 0.902 | J40: -0.005 | K40: -0.0055
A41: Rent-a-roof policy can give residential solar energy the push it ... | F41: 156 mm Mono Solar Cell | G41: 1.59 | H41: 0.91 | I41: 1.02 | J41: -0.005 | K41: -0.0049
A42: Hindustan Times | E42: 2017-11-18 | F42: China Poly Cell Per Watt | G42: Visit here for more detail Cell price information
A43: Credit Union Place solar panels and storage battery now online in ... | F43: Non (TW or CN) Poly Cell Per Watt | G43: Visit here for more detail Cell price information
A44: The Journal Pioneer | E44: 2017-11-18 | F44: Unit: USD | G44: more | I44: Last Update: 2017-11-15
A45: Solar energy project exceeds expectations in Summerside | F45: Solar PV Module Weekly Spot Price
A46: CBC.ca | E46: 2017-11-18 | F46: Item | G46: High | H46: Low | I46: Average | J46: AvgChg | K46: AvgChg %
A47: UB-led renewable energy project aims to leverage Buffalo's past ... | F47: Poly Silicon Solar Module | G47: 0.41 | H47: 0.28 | I47: 0.315 | J47: -0.001 | K47: -0.0032
A48: University at Buffalo Reporter | E48: 2017-11-17 | F48: Poly High Eff / PERC Module | G48: 0.45 | H48: 0.35 | I48: 0.379 | J48: -0.001 | K48: -0.0026
A49: Incredible Material That Harvests Light for Energy Just Like Plants ... | F49: Mono High Eff / PERC Module | G49: 0.55 | H49: 0.39 | I49: 0.417 | J49: -0.002 | K49: -0.0048
A50: Newsweek | E50: 2017-11-17 | F50: ThinFilm Solar Module | G50: 0.42 | H50: 0.29 | I50: 0.336 | J50: -0.001 | K50: -0.003
A51: Last Update: 2017-Nov- 20 20:02 (GMT+8) | F51: US Multi Solar Module | G51: Visit here for more detail module price information
F52: Mono Silicon Solar Module | G52: Visit here for more detail module price information
F53: India Poly Module | G53: Visit here for more detail module price information
F54: Unit: USD / Watt | G54: more | I54: Last Update: 2017-11-15
F55: All Spot Prices are Tax excluded and updated on Wednesday
A61: Price Methodology | B61: Terms of Use | C61: Privacy Policy | D61: About Us | E61: Contact Us | F61: Site Map
A62: Copyright © 2017 PVinsights.com All rights reserved

Sheet pvinsights 01 02 18
B1: Login | C1: Register | D1: Member Center
A3: Home | B3: Why Solar | C3: Retailer Price | D3: Contract Price | E3: Inverter Price | F3: Weekly Snapshots | G3: Price Download | H3: Monthly Insights | I3: Weekly Forecast | J3: Price Forecast | K3: Premier Insights | L3: Premier Data | M3: Advertising
A5: Key Date of The US 2017 Section 201 Safeguard Investigation
A8: Solar PV Corporate News Release | F8: PV Poly Silicon Weekly Spot Price
A9: Panasonic Solar Promotes First Group of Authorized Installers to Premium Level | F9: Item | G9: High | H9: Low | I9: Average | J9: AvgChg | K9: AvgChg%
A10: Panasonic | C10: 2017-07-26 | F10: PV Grade PolySilicon (9N/9N+) | G10: 20.25 | H10: 13 | I10: 17.44 | J10: -0.25 | K10: -0.0141
A11: Benefiting from the Leading Edge Technology, TZS Announced Mono-Crystalline Wafer Price Modification | F11: 2nd Grade PolySilicon (6N-8N) | G11: 17.8 | H11: 11 | I11: 14.08 | J11: -0.22 | K11: -0.0154
A12: TZS | C12: 2017-07-18 | F12: PV Grade PolySilicon in China (9N/9N+) | G12: Visit here for more Poly-Si price | K12: %
A13: Canadian Solar Reports First Quarter 2017 Results | F13: PV Grade PolySilicon Outside China (9N/9N+) | G13: Visit here for more Poly-Si price | K13: %
A14: CanadianSola | C14: 2017-06-06 | F14: Unit: USD/Kg | G14: more | I14: Last Update: 2018-01-31
A15: JinkoSolar Announces First Quarter 2017 Financial Results | F15: Definition of PV Grade: Poly silicon chunk with high purity can be directly produced to Solar PV Ingots / Bricks
A16: Jinko | C16: 2017-06-05 | F16: Definition of 2nd Grade: Poly silicon chunk must be mixed with high purity polysilicon, when producing Solar PV Ingots / Bricks.
A17: Hanwha Q CELLS Reports | F17: PolySilicon Price In China: The Price is surveyed by RMB term with Tax and then shown in USD term without 17% of VAT.
A18: Hanwha Q Cel | C18: 2017-05-25 | F18: Solar PV Wafer Weekly Spot Price
A19: Latest Solar PV News | F19: Item | G19: High | H19: Low | I19: Average | J19: AvgChg | K19: AvgChg%
F20: 156 mm Multi Solar Wafer | G20: 0.65 | H20: 0.52 | I20: 0.557 | J20: -0.041 | K20: -0.0686
A21: India achieves 20 GW solar capacity goal four years ahead of deadline | F21: 156 mm High Eff Multi Solar Wafer | G21: 0.65 | H21: 0.53 | I21: 0.563 | J21: -0.041 | K21: -0.0679
A22: Business Today | E22: 2018-02-01 | F22: 156 mm Mono Solar Wafer | G22: 0.77 | H22: 0.65 | I22: 0.674 | J22: -0.014 | K22: -0.0203
A23: Solar tariff's impact on New Mexico renewable energy disputed | F23: 156 mm Mono Wafer Outside China | G23: 0.77 | H23: 0.67 | I23: 0.685 | J23: -0.014 | K23: -0.02
A24: Deming Headlight | E24: 2018-02-01 | F24: 156 mm Multi Wafer Outside China | G24: Visit here for more detail wafer price information
A25: Shining a light on agricultural solar energy development | F25: 156mm DiamondWire Poly Wafer | G25: Visit here for more detail wafer price information
A26: Michigan State University Extension | E26: 2018-02-01 | F26: 156 mm N-Mono Wafer | G26: Visit here for more detail
A27: Trump administration to 'cut renewable energy office budget by ... | F27: Unit: USD | G27: more | I27: Last Update: 2018-01-31
A28: The Independent | E28: 2018-02-01 | F28: Wafer Prices In China: The Prices are surveyed by RMB term with Tax and then shown in USD term without 17% of VAT.
A29: The9 Singapore and a Solar Energy Company Signed a Partnership ...
A30: The Financial | E30: 2018-02-01
A31: Mayor of London launches £34 million energy efficiency and solar ...
A32: Climate Action Programme | E32: 2018-02-01
A33: Lawmakers Are Divided on How to Best Implement Renewable ... | F33: Solar PV Cell Weekly Spot Price
A34: WVTF | E34: 2018-02-01 | F34: Item | G34: High | H34: Low | I34: Average | J34: AvgChg | K34: AvgChg %
A35: Why I Chose Solar Power: A Self-Storage Owner Shares His Insight | F35: Multi Cell Price Per Watt | G35: 0.24 | H35: 0.17 | I35: 0.187 | J35: -0.007 | K35: -0.0361
A36: Inside Self | E36: 2018-02-01 | F36: Non China Poly Cell Per Watt | G36: 0.24 | H36: 0.18 | I36: 0.191 | J36: -0.005 | K36: -0.0255
A37: Alberta urged to require licensed land agents as wind and solar ... | F37: Poly PERC Cell Per Watt | G37: 0.24 | H37: 0.19 | I37: 0.204 | J37: -0.013 | K37: -0.0599
A38: CBC.ca | E38: 2018-02-01 | F38: Non China Poly PERC Cell Per Watt | G38: 0.24 | H38: 0.19 | I38: 0.206 | J38: -0.011 | K38: -0.0507
A39: White House to ask for 72 percent cut in renewable energy ... | F39: Mono PERC Cell Per Watt | G39: 0.27 | H39: 0.21 | I39: 0.223 | J39: -0.003 | K39: -0.0133
A40: The Hill | E40: 2018-02-01 | F40: Non China Mono PERC Cell Per Watt | G40: 0.27 | H40: 0.21 | I40: 0.225 | J40: -0.003 | K40: -0.0132
A41: Solar Cooperatives Launched In St. Petersburg To Broaden Support ... | F41: 156 mm Multi Solar Cell | G41: 1.1 | H41: 0.72 | I41: 0.838 | J41: -0.035 | K41: -0.0401
A42: WGCU News | E42: 2018-02-01 | F42: 156 mm Mono Solar Cell | G42: 1.39 | H42: 0.86 | I42: 0.94 | J42: -0.02 | K42: -0.0208
A43: Is a Transition to Renewable Energy on the Verge of Being ... | F43: China Poly Cell Per Watt | G43: Visit here for more detail Cell price information
A44: Knowledge@Wharton | E44: 2018-02-01 | F44: Non (TW or CN) Poly Cell Per Watt | G44: Visit here for more detail Cell price information
A45: Solar energy can create more good jobs | F45: Unit: USD | G45: more | I45: Last Update: 2018-01-31
A46: Newton Daily News | E46: 2018-02-01 | F46: Solar PV Module Weekly Spot Price
A47: IREDA, Rewa Ultra Mega Solar sign loan agreement | F47: Item | G47: High | H47: Low | I47: Average | J47: AvgChg | K47: AvgChg %
A48: Business Line | E48: 2018-02-01 | F48: Poly Silicon Solar Module | G48: 0.41 | H48: 0.27 | I48: 0.31 | J48: 0 | K48: 0
A49: Montana solar panel installers not fazed by new tariff | F49: Poly High Eff / PERC Module | G49: 0.45 | H49: 0.33 | I49: 0.368 | J49: 0 | K49: 0
A50: NBC Montana | E50: 2018-02-01 | F50: Mono High Eff / PERC Module | G50: 0.55 | H50: 0.34 | I50: 0.396 | J50: 0 | K50: 0
A51: Last Update: 2018-Feb- 01 23:00 (GMT+8) | F51: ThinFilm Solar Module | G51: 0.42 | H51: 0.29 | I51: 0.331 | J51: 0 | K51: 0
F52: US Multi Solar Module | G52: Visit here for more detail module price information
F53: Mono Silicon Solar Module | G53: Visit here for more detail module price information
F54: India Poly Module | G54: Visit here for more detail module price information
F55: Unit: USD / Watt | G55: more | I55: Last Update: 2018-01-31
F56: All Spot Prices are Tax excluded and updated on Wednesday
A61: Price Methodology | B61: Terms of Use | C61: Privacy Policy | D61: About Us | E61: Contact Us | F61: Site Map
A62: Copyright © 2018 PVinsights.com All rights reserved

Sheet pvinsights 14 02 18
B1: Login | C1: Register | D1: Member Center
A3: Home | B3: Why Solar | C3: Retailer Price | D3: Contract Price | E3: Inverter Price | F3: Weekly Snapshots | G3: Price Download | H3: Monthly Insights | I3: Weekly Forecast | J3: Price Forecast | K3: Premier Insights | L3: Premier Data | M3: Advertising
A5: Key Date of The US 2017 Section 201 Safeguard Investigation
A8: Solar PV Corporate News Release | F8: PV Poly Silicon Weekly Spot Price
A9: Panasonic Solar Promotes First Group of Authorized Installers to Premium Level | F9: Item | G9: High | H9: Low | I9: Average | J9: AvgChg | K9: AvgChg%
A10: Panasonic | C10: 2017-07-26 | F10: PV Grade PolySilicon (9N/9N+) | G10: 18.65 | H10: 13 | I10: 16.32 | J10: -0.27 | K10: -0.0163
A11: Benefiting from the Leading Edge Technology, TZS Announced Mono-Crystalline Wafer Price Modification | F11: 2nd Grade PolySilicon (6N-8N) | G11: 16.5 | H11: 11 | I11: 13.41 | J11: -0.16 | K11: -0.0118
A12: TZS | C12: 2017-07-18 | F12: PV Grade PolySilicon in China (9N/9N+) | G12: Visit here for more Poly-Si price | K12: %
A13: Canadian Solar Reports First Quarter 2017 Results | F13: PV Grade PolySilicon Outside China (9N/9N+) | G13: Visit here for more Poly-Si price | K13: %
A14: CanadianSola | C14: 2017-06-06 | F14: Unit: USD/Kg | G14: more | I14: Last Update: 2018-02-14
A15: JinkoSolar Announces First Quarter 2017 Financial Results | F15: Definition of PV Grade: Poly silicon chunk with high purity can be directly produced to Solar PV Ingots / Bricks
A16: Jinko | C16: 2017-06-05 | F16: Definition of 2nd Grade: Poly silicon chunk must be mixed with high purity polysilicon, when producing Solar PV Ingots / Bricks.
A17: Hanwha Q CELLS Reports | F17: PolySilicon Price In China: The Price is surveyed by RMB term with Tax and then shown in USD term without 17% of VAT.
A18: Hanwha Q Cel | C18: 2017-05-25 | F18: Solar PV Wafer Weekly Spot Price
A19: Latest Solar PV News | F19: Item | G19: High | H19: Low | I19: Average | J19: AvgChg | K19: AvgChg%
F20: 156 mm Multi Solar Wafer | G20: 0.6 | H20: 0.52 | I20: 0.534 | J20: -0.002 | K20: -0.0037
A21: Schaumburg Receives Silver Designation for Advancements in ... | F21: 156 mm High Eff Multi Solar Wafer | G21: 0.6 | H21: 0.53 | I21: 0.54 | J21: -0.002 | K21: -0.0037
A22: Chicago Tribune | E22: 2018-02-15 | F22: 156 mm Mono Solar Wafer | G22: 0.74 | H22: 0.64 | I22: 0.655 | J22: -0.002 | K22: -0.003
A23: Florida Matters Re-Broadcast: Solar Power In The Sunshine State | F23: 156 mm Mono Wafer Outside China | G23: 0.74 | H23: 0.65 | I23: 0.666 | J23: -0.002 | K23: -0.003
A24: WUSF News | E24: 2018-02-15 | F24: 156 mm Multi Wafer Outside China | G24: Visit here for more detail wafer price information
A25: Case to decide if Ann Arbor can keep taxing solar energy systems | F25: 156mm DiamondWire Poly Wafer | G25: Visit here for more detail wafer price information
A26: MLive.com | E26: 2018-02-15 | F26: 156 mm N-Mono Wafer | G26: Visit here for more detail
A27: Renewable energy still trending up for Delaware with solar, wind ... | F27: Unit: USD | G27: more | I27: Last Update: 2018-02-14
A28: Delmarva Daily Times | E28: 2018-02-15 | F28: Wafer Prices In China: The Prices are surveyed by RMB term with Tax and then shown in USD term without 17% of VAT.
A29: Tasmanian State Election 2018: Labor pushes for solar power stations
A30: The Mercury | E30: 2018-02-15
A31: Putnam County expands zoning ordinance to allow for solar energy
A32: LaSalle News Tribune | E32: 2018-02-15
A33: IBC SOLAR and EVBox announce partnership to combine solar ... | F33: Solar PV Cell Weekly Spot Price
A34: Sun & Wind Energy | E34: 2018-02-15 | F34: Item | G34: High | H34: Low | I34: Average | J34: AvgChg | K34: AvgChg %
A35: BP School District Is Looking At Solar Energy | F35: Multi Cell Price Per Watt | G35: 0.24 | H35: 0.17 | I35: 0.182 | J35: -0.001 | K35: -0.0055
A36: Belleplaineherald | E36: 2018-02-15 | F36: Non China Poly Cell Per Watt | G36: 0.24 | H36: 0.18 | I36: 0.185 | J36: -0.001 | K36: -0.0054
A37: Time is up for solar subsidies pushed by the elite, anti-coal activists | F37: Poly PERC Cell Per Watt | G37: 0.24 | H37: 0.19 | I37: 0.199 | J37: -0.001 | K37: -0.005
A38: Lexington Herald Leader | E38: 2018-02-15 | F38: Non China Poly PERC Cell Per Watt | G38: 0.24 | H38: 0.19 | I38: 0.2 | J38: -0.001 | K38: -0.005
A39: In Brief: the Economics of Renewable Energy | F39: Mono PERC Cell Per Watt | G39: 0.27 | H39: 0.21 | I39: 0.219 | J39: -0.001 | K39: -0.0045
A40: Albany Times Union (blog) | E40: 2018-02-15 | F40: Non China Mono PERC Cell Per Watt | G40: 0.27 | H40: 0.21 | I40: 0.221 | J40: -0.001 | K40: -0.0045
A41: Solar energy garden draws concerns over glare, property values | F41: 156 mm Multi Solar Cell | G41: 1.1 | H41: 0.72 | I41: 0.816 | J41: -0.005 | K41: -0.0061
A42: Mountain Mail Newspaper | E42: 2018-02-15 | F42: 156 mm Mono Solar Cell | G42: 1.39 | H42: 0.86 | I42: 0.93 | J42: -0.005 | K42: -0.0053
A43: Mysuru City Corporation finally takes the solar route | F43: China Poly Cell Per Watt | G43: Visit here for more detail Cell price information
A44: The Hindu | E44: 2018-02-14 | F44: Non (TW or CN) Poly Cell Per Watt | G44: Visit here for more detail Cell price information
A45: Billionaire Trump Foe Behind Solar Energy Measures in Arizona ... | F45: Unit: USD | G45: more | I45: Last Update: 2018-02-14
A46: Phoenix New Times | E46: 2018-02-14 | F46: Solar PV Module Weekly Spot Price
A47: Iowa solar advocates fear proposals would stunt industry growth | F47: Item | G47: High | H47: Low | I47: Average | J47: AvgChg | K47: AvgChg %
A48: Quad City Times | E48: 2018-02-14 | F48: Poly Silicon Solar Module | G48: 0.41 | H48: 0.27 | I48: 0.309 | J48: 0 | K48: 0
A49: 'PDO aims to be leading player in solar energy development in region' | F49: Poly High Eff / PERC Module | G49: 0.45 | H49: 0.32 | I49: 0.366 | J49: -0.001 | K49: -0.0027
A50: Muscat Daily | E50: 2018-02-14 | F50: Mono High Eff / PERC Module | G50: 0.55 | H50: 0.33 | I50: 0.393 | J50: -0.001 | K50: -0.0025
A51: Last Update: 2018-Feb- 15 07:00 (GMT+8) | F51: ThinFilm Solar Module | G51: 0.42 | H51: 0.29 | I51: 0.33 | J51: 0 | K51: 0
F52: US Multi Solar Module | G52: Visit here for more detail module price information
F53: Mono Silicon Solar Module | G53: Visit here for more detail module price information
F54: India Poly Module | G54: Visit here for more detail module price information
F55: Unit: USD / Watt | G55: more | I55: Last Update: 2018-02-14
F56: All Spot Prices are Tax excluded and updated on Wednesday
A61: Price Methodology | B61: Terms of Use | C61: Privacy Policy | D61: About Us | E61: Contact Us | F61: Site Map
A62: Copyright © 2018 PVinsights.com All rights reserved

Sheet pvinsights 09 04 18
B1: Login | C1: Register | D1: Member Center
A3: Home | B3: Why Solar | C3: Retailer Price | D3: Contract Price | E3: Inverter Price | F3: Weekly Snapshots | G3: Price Download | H3: Monthly Insights | I3: Weekly Forecast | J3: Price Forecast | K3: Premier Insights | L3: Premier Data | M3: Advertising
A5: Key Date of The US 2017 Section 201 Safeguard Investigation
A8: Solar PV Corporate News Release | F8: PV Poly Silicon Weekly Spot Price
A9: Canadian Solar Reports Fourth Quarter and Full Year 2017 Results | F9: Item | G9: High | H9: Low | I9: Average | J9: AvgChg | K9: AvgChg%
A10: Canadian Sol | C10: 2018-03-19 | F10: PV Grade PolySilicon (9N/9N+) | G10: 17.7 | H10: 13 | I10: 15.41 | J10: 0.5 | K10: 0.0335
A11: First Solar, Inc. Announces Fourth Quarter & Full Year 2017 Financial Results | F11: 2nd Grade PolySilicon (6N-8N) | G11: 15.8 | H11: 11 | I11: 12.92 | J11: 0.44 | K11: 0.0353
A12: First Solar | C12: 2018-02-23 | F12: PV Grade PolySilicon in China (9N/9N+) | G12: Visit here for more Poly-Si price | K12: %
A13: SunPower Reports Fourth Quarter and FY 2017 Results | F13: PV Grade PolySilicon Outside China (9N/9N+) | G13: Visit here for more Poly-Si price | K13: %
A14: Sunpower | C14: 2018-02-15 | F14: Unit: USD/Kg | G14: more | I14: Last Update: 2018-04-04
A15: Panasonic Solar Promotes First Group of Authorized Installers to Premium Level | F15: Definition of PV Grade: Poly silicon chunk with high purity can be directly produced to Solar PV Ingots / Bricks
A16: Panasonic | C16: 2017-07-26 | F16: Definition of 2nd Grade: Poly silicon chunk must be mixed with high purity polysilicon, when producing Solar PV Ingots / Bricks.
A17: Benefiting from the Leading Edge Technology, TZS Announced Mono-Crystalline Wafer Price Modification | F17: PolySilicon Price In China: The Price is surveyed by RMB term with Tax and then shown in USD term without 17% of VAT.
A18: TZS | C18: 2017-07-18 | F18: Solar PV Wafer Weekly Spot Price
A19: Latest Solar PV News | F19: Item | G19: High | H19: Low | I19: Average | J19: AvgChg | K19: AvgChg%
F20: 156 mm Multi Solar Wafer | G20: 0.58 | H20: 0.48 | I20: 0.503 | J20: -0.001 | K20: -0.002
A21: Google Say Renewable Energy Purchases Exceeded Consumption ... | F21: 156 mm High Eff Multi Solar Wafer | G21: 0.58 | H21: 0.49 | I21: 0.509 | J21: -0.001 | K21: -0.002
A22: eWeek | E22: 2018-04-09 | F22: 156 mm Mono Solar Wafer | G22: 0.72 | H22: 0.58 | I22: 0.615 | J22: 0 | K22: 0
A23: Sydney man touts household energy bill that is cheaper than his ... | F23: 156 mm Mono Wafer Outside China | G23: 0.72 | H23: 0.58 | I23: 0.62 | J23: 0 | K23: 0
A24: NEWS.com.au | E24: 2018-04-09 | F24: 156 mm Multi Wafer Outside China | G24: Visit here for more detail wafer price information
A25: Solar farms receive more cash from green subsidies than selling the ... | F25: 156mm DiamondWire Poly Wafer | G25: Visit here for more detail wafer price information
A26: Daily Mail | E26: 2018-04-09 | F26: 156 mm N-Mono Wafer | G26: Visit here for more detail
A27: 81000 solar panels: Washington's largest solar farm planned near ... | F27: Unit: USD | G27: more | I27: Last Update: 2018-04-04
A28: The Spokesman | E28: 2018-04-09 | F28: Wafer Prices In China: The Prices are surveyed by RMB term with Tax and then shown in USD term without 17% of VAT.
A29: Salt Lake City rises above many other American cities for solar energy
A30: WTVA | E30: 2018-04-09
A31: Solar Energy Leads New Investments in Power Generation, Says ...
A32: Prensa Latina | E32: 2018-04-09
A33: Melbourne solar panel users ditching major retailers for a ... | F33: Solar PV Cell Weekly Spot Price
A34: Herald Sun | E34: 2018-04-09 | F34: Item | G34: High | H34: Low | I34: Average | J34: AvgChg | K34: AvgChg %
A35: Montana's largest utility overpays for rooftop solar energy, study ... | F35: Multi Cell Price Per Watt | G35: 0.24 | H35: 0.16 | I35: 0.177 | J35: 0 | K35: 0
A36: Billings Gazette | E36: 2018-04-09 | F36: Non China Poly Cell Per Watt | G36: 0.24 | H36: 0.16 | I36: 0.179 | J36: 0 | K36: 0
A37: Solar array set for old Troy landfill | F37: Poly PERC Cell Per Watt | G37: 0.24 | H37: 0.18 | I37: 0.194 | J37: 0 | K37: 0
A38: Troy Record | E38: 2018-04-09 | F38: Non China Poly PERC Cell Per Watt | G38: 0.24 | H38: 0.18 | I38: 0.195 | J38: 0 | K38: 0
A39: How Standing Rock Is Leading by Example on Renewable Energy | F39: Mono PERC Cell Per Watt | G39: 0.26 | H39: 0.2 | I39: 0.21 | J39: -0.001 | K39: -0.0047
A40: Truth | E40: 2018-04-09 | F40: Non China Mono PERC Cell Per Watt | G40: 0.26 | H40: 0.2 | I40: 0.213 | J40: -0.001 | K40: -0.0047
A41: China becomes driving force for global surge in solar energy ... | F41: 156 mm Multi Solar Cell | G41: 1.1 | H41: 0.7 | I41: 0.808 | J41: 0 | K41: 0
A42: Xinhua | E42: 2018-04-09 | F42: 156 mm Mono Solar Cell | G42: 1.33 | H42: 0.82 | I42: 0.905 | J42: 0 | K42: 0
A43: Big push for renewable energy as companies plan to invest more ... | F43: China Poly Cell Per Watt | G43: Visit here for more detail Cell price information
A44: The Nation | E44: 2018-04-09 | F44: Non (TW or CN) Poly Cell Per Watt | G44: Visit here for more detail Cell price information
A45: $5m Solar Energy Park Planned For Grand Bahama | F45: Unit: USD | G45: more | I45: Last Update: 2018-04-04
A46: Bahamas Tribune | E46: 2018-04-07 | F46: Solar PV Module Weekly Spot Price
A47: FGCU using solar energy, go-karts to further sustainability initiatives | F47: Item | G47: High | H47: Low | I47: Average | J47: AvgChg | K47: AvgChg %
A48: Wink News | E48: 2018-04-07 | F48: Poly Silicon Solar Module | G48: 0.41 | H48: 0.27 | I48: 0.302 | J48: 0 | K48: 0
A49: EnergyAustralia launches trial to boost solar energy installations | F49: Poly High Eff / PERC Module | G49: 0.45 | H49: 0.32 | I49: 0.354 | J49: -0.002 | K49: -0.0056
A50: Herald Sun | E50: 2018-04-07 | F50: Mono High Eff / PERC Module | G50: 0.55 | H50: 0.33 | I50: 0.381 | J50: -0.002 | K50: -0.0052
A51: Last Update: 2018-Apr- 09 23:00 (GMT+8) | F51: ThinFilm Solar Module | G51: 0.42 | H51: 0.29 | I51: 0.322 | J51: -0.001 | K51: -0.0031
F52: US Multi Solar Module | G52: Visit here for more detail module price information
F53: Mono Silicon Solar Module | G53: Visit here for more detail module price information
F54: India Poly Module | G54: Visit here for more detail module price information
F55: Unit: USD / Watt | G55: more | I55: Last Update: 2018-04-04
F56: All Spot Prices are Tax excluded and updated on Wednesday
A61: Price Methodology | B61: Terms of Use | C61: Privacy Policy | D61: About Us | E61: Contact Us | F61: Site Map
A62: Copyright © 2018 PVinsights.com All rights reserved

Sheet pvinsights 05 06 18
B1: Login | C1: Register | D1: Member Center
A3: Home | B3: Why Solar | C3: Retailer Price | D3: Contract Price | E3: Inverter Price | F3: Weekly Snapshots | G3: Price Download | H3: Monthly Insights | I3: Weekly Forecast | J3: Price Forecast | K3: Premier Insights | L3: Premier Data | M3: Advertising
F4: PV Poly Silicon Weekly Spot Price
A5: Key Date of The US 2017 Section 201 Safeguard Investigation | F5: Item | G5: High | H5: Low | I5: Average | J5: AvgChg | K5: AvgChg%
F6: PV Grade PolySilicon (9N/9N+) | G6: 16.43 | H6: 12.9 | I6: 14.65 | J6: -0.49 | K6: -0.0324
F7: 2nd Grade PolySilicon (6N-8N) | G7: 14.75 | H7: 11 | I7: 12.3 | J7: -0.38 | K7: -0.03
A8: Solar PV Corporate News Release | F8: PV Grade PolySilicon in China (9N/9N+) | G8: Visit here for more Poly-Si price | K8: %
A9: Canadian Solar Reports First Quarter 2018 Results | F9: PV Grade PolySilicon Outside China (9N/9N+) | G9: Visit here for more Poly-Si price | K9: %
A10: Canadian Sol | C10: 2018-05-16 | F10: Unit: USD/Kg | G10: more | I10: Last Update: 2018-05-30
A11: With 4GW advance PERC capacity, Aiko Solar is now the best and largest PERC cell supplier over the world | F11: Definition of PV Grade: Poly silicon chunk with high purity can be directly produced to Solar PV Ingots / Bricks
A12: Aiko Solar | C12: 2018-05-14 | F12: Definition of 2nd Grade: Poly silicon chunk must be mixed with high purity polysilicon, when producing Solar PV Ingots / Bricks.
A13: Hanwha Q CELLS Reports First Quarter 2018 Results | F13: PolySilicon Price In China: The Price is surveyed by RMB term with Tax and then shown in USD term without 16% of VAT after May 1, 2018 and 17% of VAT before May 1, 2018.
A14: Hanwha Q-Cel | C14: 2018-05-14 | F14: Solar PV Wafer Weekly Spot Price
A15: JA Solar Announces Fourth Quarter and Fiscal Year 2017 Results | F15: Item | G15: High | H15: Low | I15: Average | J15: AvgChg | K15: AvgChg%
A16: JA Solar | C16: 2018-04-30 | F16: 156 mm Multi Solar Wafer | G16: 0.47 | H16: 0.39 | I16: 0.415 | J16: -0.03 | K16: -0.0674
A17: First Solar, Inc. Announces First Quarter 2018 Financial Results | F17: 156 mm High Eff Multi Solar Wafer | G17: 0.47 | H17: 0.4 | I17: 0.42 | J17: -0.03 | K17: -0.0667
A18: First Solar | C18: 2018-04-27 | F18: 156 mm Mono Solar Wafer | G18: 0.64 | H18: 0.54 | I18: 0.568 | J18: -0.022 | K18: -0.0373
A19: Latest Solar PV News | F19: 156 mm Mono Wafer Outside China | G19: 0.64 | H19: 0.54 | I19: 0.578 | J19: -0.022 | K19: -0.0367
F20: 156 mm Multi Wafer Outside China | G20: Visit here for more detail wafer price information
A21: Video: 'Finger' Solar Power Project Signing | F21: 156mm DiamondWire Poly Wafer | G21: Visit here for more detail wafer price information
A22: Bernews | E22: 2018-06-05 | F22: 156 mm N-Mono Wafer | G22: Visit here for more detail
A23: Florida community enjoys near-free solar power | F23: Unit: USD | G23: more | I23: Last Update: 2018-05-30
A24: FOX 13 News, Tampa Bay | E24: 2018-06-05 | F24: Wafer Prices In China: The Prices are surveyed by RMB term with Tax and then shown in USD term without 16% of VAT after May 1, 2018 and 17% of VAT before May 1, 2018.
A25: Solar energy transforming agricultural scenario in MP
A26: Daily Pioneer | E26: 2018-06-05
A27: Warning about solar panels after fire in Wellbrooke Gardens
A28: Daily Echo | E28: 2018-06-05
A29: PPL acquires solar power company | F29: Solar PV Cell Weekly Spot Price
A30: Reading Eagle | E30: 2018-06-05 | F30: Item | G30: High | H30: Low | I30: Average | J30: AvgChg | K30: AvgChg %
A31: Ulverstone Neighbourhood House gets solar power grant from ... | F31: Multi Cell Price Per Watt | G31: 0.24 | H31: 0.15 | I31: 0.17 | J31: -0.002 | K31: -0.0116
A32: The Advocate | E32: 2018-06-05 | F32: Non China Poly Cell Per Watt | G32: 0.24 | H32: 0.15 | I32: 0.17 | J32: -0.002 | K32: -0.0116
A33: China Focus: China fuels clean energy growth | F33: Poly PERC Cell Per Watt | G33: 0.24 | H33: 0.18 | I33: 0.191 | J33: -0.002 | K33: -0.0104
A34: Xinhua | E34: 2018-06-05 | F34: Non China Poly PERC Cell Per Watt | G34: 0.24 | H34: 0.18 | I34: 0.193 | J34: -0.002 | K34: -0.0103
A35: Inside the New Technology That Could Transform the Solar Power ... | F35: Mono PERC Cell Per Watt | G35: 0.26 | H35: 0.2 | I35: 0.207 | J35: -0.002 | K35: -0.0096
A36: TIME | E36: 2018-06-05 | F36: Non China Mono PERC Cell Per Watt | G36: 0.26 | H36: 0.2 | I36: 0.209 | J36: -0.002 | K36: -0.0095
A37: Solar energy systems installed at three NYSDOT locations in WNY | F37: 156 mm Multi Solar Cell | G37: 1.1 | H37: 0.66 | I37: 0.776 | J37: -0.006 | K37: -0.0077
A38: WIVB | E38: 2018-06-05 | F38: 156 mm Mono Solar Cell | G38: 1.33 | H38: 0.82 | I38: 0.89 | J38: -0.01 | K38: -0.0111
A39: Solar power plant deal signed | F39: China Poly Cell Per Watt | G39: Visit here for more detail Cell price information
A40: Royal Gazette | E40: 2018-06-05 | F40: Non (TW or CN) Poly Cell Per Watt | G40: Visit here for more detail Cell price information
A41: Discoms to buy 750 MW solar power | F41: Unit: USD | G41: more | I41: Last Update: 2018-05-30
A42: The Hindu | E42: 2018-06-05 | F42: Solar PV Module Weekly Spot Price
A43: Your Town Minocqua: Lakeland HS solar panels educate students ... | F43: Item | G43: High | H43: Low | I43: Average | J43: AvgChg | K43: AvgChg %
A44: WSAW | E44: 2018-06-05 | F44: Poly Silicon Solar Module | G44: 0.41 | H44: 0.27 | I44: 0.292 | J44: -0.003 | K44: -0.0102
A45: Off the grid | F45: Poly High Eff / PERC Module | G45: 0.45 | H45: 0.31 | I45: 0.341 | J45: -0.003 | K45: -0.0087
A46: BlueRidgeNow.com | E46: 2018-06-05 | F46: Mono High Eff / PERC Module | G46: 0.55 | H46: 0.32 | I46: 0.366 | J46: -0.002 | K46: -0.0054
A47: Renewable energy sector sees increasing appeal among job ... | F47: ThinFilm Solar Module | G47: 0.42 | H47: 0.29 | I47: 0.314 | J47: -0.001 | K47: -0.0032
A48: United News of India | E48: 2018-06-04 | F48: US Multi Solar Module | G48: Visit here for more detail module price information
A49: Renewable energy reaches record high in 2017, research shows | F49: Mono Silicon Solar Module | G49: Visit here for more detail module price information
A50: Business Review | E50: 2018-06-04 | F50: India Poly Module | G50: Visit here for more detail module price information
A51: Last Update: 2018-Jun- 05 23:00 (GMT+8) | F51: Unit: USD / Watt | G51: more | I51: Last Update: 2018-05-30
F52: All Spot Prices are Tax excluded and updated on Wednesday
A57: Price Methodology | B57: Terms of Use | C57: Privacy Policy | D57: About Us | E57: Contact Us | F57: Site Map
A58: Copyright © 2018 PVinsights.com All rights reserved

Sheet pvinsights 09 07 18
B1: Login | C1: Register | D1: Member Center
A3: Home | B3: Why Solar | C3: Retailer Price | D3: Contract Price | E3: Inverter Price | F3: Weekly Snapshots | G3: Price Download | H3: Monthly Insights | I3: Weekly Forecast | J3: Price Forecast | K3: Premier Insights | L3: Premier Data | M3: Advertising
A5: Key Date of The US 2017 Section 201 Safeguard Investigation
A8: Solar PV Corporate News Release | F8: PV Poly Silicon Weekly Spot Price
A9: JinkoSolar Announces First Quarter 2018 Financial Results | F9: Item | G9: High | H9: Low | I9: Average | J9: AvgChg | K9: AvgChg%
A10: Jinko | C10: 2018-06-26 | F10: PV Grade PolySilicon (9N/9N+) | G10: 12.89 | H10: 9.77 | I10: 11.16 | J10: -0.13 | K10: -0.0115
A11: Canadian Solar Reports First Quarter 2018 Results | F11: 2nd Grade PolySilicon (6N-8N) | G11: 10.9 | H11: 7.35 | I11: 8.94 | J11: -0.11 | K11: -0.0122
A12: Canadian Sol | C12: 2018-05-16 | F12: PV Grade PolySilicon in China (9N/9N+) | G12: Visit here for more Poly-Si price | K12: %
A13: With 4GW advance PERC capacity, Aiko Solar is now the best and largest PERC cell supplier over the world | F13: PV Grade PolySilicon Outside China (9N/9N+) | G13: Visit here for more Poly-Si price | K13: %
A14: Aiko Solar | C14: 2018-05-14 | F14: Unit: USD/Kg | G14: more | I14: Last Update: 2018-07-04
A15: Hanwha Q CELLS Reports First Quarter 2018 Results | F15: Definition of PV Grade: Poly silicon chunk with high purity can be directly produced to Solar PV Ingots / Bricks
A16: Hanwha Q-Cel | C16: 2018-05-14 | F16: Definition of 2nd Grade: Poly silicon chunk must be mixed with high purity polysilicon, when producing Solar PV Ingots / Bricks.
A17: JA Solar Announces Fourth Quarter and Fiscal Year 2017 Results | F17: PolySilicon Price In China: The Price is surveyed by RMB term with Tax and then shown in USD term without 16% of VAT after May 1, 2018 and 17% of VAT before May 1, 2018.
A18: JA Solar | C18: 2018-04-30 | F18: Solar PV Wafer Weekly Spot Price
A19: Latest Solar PV News | F19: Item | G19: High | H19: Low | I19: Average | J19: AvgChg | K19: AvgChg%
F20: 156 mm Multi Solar Wafer | G20: 0.36 | H20: 0.28 | I20: 0.308 | J20: -0.01 | K20: -0.0314
A21: Rajasthan: Solar energy is now the preferred source of power | F21: 156 mm High Eff Multi Solar Wafer | G21: 0.36 | H21: 0.29 | I21: 0.313 | J21: -0.01 | K21: -0.031
A22: Daily News & Analysis | E22: 2018-07-09 | F22: 156 mm Mono Solar Wafer | G22: 0.47 | H22: 0.4 | I22: 0.428 | J22: -0.004 | K22: -0.0093
A23: Solar Energy Informational Meeting Set for Thursday | F23: 156 mm Mono Wafer Outside China | G23: 0.47 | H23: 0.4 | I23: 0.43 | J23: -0.004 | K23: -0.0092
A24: KNIA / KRLS Radio | E24: 2018-07-09 | F24: 156 mm Multi Wafer Outside China | G24: Visit here for more detail wafer price information
A25: Grants fund solar power for schools | F25: 156mm DiamondWire Poly Wafer | G25: Visit here for more detail wafer price information
A26: Rocky Mount Telegram | E26: 2018-07-09 | F26: 156 mm N-Mono Wafer | G26: Visit here for more detail
A27: Couple plans for renewable energy of solar panels to live off-grid | F27: Unit: USD | G27: more | I27: Last Update: 2018-07-04
A28: Record | E28: 2018-07-09 | F28: Wafer Prices In China: The Prices are surveyed by RMB term with Tax and then shown in USD term without 16% of VAT after May 1, 2018 and 17% of VAT before May 1, 2018.
A29: Study looks at boosting solar energy's future in Pennsylvania | F29: Solar PV Cell Weekly Spot Price
A30: Reading Eagle | E30: 2018-07-09 | F30: Item | G30: High | H30: Low | I30: Average | J30: AvgChg | K30: AvgChg %
A31: Duke Energy Solar Rebates Now Available In NC | F31: Multi Cell Price Per Watt | G31: 0.18 | H31: 0.12 | I31: 0.132 | J31: -0.003 | K31: -0.0222
A32: WFAE | E32: 2018-07-09 | F32: Non China Poly Cell Per Watt | G32: 0.18 | H32: 0.12 | I32: 0.132 | J32: -0.003 | K32: -0.0222
A33: Gwyn Morgan: Renewable energy is no quick fix for oil pipelines | F33: Poly PERC Cell Per Watt | G33: 0.18 | H33: 0.14 | I33: 0.156 | J33: -0.004 | K33: -0.025
A34: Times Colonist | E34: 2018-07-09 | F34: Non China Poly PERC Cell Per Watt | G34: 0.18 | H34: 0.15 | I34: 0.162 | J34: -0.002 | K34: -0.0122
A35: Energy boost: Yakima County could soon use sun, wind to its ... | F35: Mono PERC Cell Per Watt | G35: 0.23 | H35: 0.15 | I35: 0.167 | J35: -0.005 | K35: -0.0291
A36: Yakima Herald | E36: 2018-07-09 | F36: Non China Mono PERC Cell Per Watt | G36: 0.23 | H36: 0.16 | I36: 0.174 | J36: -0.004 | K36: -0.0225
A37: Wind and solar are called clean for a reason | F37: 156 mm Multi Solar Cell | G37: 0.84 | H37: 0.54 | I37: 0.609 | J37: -0.015 | K37: -0.024
A38: The Hill | E38: 2018-07-09 | F38: 156 mm Mono Solar Cell | G38: 1.18 | H38: 0.67 | I38: 0.737 | J38: -0.038 | K38: -0.049
A39: Town of Canton considering moratorium on solar power development | F39: China Poly Cell Per Watt | G39: Visit here for more detail Cell price information
A40: WatertownDailyTimes.com | E40: 2018-07-09 | F40: Non (TW or CN) Poly Cell Per Watt | G40: Visit here for more detail Cell price information
A41: The roiled solar power market shows how Trump's tariffs can disrupt ... | F41: Unit: USD | G41: more | I41: Last Update: 2018-07-04
A42: Los Angeles Times | E42: 2018-07-09 | F42: Solar PV Module Weekly Spot Price
A43: New Zealand's changing energy landscape to include solar micro ... | F43: Item | G43: High | H43: Low | I43: Average | J43: AvgChg | K43: AvgChg %
A44: Stuff.co.nz | E44: 2018-07-09 | F44: Poly Silicon Solar Module | G44: 0.41 | H44: 0.24 | I44: 0.266 | J44: -0.004 | K44: -0.0148
A45: 'Waterworld' folk tap solar power for clean drink | F45: Poly High Eff / PERC Module | G45: 0.45 | H45: 0.27 | I45: 0.321 | J45: -0.005 | K45: -0.0153
A46: Inquirer.net | E46: 2018-07-09 | F46: Mono High Eff / PERC Module | G46: 0.54 | H46: 0.3 | I46: 0.346 | J46: -0.006 | K46: -0.017
A47: Revised renewable energy goal to go before Concord City Council | F47: ThinFilm Solar Module | G47: 0.42 | H47: 0.26 | I47: 0.296 | J47: -0.004 | K47: -0.0133
A48: Concord Monitor | E48: 2018-07-09 | F48: US Multi Solar Module | G48: Visit here for more detail module price information
A49: Solar power users relying on more utilities with rainy days | F49: Mono Silicon Solar Module | G49: Visit here for more detail module price information
A50: WHSV | E50: 2018-07-07 | F50: India Poly Module | G50: Visit here for more detail module price information
A51: Last Update: 2018-Jul- 09 23:00 (GMT+8) | F51: Unit: USD / Watt | G51: more | I51: Last Update: 2018-07-04
F52: All Spot Prices are Tax excluded and updated on Wednesday
A53: Price Methodology | B53: Terms of Use | C53: Privacy Policy | D53: About Us | E53: Contact Us | F53: Site Map
A54: Copyright © 2018 PVinsights.com All rights reserved

Sheet pvinsights 31 08 18
B1: Login | C1: Register | D1: Member Center
A3: Home | B3: Why Solar | C3: Retailer Price | D3: Contract Price | E3: Inverter Price | F3: Weekly Snapshots | G3: Price Download | H3: Monthly Insights | I3: Weekly Forecast | J3: Price Forecast | K3: Premier Insights | L3: Premier Data | M3: Advertising
A5: Key Date of The US 2017 Section 201 Safeguard Investigation
A8: Solar PV Corporate News Release | F8: PV Poly Silicon Weekly Spot Price
A9: Hanwha Q CELLS Reports Second Quarter 2018 Results | F9: Item | G9: High | H9: Low | I9: Average | J9: AvgChg | K9: AvgChg%
A10: Hanwha Q-Cel | C10: 2018-08-13 | F10: PV Grade PolySilicon (9N/9N+) | G10: 13.3 | H10: 9.85 | I10: 11.26 | J10: -0.03 | K10: -0.0027
A11: JinkoSolar Announces Second Quarter 2018 Financial Results | F11: 2nd Grade PolySilicon (6N-8N) | G11: 10.9 | H11: 7.5 | I11: 9.02 | J11: -0.03 | K11: -0.0033
A12: Jinko | C12: 2018-08-13 | F12: PV Grade PolySilicon in China (9N/9N+) | G12: Visit here for more Poly-Si price | K12: %
A13: SunPower Reports Second Quarter 2018 Results | F13: PV Grade PolySilicon Outside China (9N/9N+) | G13: Visit here for more Poly-Si price | K13: %
A14: Sunpower | C14: 2018-07-31 | F14: Unit: USD/Kg | G14: more | I14: Last Update: 2018-08-29
A15: First Solar, Inc. Announces Second Quarter 2018 Financial Results | F15: Definition of PV Grade: Poly silicon chunk with high purity can be directly produced to Solar PV Ingots / Bricks
A16: First Solar | C16: 2018-07-27 | F16: Definition of 2nd Grade: Poly silicon chunk must be mixed with high purity polysilicon, when producing Solar PV Ingots / Bricks.
A17: JinkoSolar Announces First Quarter 2018 Financial Results | F17: PolySilicon Price In China: The Price is surveyed by RMB term with Tax and then shown in USD term without 16% of VAT after May 1, 2018 and 17% of VAT before May 1, 2018.
A18: Jinko | C18: 2018-06-26 | F18: Solar PV Wafer Weekly Spot Price
A19: Latest Solar PV News | F19: Item | G19: High | H19: Low | I19: Average | J19: AvgChg | K19: AvgChg%
F20: 156 mm Multi Solar Wafer | G20: 0.35 | H20: 0.28 | I20: 0.302 | J20: -0.006 | K20: -0.0195
A21: Solar panel maker to power DRC firms | F21: 156 mm High Eff Multi Solar Wafer | G21: 0.35 | H21: 0.29 | I21: 0.307 | J21: -0.006 | K21: -0.0192
A22: Chinadaily USA | E22: 2018-08-31 | F22: 156 mm Mono Solar Wafer | G22: 0.44 | H22: 0.37 | I22: 0.401 | J22: 0 | K22: 0
A23: Printed solar cells may help energy crisis | F23: 156 mm Mono Wafer Outside China | G23: 0.44 | H23: 0.37 | I23: 0.408 | J23: 0 | K23: 0
A24: Katherine Times | E24: 2018-08-30 | F24: 156 mm Multi Wafer Outside China | G24: Visit here for more detail wafer price information
A25: Solar panels that are as thick as a ¡§packet of chips¡¨ power ... | F25: 156mm DiamondWire Poly Wafer | G25: Visit here for more detail wafer price information
A26: Newcastle Herald | E26: 2018-08-30 | F26: 156 mm N-Mono Wafer | G26: Visit here for more detail
A27: Ultra thin solar panels | F27: Unit: USD | G27: more | I27: Last Update: 2018-08-29
A28: Newcastle Star | E28: 2018-08-30 | F28: Wafer Prices In China: The Prices are surveyed by RMB term with Tax and then shown in USD term without 16% of VAT after May 1, 2018 and 17% of VAT before May 1, 2018.
A29: Silfab Solar Invests in Itek Energy to Expand US Manufacturing | F29: Solar PV Cell Weekly Spot Price
A30: Hastings Tribune | E30: 2018-08-30 | F30: Item | G30: High | H30: Low | I30: Average | J30: AvgChg | K30: AvgChg %
A31: Renewable energy advocates ask for changes to state law on solar | F31: Multi Cell Price Per Watt | G31: 0.16 | H31: 0.105 | I31: 0.119 | J31: -0.002 | K31: -0.0165
A32: Spectrum News | E32: 2018-08-30 | F32: Non China Poly Cell Per Watt | G32: 0.16 | H32: 0.11 | I32: 0.12 | J32: -0.004 | K32: -0.0323
A33: PCC to offer learning lab in solar energy industry | F33: Poly PERC Cell Per Watt | G33: 0.16 | H33: 0.125 | I33: 0.13 | J33: -0.002 | K33: -0.0152
A34: Pueblo Chieftain | E34: 2018-08-30 | F34: Non China Poly PERC Cell Per Watt | G34: 0.16 | H34: 0.135 | I34: 0.14 | J34: -0.002 | K34: -0.0141
A35: The economy of sunshine: Alaskans finding solar energy use ... | F35: Mono PERC Cell Per Watt | G35: 0.18 | H35: 0.14 | I35: 0.142 | J35: 0 | K35: 0
A36: KTUU.com | E36: 2018-08-30 | F36: Non China Mono PERC Cell Per Watt | G36: 0.175 | H36: 0.135 | I36: 0.144 | J36: -0.006 | K36: -0.04
A37: The economy of sunshine: Solar boom in Alaska proves prosperous | F37: 156 mm Multi Solar Cell | G37: 0.75 | H37: 0.47 | I37: 0.547 | J37: -0.009 | K37: -0.0162
A38: KTUU.com | E38: 2018-08-30 | F38: 156 mm Mono Solar Cell | G38: 0.9 | H38: 0.53 | I38: 0.598 | J38: 0 | K38: 0
A39: NYS renewable energy advocates want an easier to understand ... | F39: China Poly Cell Per Watt | G39: Visit here for more detail Cell price information
A40: WBFO | E40: 2018-08-30 | F40: Non (TW or CN) Poly Cell Per Watt | G40: Visit here for more detail Cell price information
A41: New solar cells offer you the chance to print out solar panels and ... | F41: Unit: USD | G41: more | I41: Last Update: 2018-08-29
A42: The Conversation AU | E42: 2018-08-30 | F42: Solar PV Module Weekly Spot Price
A43: Ultralight solar cells created by University of Newcastle physicist ... | F43: Item | G43: High | H43: Low | I43: Average | J43: AvgChg | K43: AvgChg %
A44: Newcastle Herald | E44: 2018-08-30 | F44: Poly Solar Module | G44: 0.38 | H44: 0.23 | I44: 0.25 | J44: -0.002 | K44: -0.0079
A45: Air pollution can put a dent in solar power | F45: Poly Module in China | G45: 0.28 | H45: 0.23 | I45: 0.239 | J45: 0 | K45: 0
A46: MIT News | E46: 2018-08-29 | F46: Poly High Eff / PERC Module | G46: 0.42 | H46: 0.25 | I46: 0.292 | J46: -0.003 | K46: -0.0102
A47: Solar energy advocates want Cuomo to reinstate net metering for ... | F47: Mono High Eff / PERC Module | G47: 0.5 | H47: 0.27 | I47: 0.31 | J47: -0.004 | K47: -0.0127
A48: WRVO Public Media | E48: 2018-08-29 | F48: Mono High Eff / PERC Module in China | G48: 0.31 | H48: 0.27 | I48: 0.275 | J48: 0 | K48: 0
A49: Kyushu Electric mulls cutback on solar power | F49: ThinFilm Solar Module | G49: 0.42 | H49: 0.25 | I49: 0.274 | J49: -0.002 | K49: -0.0072
A50: Asahi Shimbun | E50: 2018-08-29 | F50: US Multi Solar Module | G50: Visit here for more detail module price information
A51: Last Update: 2018-Aug- 31 23:00 (GMT+8) | F51: Mono Silicon Solar Module | G51: Visit here for more detail module price information
F52: India Poly Module | G52: Visit here for more detail module price information
F53: Unit: USD / Watt | G53: more | I53: Last Update: 2018-08-29
F54: All Spot Prices are Tax excluded and updated on Wednesday
A55: Price Methodology | B55: Terms of Use | C55: Privacy Policy | D55: About Us | E55: Contact Us | F55: Site Map
A56: Copyright © 2018 PVinsights.com All rights reserved

Sheet pvinsights 21 09 18
B1: Login | C1: Register | D1: Member Center
A3: Home | B3: Why Solar | C3: Retailer Price | D3: Contract Price | E3: Inverter Price | F3: Weekly Snapshots | G3: Price Download | H3: Monthly Insights | I3: Weekly Forecast | J3: Price Forecast | K3: Premier Insights | L3: Premier Data | M3: Advertising
F4: PV Poly Silicon Weekly Spot Price
A5: Key Date of The US 2017 Section 201 Safeguard Investigation | F5: Item | G5: High | H5: Low | I5: Average | J5: AvgChg | K5: AvgChg%
F6: PV Grade PolySilicon (9N/9N+) | G6: 12.6 | H6: 9.69 | I6: 10.68 | J6: -0.1 | K6: -0.0093
F7: 2nd Grade PolySilicon (6N-8N) | G7: 10.3 | H7: 7.5 | I7: 8.59 | J7: -0.09 | K7: -0.0104
A8: Solar PV Corporate News Release | F8: PV Grade PolySilicon in China (9N/9N+) | G8: Visit here for more Poly-Si price | K8: %
A9: Hanwha Q CELLS Reports Second Quarter 2018 Results | F9: PV Grade PolySilicon Outside China (9N/9N+) | G9: Visit here for more Poly-Si price | K9: %
A10: Hanwha Q-Cel | C10: 2018-08-13 | F10: Unit: USD/Kg | G10: more | I10: Last Update: 2018-09-19
A11: JinkoSolar Announces Second Quarter 2018 Financial Results | F11: Definition of PV Grade: Poly silicon chunk with high purity can be directly produced to Solar PV Ingots / Bricks
A12: Jinko | C12: 2018-08-13 | F12: Definition of 2nd Grade: Poly silicon chunk must be mixed with high purity polysilicon, when producing Solar PV Ingots / Bricks.
A13: SunPower Reports Second Quarter 2018 Results | F13: PolySilicon Price In China: The Price is surveyed by RMB term with Tax and then shown in USD term without 16% of VAT after May 1, 2018 and 17% of VAT before May 1, 2018.
A14: Sunpower | C14: 2018-07-31 | F14: Solar PV Wafer Weekly Spot Price
A15: First Solar, Inc. Announces Second Quarter 2018 Financial Results | F15: Item | G15: High | H15: Low | I15: Average | J15: AvgChg | K15: AvgChg%
A16: First Solar | C16: 2018-07-27 | F16: 156 mm Multi Solar Wafer | G16: 0.34 | H16: 0.27 | I16: 0.286 | J16: -0.006 | K16: -0.0205
A17: JinkoSolar Announces First Quarter 2018 Financial Results | F17: 156 mm High Eff Multi Solar Wafer | G17: 0.34 | H17: 0.28 | I17: 0.291 | J17: -0.006 | K17: -0.0202
A18: Jinko | C18: 2018-06-26 | F18: 156 mm Mono Solar Wafer | G18: 0.44 | H18: 0.37 | I18: 0.394 | J18: -0.004 | K18: -0.0101
A19: Latest Solar PV News | F19: 156 mm Mono Wafer Outside China | G19: 0.44 | H19: 0.37 | I19: 0.402 | J19: -0.003 | K19: -0.0074
F20: 156 mm Multi Wafer Outside China | G20: Visit here for more detail wafer price information
A21: Solar energy company makes Pivot to new name, services as it ... | F21: 156mm DiamondWire Poly Wafer | G21: Visit here for more detail wafer price information
A22: The Denver Post | E22: 2018-09-21 | F22: 156 mm N-Mono Wafer | G22: Visit here for more detail
A23: Rooftop solar power expands in Zhejiang | F23: Unit: USD | G23: more | I23: Last Update: 2018-09-19
A24: Power Technology | E24: 2018-09-21 | F24: Wafer Prices In China: The Prices are surveyed by RMB term with Tax and then shown in USD term without 16% of VAT after May 1, 2018 and 17% of VAT before May 1, 2018.
A25: Solar-Log® Headliners at Solar Power International | F25: Solar PV Cell Weekly Spot Price
A26: AltEnergyMag (press release) | E26: 2018-09-21 | F26: Item | G26: High | H26: Low | I26: Average | J26: AvgChg | K26: AvgChg %
A27: Mission Solar Energy will debut four new solar panels at SPI | F27: Multi Cell Price Per Watt | G27: 0.16 | H27: 0.095 | I27: 0.111 | J27: -0.003 | K27: -0.0263
A28: Solar Power World | E28: 2018-09-21 | F28: Non China Poly Cell Per Watt | G28: 0.16 | H28: 0.1 | I28: 0.112 | J28: -0.003 | K28: -0.0261
A29: Standard Solar boosts community solar portfolio through acquisition ... | F29: Poly PERC Cell Per Watt | G29: 0.16 | H29: 0.11 | I29: 0.121 | J29: 0 | K29: 0
A30: pv magazine USAETEnergyworld.com | E30: 2018-09-21 | F30: Non China Poly PERC Cell Per Watt | G30: 0.16 | H30: 0.12 | I30: 0.131 | J30: 0 | K30: 0
A31: Crystal Lake home one stop on Illinois Solar Tour | F31: Mono PERC Cell Per Watt | G31: 0.175 | H31: 0.135 | I31: 0.142 | J31: 0 | K31: 0
A32: Northwest Herald | E32: 2018-09-21 | F32: Non China Mono PERC Cell Per Watt | G32: 0.175 | H32: 0.135 | I32: 0.142 | J32: 0 | K32: 0
A33: Taylor incurs wrath of community solar groups, including in his own ... | F33: High Eff Mono PERC Cell Per Watt | G33: 0.175 | H33: 0.14 | I33: 0.147 | J33: 0 | K33: 0
A34: RenewEconomy | E34: 2018-09-21 | F34: Bi-Facial Mono PERC Cell Per Watt | G34: 0.19 | H34: 0.15 | I34: 0.157 | J34: 0 | K34: 0
A35: Energising China's renewable power tariffs | F35: 156 mm Multi Solar Cell | G35: 0.75 | H35: 0.42 | I35: 0.507 | J35: -0.015 | K35: -0.0287
A36: East Asia Forum | E36: 2018-09-21 | F36: 156 mm Mono Solar Cell | G36: 0.9 | H36: 0.53 | I36: 0.598 | J36: 0 | K36: 0
A37: UN Secretary General to visit India with focus on renewable energy | F37: China Poly Cell Per Watt | G37: Visit here for more detail Cell price information
A38: Economic Times | E38: 2018-09-21 | F38: Non (TW or CN) Poly Cell Per Watt | G38: Visit here for more detail Cell price information
A39: India's renewable energy sector hits a milestone but loses speed | F39: Unit: USD | G39: more | I39: Last Update: 2018-09-19
A40: Livemint | E40: 2018-09-21 | F40: Solar PV Module Weekly Spot Price
A41: French Environment Minister Shakeup Dampens Renewable ... | F41: Item | G41: High | H41: Low | I41: Average | J41: AvgChg | K41: AvgChg %
A42: Greentech Media | E42: 2018-09-21 | F42: Poly Solar Module | G42: 0.36 | H42: 0.22 | I42: 0.242 | J42: -0.004 | K42: -0.0163
A43: Saudi energy firm plans to invest Rs6 billion in solar power project | F43: Poly Module in China | G43: 0.28 | H43: 0.22 | I43: 0.234 | J43: -0.004 | K43: -0.0168
A44: The News International | E44: 2018-09-21 | F44: Poly High Eff / PERC Module | G44: 0.4 | H44: 0.24 | I44: 0.28 | J44: -0.007 | K44: -0.0244
A45: TVA, environmental groups duel over the future of solar energy | F45: Mono High Eff / PERC Module | G45: 0.48 | H45: 0.26 | I45: 0.302 | J45: -0.003 | K45: -0.0098
A46: Knoxville News Sentinel | E46: 2018-09-21 | F46: Mono High Eff / PERC Module in China | G46: 0.31 | H46: 0.27 | I46: 0.273 | J46: -0.001 | K46: -0.0036
A47: City considers partnerships to bring solar energy to Soledad | F47: ThinFilm Solar Module | G47: 0.41 | H47: 0.24 | I47: 0.265 | J47: -0.003 | K47: -0.0112
A48: Soledad Bee | E48: 2018-09-21 | F48: US Multi Solar Module | G48: Visit here for more detail module price information
A49: Solar Energy Creating Value For A ¡§Just Energy Transition¡¨ | F49: Mono Silicon Solar Module | G49: Visit here for more detail module price information
A50: iAfrica.com | E50: 2018-09-21 | F50: India Poly Module | G50: Visit here for more detail module price information
A51: Last Update: 2018-Sep- 21 20:00 (GMT+8) | F51: Unit: USD / Watt | G51: more | I51: Last Update: 2018-09-19
F52: All Spot Prices are Tax excluded and updated on Wednesday
A57: Price Methodology | B57: Terms of Use | C57: Privacy Policy | D57: About Us | E57: Contact Us | F57: Site Map
A58: Copyright © 2018 PVinsights.com All rights reserved

Sheet pvinsights 31 10 18
B1: Login | C1: Register | D1: Member Center
A3: Home | B3: Why Solar | C3: Retailer Price | D3: Contract Price | E3: Inverter Price | F3: Weekly Snapshots | G3: Price Download | H3: Monthly Insights | I3: Weekly Forecast | J3: Price Forecast | K3: Premier Insights | L3: Premier Data | M3: Advertising
F4: PV Poly Silicon Weekly Spot Price
A5: Key Date of The US 2017 Section 201 Safeguard Investigation | F5: Item | G5: High | H5: Low | I5: Average | J5: AvgChg | K5: AvgChg%
F6: PV Grade PolySilicon (9N/9N+) | G6: 12.25 | H6: 8.7 | I6: 9.75 | J6: -0.26 | K6: -0.026
F7: 2nd Grade PolySilicon (6N-8N) | G7: 9.6 | H7: 6.5 | I7: 7.59 | J7: -0.33 | K7: -0.0417
A8: Solar PV Corporate News Release | F8: PV Grade PolySilicon in China (9N/9N+) | G8: Visit here for more Poly-Si price | K8: %
A9: First Solar, Inc. Announces Third Quarter 2018 Financial Results | F9: PV Grade PolySilicon Outside China (9N/9N+) | G9: Visit here for more Poly-Si price | K9: %
A10: First Solar | C10: Oct 26, 2018 | F10: Unit: USD/Kg | G10: more | I10: Last Update: 2018-10-31
A11: Hanwha Q CELLS Reports Second Quarter 2018 Results | F11: Definition of PV Grade: Poly silicon chunk with high purity can be directly produced to Solar PV Ingots / Bricks
A12: Hanwha Q-Cel | C12: Aug 13, 2018 | F12: Definition of 2nd Grade: Poly silicon chunk must be mixed with high purity polysilicon, when producing Solar PV Ingots / Bricks.
A13: JinkoSolar Announces Second Quarter 2018 Financial Results | F13: PolySilicon Price In China: The Price is surveyed by RMB term with Tax and then shown in USD term without 16% of VAT after May 1, 2018 and 17% of VAT before May 1, 2018.
A14: Jinko | C14: Aug 13, 2018 | F14: Solar PV Wafer Weekly Spot Price
A15: SunPower Reports Second Quarter 2018 Results | F15: Item | G15: High | H15: Low | I15: Average | J15: AvgChg | K15: AvgChg%
A16: Sunpower | C16: Jul 31, 2018 | F16: 156 mm Multi Solar Wafer | G16: 0.32 | H16: 0.26 | I16: 0.27 | J16: -0.001 | K16: -0.0037
A17: First Solar, Inc. Announces Second Quarter 2018 Financial Results | F17: 156 mm High Eff Multi Solar Wafer | G17: 0.32 | H17: 0.265 | I17: 0.275 | J17: -0.001 | K17: -0.0036
A18: First Solar | C18: Jul 27, 2018 | F18: 156 mm Mono Solar Wafer | G18: 0.41 | H18: 0.35 | I18: 0.372 | J18: -0.005 | K18: -0.0133
A19: Latest Solar PV News | F19: 156 mm Mono Wafer Outside China | G19: 0.41 | H19: 0.36 | I19: 0.385 | J19: -0.005 | K19: -0.0128
F20: 156 mm Multi Wafer Outside China | G20: Visit here for more detail wafer price information
A21: Floating solar panels in Kranji could be option for private firms ... | F21: 156mm DiamondWire Poly Wafer | G21: Visit here for more detail wafer price information
A22: TODAYonline | E22: Oct 31, 2018 | F22: 156 mm N-Mono Wafer | G22: Visit here for more detail
A23: Solar panel, renewable energy discussion to take place in North Lufkin | F23: Unit: USD | G23: more | I23: Last Update: 2018-10-31
A24: KTRE | E24: Oct 31, 2018 | F24: Wafer Prices In China: The Prices are surveyed by RMB term with Tax and then shown in USD term without 16% of VAT after May 1, 2018 and 17% of VAT before May 1, 2018.
A25: Solar energy lighting up the way to financial inclusion | F25: Solar PV Cell Weekly Spot Price
A26: Daily Monitor (press release) (blog) | E26: Oct 31, 2018 | F26: Item | G26: High | H26: Low | I26: Average | J26: AvgChg | K26: AvgChg %
A27: Floating solar energy transforming India into a greener nation | F27: Multi Cell Price Per Watt | G27: 0.14 | H27: 0.085 | I27: 0.101 | J27: -0.001 | K27: -0.0098
A28: ETEnergyworld.comGreen Matters | E28: Oct 31, 2018 | F28: Non China Poly Cell Per Watt | G28: 0.14 | H28: 0.09 | I28: 0.101 | J28: -0.001 | K28: -0.0098
A29: Solar experts talk benefits of solar energy in Hampton Roads | F29: Poly PERC Cell Per Watt | G29: 0.14 | H29: 0.1 | I29: 0.109 | J29: -0.002 | K29: -0.018
A30: wtkr.com | E30: Oct 31, 2018 | F30: Non China Poly PERC Cell Per Watt | G30: 0.14 | H30: 0.11 | I30: 0.12 | J30: -0.002 | K30: -0.0164
A31: US, South Africa partner on solar energy storage | F31: Mono PERC Cell Per Watt | G31: 0.17 | H31: 0.135 | I31: 0.14 | J31: 0 | K31: 0
A32: ESI Africa | E32: Oct 31, 2018 | F32: Non China Mono PERC Cell Per Watt | G32: 0.17 | H32: 0.135 | I32: 0.14 | J32: 0 | K32: 0
A33: Solar power 101 | F33: High Eff Mono PERC Cell Per Watt | G33: 0.17 | H33: 0.14 | I33: 0.145 | J33: 0 | K33: 0
A34: Tri-City Herald | E34: Oct 31, 2018 | F34: Bi-Facial Mono PERC Cell Per Watt | G34: 0.18 | H34: 0.15 | I34: 0.155 | J34: 0 | K34: 0
A35: Solar Renewable Energy Advocate | F35: 156 mm Multi Solar Cell | G35: 0.65 | H35: 0.38 | I35: 0.463 | J35: -0.006 | K35: -0.0128
A36: SustainableBusiness.com | E36: Oct 31, 2018 | F36: 156 mm Mono Solar Cell | G36: 0.87 | H36: 0.53 | I36: 0.59 | J36: 0 | K36: 0
A37: Regina pledges to go to 100% renewable energy by 2050 | F37: China Poly Cell Per Watt | G37: Visit here for more detail Cell price information
A38: CBC.ca | E38: Oct 31, 2018 | F38: Non (TW or CN) Poly Cell Per Watt | G38: Visit here for more detail Cell price information
A39: Europe's largest floating solar system to be powered by 17MW of PV ... | F39: Unit: USD | G39: more | I39: Last Update: 2018-10-31
A40: Energy Industry Review (press release) | E40: Oct 31, 2018 | F40: Solar PV Module Weekly Spot Price
A41: Floating solar tech increases hydropower output, finds report | F41: Item | G41: High | H41: Low | I41: Average | J41: AvgChg | K41: AvgChg %
A42: ESI Africa | E42: Oct 31, 2018 | F42: Poly Solar Module | G42: 0.33 | H42: 0.2 | I42: 0.224 | J42: -0.002 | K42: -0.0088
A43: Trina Solar supplies 17MW to the largest floating PV system in Europe | F43: Poly Module in China | G43: 0.26 | H43: 0.2 | I43: 0.212 | J43: -0.002 | K43: -0.0093
A44: PR Newswire (press release) | E44: Oct 31, 2018 | F44: Poly High Eff / PERC Module | G44: 0.37 | H44: 0.22 | I44: 0.256 | J44: -0.002 | K44: -0.0078
A45: Growing Exponentially, Floating Solar Opens Up New Horizons for ... | F45: Mono High Eff / PERC Module | G45: 0.42 | H45: 0.24 | I45: 0.273 | J45: -0.003 | K45: -0.0109
A46: The FINANCIAL | E46: Oct 31, 2018 | F46: Mono High Eff / PERC Module in China | G46: 0.27 | H46: 0.24 | I46: 0.251 | J46: -0.001 | K46: -0.004
A47: Queens lawmakers push for increased usage of solar power | F47: ThinFilm Solar Module | G47: 0.35 | H47: 0.22 | I47: 0.247 | J47: -0.003 | K47: -0.012
A48: TimesLedger | E48: Oct 31, 2018 | F48: US Multi Solar Module | G48: Visit here for more detail module price information
A49: Solar Power Jobs Campaign Aims to Provide Education, Training for ... | F49: Mono Silicon Solar Module | G49: Visit here for more detail module price information
A50: Solar Magazine | E50: Oct 31, 2018 | F50: India Poly Module | G50: Visit here for more detail module price information
A51: Last Update: 2018-Oct- 31 23:00 (GMT+8) | F51: Unit: USD / Watt | G51: more | I51: Last Update: 2018-10-31
F52: All Spot Prices are Tax excluded and updated on Wednesday
A53: Price Methodology | B53: Terms of Use | C53: Privacy Policy | D53: About Us | E53: Contact Us | F53: Site Map
A54: Copyright © 2018 PVinsights.com All rights reserved

Sheet pvinsights 02 12 18
B1: Login | C1: Register | D1: Member Center
A3: Home | B3: Why Solar | C3: Retailer Price | D3: Contract Price | E3: Inverter Price | F3: Weekly Snapshots | G3: Price Download | H3: Monthly Insights | I3: Weekly Forecast | J3: Price Forecast | K3: Premier Insights | L3: Premier Data | M3: Advertising
F4: PV Poly Silicon Weekly Spot Price
A5: Key Date of The US 2017 Section 201 Safeguard Investigation | F5: Item | G5: High | H5: Low | I5: Average | J5: AvgChg | K5: AvgChg%
F6: PV Grade PolySilicon (9N/9N+) | G6: 11.8 | H6: 8.7 | I6: 9.53 | J6: -0.03 | K6: -0.0031
F7: 2nd Grade PolySilicon (6N-8N) | G7: 9.3 | H7: 6.5 | I7: 7.4 | J7: -0.03 | K7: -0.004
A8: Solar PV Corporate News Release | F8: PV Grade PolySilicon in China (9N/9N+) | G8: Visit here for more Poly-Si price | K8: %
A9: JinkoSolar Announces Third Quarter 2018 Financial Results | F9: PV Grade PolySilicon Outside China (9N/9N+) | G9: Visit here for more Poly-Si price | K9: %
A10: JinkoSolar | C10: Nov 26, 2018 | F10: Unit: USD/Kg | G10: more | I10: Last Update: 2018-11-28
A11: CANADIAN SOLAR REPORTS THIRD QUARTER 2018 RESULTS | F11: Definition of PV Grade: Poly silicon chunk with high purity can be directly produced to Solar PV Ingots / Bricks
A12: CanadianSola | C12: Nov 15, 2018 | F12: Definition of 2nd Grade: Poly silicon chunk must be mixed with high purity polysilicon, when producing Solar PV Ingots / Bricks.
A13: SunPower Reports Third Quarter 2018 Results | F13: PolySilicon Price In China: The Price is surveyed by RMB term with Tax and then shown in USD term without 16% of VAT after May 1, 2018 and 17% of VAT before May 1, 2018.
A14: Sunpower | C14: Oct 31, 2018 | F14: Solar PV Wafer Weekly Spot Price
A15: First Solar, Inc. Announces Third Quarter 2018 Financial Results | F15: Item | G15: High | H15: Low | I15: Average | J15: AvgChg | K15: AvgChg%
A16: First Solar | C16: Oct 26, 2018 | F16: 156 mm Multi Solar Wafer | G16: 0.31 | H16: 0.26 | I16: 0.27 | J16: 0.002 | K16: 0.0075
A17: Hanwha Q CELLS Reports Second Quarter 2018 Results | F17: 156 mm High Eff Multi Solar Wafer | G17: 0.31 | H17: 0.265 | I17: 0.275 | J17: 0.002 | K17: 0.0073
A18: Hanwha Q-Cel | C18: Aug 13, 2018 | F18: 156 mm Mono Solar Wafer | G18: 0.41 | H18: 0.35 | I18: 0.371 | J18: 0 | K18: 0
A19: Latest Solar PV News | F19: 156 mm Mono Wafer Outside China | G19: 0.41 | H19: 0.36 | I19: 0.384 | J19: 0 | K19: 0
F20: 156 mm Multi Wafer Outside China | G20: Visit here for more detail wafer price information
A21: China Targets Cut in Wind-, Solar-Power Blocked From Grid Access | F21: 156mm DiamondWire Poly Wafer | G21: Visit here for more detail wafer price information
A22: Bloomberg | E22: Dec 01, 2018 | F22: 156 mm N-Mono Wafer | G22: Visit here for more detail
A23: Kenya secures funding for solar energy development | F23: Unit: USD | G23: more | I23: Last Update: 2018-11-28
A24: New Business Ethiopia | E24: Dec 01, 2018 | F24: Wafer Prices In China: The Prices are surveyed by RMB term with Tax and then shown in USD term without 16% of VAT after May 1, 2018 and 17% of VAT before May 1, 2018.
A25: Solar energy farm proposals for 250 acres of green fields | F25: Solar PV Cell Weekly Spot Price
A26: The Northern Echo | E26: Dec 01, 2018 | F26: Item | G26: High | H26: Low | I26: Average | J26: AvgChg | K26: AvgChg %
A27: Iron-based molecule could replace rarer metals in solar power ... | F27: Multi Cell Price Per Watt | G27: 0.135 | H27: 0.09 | I27: 0.101 | J27: 0.002 | K27: 0.0202
A28: Market Business News | E28: Dec 01, 2018 | F28: Non China Poly Cell Per Watt | G28: 0.14 | H28: 0.09 | I28: 0.101 | J28: 0.002 | K28: 0.0202
A29: New Brilliant Iron Molecule May Be the Key to Cheap Solar Energy | F29: Poly PERC Cell Per Watt | G29: 0.135 | H29: 0.105 | I29: 0.109 | J29: 0.002 | K29: 0.0187
A30: Interesting Engineering | E30: Dec 01, 2018 | F30: Non China Poly PERC Cell Per Watt | G30: 0.135 | H30: 0.115 | I30: 0.12 | J30: 0.002 | K30: 0.0169
A31: What Changed In The Solar Energy Industry In November? | F31: Mono PERC Cell Per Watt | G31: 0.17 | H31: 0.14 | I31: 0.145 | J31: 0.005 | K31: 0.0357
A32: CleanTechnica | E32: Dec 01, 2018 | F32: Non China Mono PERC Cell Per Watt | G32: 0.17 | H32: 0.14 | I32: 0.145 | J32: 0.005 | K32: 0.0357
A33: Windy weather carries Britain to renewable energy record | F33: High Eff Mono PERC Cell Per Watt | G33: 0.17 | H33: 0.145 | I33: 0.15 | J33: 0.005 | K33: 0.0345
A34: The Guardian | E34: Dec 01, 2018 | F34: 156 mm Multi Solar Cell | G34: 0.63 | H34: 0.4 | I34: 0.462 | J34: 0.006 | K34: 0.0132
A35: IRC at Buckhorn to use solar power | F35: 156 mm Mono Solar Cell | G35: 0.87 | H35: 0.53 | I35: 0.6 | J35: 0.01 | K35: 0.0169
A36: Altoona Mirror | E36: Dec 01, 2018 | F36: China Poly Cell Per Watt | G36: Visit here for more detail Cell price information
A37: Build A Bridge, Not A Wall: US Companies Have Renewable Energy ... | F37: Non (TW or CN) Poly Cell Per Watt | G37: Visit here for more detail Cell price information
A38: CleanTechnica | E38: Dec 01, 2018 | F38: Unit: USD | G38: more | I38: Last Update: 2018-11-28
A39: RPT-FEATURE-In Mexico, resistance to solar projects bodes badly ... | F39: High Efficency Mono PERC Cell: The Prices are mainly represented to solar cells for 21.7% efficiency with less than 2% of CTM efficiency lost.
A40: Reuters | E40: Dec 01, 2018 | F40: Solar PV Module Weekly Spot Price
A41: Texas and Mexico have a perfect partnership opportunity ... | F41: Item | G41: High | H41: Low | I41: Average | J41: AvgChg | K41: AvgChg %
A42: Dallas News (blog) | E42: Dec 01, 2018 | F42: Poly Solar Module | G42: 0.33 | H42: 0.19 | I42: 0.217 | J42: -0.003 | K42: -0.0136
A43: How Using Solar Power Energy Can Help Make Crypto Mining ... | F43: Poly Module in China | G43: 0.24 | H43: 0.19 | I43: 0.204 | J43: -0.004 | K43: -0.0192
A44: Bitcoin Exchange Guide | E44: Dec 01, 2018 | F44: Poly High Eff / PERC Module | G44: 0.37 | H44: 0.22 | I44: 0.252 | J44: 0 | K44: 0
A45: Clean energy technologies threaten to overwhelm the grid. Here's ... | F45: Mono High Eff / PERC Module | G45: 0.42 | H45: 0.24 | I45: 0.269 | J45: 0 | K45: 0
A46: Vox | E46: Dec 01, 2018 | F46: Mono High Eff / PERC Module in China | G46: 0.27 | H46: 0.24 | I46: 0.249 | J46: 0 | K46: 0
A47: Future of solar power looks bright | F47: ThinFilm Solar Module | G47: 0.35 | H47: 0.22 | I47: 0.243 | J47: -0.001 | K47: -0.0041
A48: Lethbridge Herald | E48: Dec 01, 2018 | F48: US Multi Solar Module | G48: Visit here for more detail module price information
A49: Solar power, brightening up your world | F49: Mono Silicon Solar Module | G49: Visit here for more detail module price information
A50: The New Indian Express | E50: Dec 01, 2018 | F50: India Poly Module | G50: Visit here for more detail module price information
A51: Last Update: 2018-Dec- 02 14:00 (GMT+8) | F51: Unit: USD / Watt | G51: more | I51: Last Update: 2018-11-28
F52: All Spot Prices are Tax excluded and updated on Wednesday
A53: Price Methodology | B53: Terms of Use | C53: Privacy Policy | D53: About Us | E53: Contact Us | F53: Site Map
A54: Copyright © 2018 PVinsights.com All rights reserved

Sheet pvinsights 02 01 19
B1: Login | C1: Register | D1: Member Center
A3: Home | B3: Why Solar | C3: Retailer Price | D3: Contract Price | E3: Inverter Price | F3: Weekly Snapshots | G3: Price Download | H3: Monthly Insights | I3: Weekly Forecast | J3: Price Forecast | K3: Premier Insights | L3: Premier Data | M3: Advertising
F4: PV Poly Silicon Weekly Spot Price
A5: Key Date of The US 2017 Section 201 Safeguard Investigation | F5: Item | G5: High | H5: Low | I5: Average | J5: AvgChg | K5: AvgChg%
F6: PV Grade PolySilicon (9N/9N+) | G6: 11.5 | H6: 8.45 | I6: 9.26 | J6: -0.27 | K6: -0.0283
F7: 2nd Grade PolySilicon (6N-8N) | G7: 9 | H7: 6.25 | I7: 7.16 | J7: -0.24 | K7: -0.0324
A8: Solar PV Corporate News Release | F8: PV Grade PolySilicon in China (9N/9N+) | G8: Visit here for more Poly-Si price | K8: %
A9: JinkoSolar Announces Third Quarter 2018 Financial Results | F9: PV Grade PolySilicon Outside China (9N/9N+) | G9: Visit here for more Poly-Si price | K9: %
A10: JinkoSolar | C10: Nov 26, 2018 | F10: Unit: USD/Kg | G10: more | I10: Last Update: 2019-01-02
A11: CANADIAN SOLAR REPORTS THIRD QUARTER 2018 RESULTS | F11: Definition of PV Grade: Poly silicon chunk with high purity can be directly produced to Solar PV Ingots / Bricks
A12: CanadianSola | C12: Nov 15, 2018 | F12: Definition of 2nd Grade: Poly silicon chunk must be mixed with high purity polysilicon, when producing Solar PV Ingots / Bricks.
A13: SunPower Reports Third Quarter 2018 Results | F13: PolySilicon Price In China: The Price is surveyed by RMB term with Tax and then shown in USD term without 16% of VAT after May 1, 2018 and 17% of VAT before May 1, 2018.
A14: Sunpower | C14: Oct 31, 2018 | F14: Solar PV Wafer Weekly Spot Price
A15: First Solar, Inc. Announces Third Quarter 2018 Financial Results | F15: Item | G15: High | H15: Low | I15: Average | J15: AvgChg | K15: AvgChg%
A16: First Solar | C16: Oct 26, 2018 | F16: 156 mm Multi Solar Wafer | G16: 0.3 | H16: 0.26 | I16: 0.272 | J16: -0.002 | K16: -0.0073
A17: Hanwha Q CELLS Reports Second Quarter 2018 Results | F17: 156 mm High Eff Multi Solar Wafer | G17: 0.3 | H17: 0.27 | I17: 0.277 | J17: -0.002 | K17: -0.0072
A18: Hanwha Q-Cel | C18: Aug 13, 2018 | F18: 156 mm Mono Solar Wafer | G18: 0.41 | H18: 0.36 | I18: 0.378 | J18: 0 | K18: 0
A19: Latest Solar PV News | F19: 156 mm Mono Wafer Outside China | G19: 0.41 | H19: 0.36 | I19: 0.389 | J19: 0 | K19: 0
F20: 156 mm Multi Wafer Outside China | G20: Visit here for more detail wafer price information
A21: Spotsylvania planners to address proposed solar power facility ... | F21: 156mm DiamondWire Poly Wafer | G21: Visit here for more detail wafer price information
A22: Fredericksburg.com | E22: Jan 03, 2019 | F22: 156 mm N-Mono Wafer | G22: Visit here for more detail
A23: Staring down tariffs and rollbacks, US renewables rang in a record ... | F23: Unit: USD | G23: more | I23: Last Update: 2019-01-02
A24: Utility Dive | E24: Jan 03, 2019 | F24: Wafer Prices In China: The Prices are surveyed by RMB term with Tax and then shown in USD term without 16% of VAT after May 1, 2018 and 17% of VAT before May 1, 2018.
A25: Coalition Releases '100 Day Clean Energy Agenda' For South ... | F25: Solar PV Cell Weekly Spot Price
A26: Solar Industry | E26: Jan 03, 2019 | F26: Item | G26: High | H26: Low | I26: Average | J26: AvgChg | K26: AvgChg %
A27: Watch: Why farmers are unhappy with Karnataka's big bet on solar ... | F27: Multi Cell Price Per Watt | G27: 0.135 | H27: 0.09 | I27: 0.105 | J27: 0 | K27: 0
A28: The News Minute | E28: Jan 03, 2019 | F28: Non China Poly Cell Per Watt | G28: 0.14 | H28: 0.09 | I28: 0.105 | J28: 0 | K28: 0
A29: Commercial Solar Outlook: A Q&A with GE Solar | F29: Poly PERC Cell Per Watt | G29: 0.135 | H29: 0.105 | I29: 0.113 | J29: 0 | K29: 0
A30: Energy Manager Today | E30: Jan 03, 2019 | F30: Non China Poly PERC Cell Per Watt | G30: 0.135 | H30: 0.115 | I30: 0.124 | J30: 0 | K30: 0
A31: SECI begins process for installation of solar power projects in Ladakh | F31: Mono PERC Cell Per Watt | G31: 0.17 | H31: 0.145 | I31: 0.152 | J31: 0 | K31: 0
A32: Daily Excelsior | E32: Jan 03, 2019 | F32: Non China Mono PERC Cell Per Watt | G32: 0.17 | H32: 0.145 | I32: 0.151 | J32: 0 | K32: 0
A33: Installation of 7.5 GW solar power projects begins in Ladakh | F33: High Eff Mono PERC Cell Per Watt | G33: 0.17 | H33: 0.15 | I33: 0.162 | J33: 0.002 | K33: 0.0125
A34: Greater Kashmir | E34: Jan 03, 2019 | F34: 156 mm Multi Solar Cell | G34: 0.63 | H34: 0.4 | I34: 0.481 | J34: 0 | K34: 0
A35: What's In Store for US Solar Energy in 2019? | F35: 156 mm Mono Solar Cell | G35: 0.87 | H35: 0.53 | I35: 0.615 | J35: 0 | K35: 0
A36: State of the Planet (press release) (blog) | E36: Jan 03, 2019 | F36: China Poly Cell Per Watt | G36: Visit here for more detail Cell price information
A37: How To Go Solar If You Cannot Put Panels On Your Roof | F37: Non (TW or CN) Poly Cell Per Watt | G37: Visit here for more detail Cell price information
A38: Forbes | E38: Jan 03, 2019 | F38: Unit: USD | G38: more | I38: Last Update: 2019-01-02
A39: Thin-film PV company Sunflare readies production boost with big ... | F39: High Efficency Mono PERC Cell: The Prices are mainly represented to solar cells for 21.8% efficiency with less than 1.5% of CTM efficiency lost or 22.0% with less than 2% of CTM efficiency lost.
A40: Solar Builder (press release) (blog) | E40: Jan 03, 2019 | F40: Solar PV Module Weekly Spot Price
A41: Midsummer receives major order from US solar panel manufacturer ... | F41: Item | G41: High | H41: Low | I41: Average | J41: AvgChg | K41: AvgChg %
A42: Renewable Energy Magazine (press release) | E42: Jan 03, 2019 | F42: Poly Solar Module | G42: 0.33 | H42: 0.19 | I42: 0.219 | J42: 0 | K42: 0
A43: Tanzania: Renewable Energy - a Friendly Source of Power | F43: Poly Module in China | G43: 0.24 | H43: 0.19 | I43: 0.208 | J43: 0 | K43: 0
A44: AllAfrica.com | E44: Jan 03, 2019 | F44: Poly High Eff / PERC Module | G44: 0.37 | H44: 0.22 | I44: 0.255 | J44: 0 | K44: 0
A45: UltraTech forms joint venture with PE-backed firm to boost solar ... | F45: Mono High Eff / PERC Module | G45: 0.42 | H45: 0.24 | I45: 0.273 | J45: 0 | K45: 0
A46: VCCircle | E46: Jan 03, 2019 | F46: Mono High Eff / PERC Module in China | G46: 0.27 | H46: 0.24 | I46: 0.256 | J46: 0 | K46: 0
A47: Surging summer solar helped UK to another renewables record in ... | F47: ThinFilm Solar Module | G47: 0.35 | H47: 0.22 | I47: 0.246 | J47: 0 | K47: 0
A48: Solar Power Portal | E48: Jan 03, 2019 | F48: US Multi Solar Module | G48: Visit here for more detail module price information
A49: Renewable Energy Market Trends to Watch in 2019 | F49: Mono Silicon Solar Module | G49: Visit here for more detail module price information
A50: AltEnergyMag (press release) | E50: Jan 03, 2019 | F50: India Poly Module | G50: Visit here for more detail module price information
A51: Last Update: 2019-Jan- 03 07:00 (GMT+8) | F51: Unit: USD / Watt | G51: more | I51: Last Update: 2019-01-02
F52: All Spot Prices are Tax excluded and updated on Wednesday
A53: Price Methodology | B53: Terms of Use | C53: Privacy Policy | D53: About Us | E53: Contact Us | F53: Site Map
A54: Copyright © 2019 PVinsights.com All rights reserved

Sheet pvinsights 29 01 19
B1: Login | C1: Register | D1: Member Center
A3: Home | B3: Why Solar | C3: Retailer Price | D3: Contract Price | E3: Inverter Price | F3: Weekly Snapshots | G3: Price Download | H3: Monthly Insights | I3: Weekly Forecast | J3: Price Forecast | K3: Premier Insights | L3: Premier Data | M3: Advertising
F4: PV Poly Silicon Weekly Spot Price
A5: Key Date of The US 2017 Section 201 Safeguard Investigation | F5: Item | G5: High | H5: Low | I5: Average | J5: AvgChg | K5: AvgChg%
F6: PV Grade PolySilicon (9N/9N+) | G6: 11.1 | H6: 8.4 | I6: 8.9 | J6: -0.05 | K6: -0.0056
F7: 2nd Grade PolySilicon (6N-8N) | G7: 8.5 | H7: 6.2 | I7: 6.85 | J7: -0.06 | K7: -0.0087
A8: Solar PV Corporate News Release | F8: PV Grade PolySilicon in China (9N/9N+) | G8: Visit here for more Poly-Si price | K8: %
A9: JinkoSolar Announces Third Quarter 2018 Financial Results | F9: PV Grade PolySilicon Outside China (9N/9N+) | G9: Visit here for more Poly-Si price | K9: %
A10: JinkoSolar | C10: Nov 26, 2018 | F10: Unit: USD/Kg | G10: more | I10: Last Update: 2019-01-23
A11: CANADIAN SOLAR REPORTS THIRD QUARTER 2018 RESULTS | F11: Definition of PV Grade: Poly silicon chunk with high purity can be directly produced to Solar PV Ingots / Bricks
A12: CanadianSola | C12: Nov 15, 2018 | F12: Definition of 2nd Grade: Poly silicon chunk must be mixed with high purity polysilicon, when producing Solar PV Ingots / Bricks.
A13: SunPower Reports Third Quarter 2018 Results | F13: PolySilicon Price In China: The Price is surveyed by RMB term with Tax and then shown in USD term without 16% of VAT after May 1, 2018 and 17% of VAT before May 1, 2018.
A14: Sunpower | C14: Oct 31, 2018 | F14: Solar PV Wafer Weekly Spot Price
A15: First Solar, Inc. Announces Third Quarter 2018 Financial Results | F15: Item | G15: High | H15: Low | I15: Average | J15: AvgChg | K15: AvgChg%
A16: First Solar | C16: Oct 26, 2018 | F16: 156 mm Multi Solar Wafer | G16: 0.3 | H16: 0.26 | I16: 0.271 | J16: -0.001 | K16: -0.0037
A17: Hanwha Q CELLS Reports Second Quarter 2018 Results | F17: 156 mm High Eff Multi Solar Wafer | G17: 0.3 | H17: 0.27 | I17: 0.276 | J17: -0.001 | K17: -0.0036
A18: Hanwha Q-Cel | C18: Aug 13, 2018 | F18: 156 mm Mono Solar Wafer | G18: 0.41 | H18: 0.36 | I18: 0.381 | J18: -0.001 | K18: -0.0026
A19: Latest Solar PV News | F19: 156 mm Mono Wafer Outside China | G19: 0.41 | H19: 0.36 | I19: 0.388 | J19: -0.001 | K19: -0.0026
F20: 156 mm Multi Wafer Outside China | G20: Visit here for more detail wafer price information
A21: Is solar energy still a good option for powering Utah homes? | F21: 156mm DiamondWire Poly Wafer | G21: Visit here for more detail wafer price information
A22: ABC 4 | E22: Jan 30, 2019 | F22: 156 mm N-Mono Wafer | G22: Visit here for more detail
A23: This bill could revise a controversial Indiana solar power law | F23: Unit: USD | G23: more | I23: Last Update: 2019-01-23
A24: Evansville Courier & Press | E24: Jan 30, 2019 | F24: Wafer Prices In China: The Prices are surveyed by RMB term with Tax and then shown in USD term without 16% of VAT after May 1, 2018 and 17% of VAT before May 1, 2018.
A25: State House Defines Solar Energy Permits | F25: Solar PV Cell Weekly Spot Price
A26: KELOLAND TV | E26: Jan 30, 2019 | F26: Item | G26: High | H26: Low | I26: Average | J26: AvgChg | K26: AvgChg %
A27: After busy 2018, Duke Energy plans to deliver more solar power this ... | F27: Multi Cell Price Per Watt | G27: 0.135 | H27: 0.09 | I27: 0.105 | J27: -0.001 | K27: -0.0094
A28: Independent Tribune | E28: Jan 30, 2019 | F28: Non China Poly Cell Per Watt | G28: 0.14 | H28: 0.09 | I28: 0.105 | J28: -0.001 | K28: -0.0094
A29: More than 3500 solar panels being installed at the city's water ... | F29: Poly PERC Cell Per Watt | G29: 0.135 | H29: 0.105 | I29: 0.113 | J29: -0.001 | K29: -0.0088
A30: Chicago Tribune | E30: Jan 30, 2019 | F30: Non China Poly PERC Cell Per Watt | G30: 0.135 | H30: 0.115 | I30: 0.124 | J30: -0.001 | K30: -0.008
A31: Column: Appearances do matter, even with the installation of solar ... | F31: Mono PERC Cell Per Watt | G31: 0.17 | H31: 0.145 | I31: 0.153 | J31: -0.001 | K31: -0.0065
A32: Chicago Tribune | E32: Jan 30, 2019 | F32: Non China Mono PERC Cell Per Watt | G32: 0.17 | H32: 0.145 | I32: 0.152 | J32: -0.001 | K32: -0.0065
A33: Florida Power & Light Hits 1 GW Solar Milestone | F33: High Eff Mono PERC Cell Per Watt | G33: 0.17 | H33: 0.15 | I33: 0.162 | J33: -0.001 | K33: -0.0061
A34: Solar Industry | E34: Jan 30, 2019 | F34: 156 mm Multi Solar Cell | G34: 0.63 | H34: 0.4 | I34: 0.481 | J34: -0.004 | K34: -0.0082
A35: Florida solar powers to 1GW | F35: 156 mm Mono Solar Cell | G35: 0.87 | H35: 0.53 | I35: 0.61 | J35: -0.01 | K35: -0.0161
A36: reNEWS | E36: Jan 30, 2019 | F36: China Poly Cell Per Watt | G36: Visit here for more detail Cell price information
A37: pvMB 1/29/19: FPL exceeds 1 GW of solar, Enphase loan payoff ... | F37: Non (TW or CN) Poly Cell Per Watt | G37: Visit here for more detail Cell price information
A38: pv magazine USA | E38: Jan 30, 2019 | F38: Unit: USD | G38: more | I38: Last Update: 2019-01-23
A39: FPL's solar generation surpasses 1000MW | F39: High Efficency Mono PERC Cell: The Prices are mainly represented to solar cells for 21.8% efficiency with less than 1.5% of CTM efficiency lost or 22.0% with less than 2% of CTM efficiency lost.
A40: Energy Digital | E40: Jan 30, 2019 | F40: Solar PV Module Weekly Spot Price
A41: Two new Pivot Energy community solar gardens now online in Denver | F41: Item | G41: High | H41: Low | I41: Average | J41: AvgChg | K41: AvgChg %
A42: Solar Power World | E42: Jan 30, 2019 | F42: Poly Solar Module | G42: 0.33 | H42: 0.19 | I42: 0.218 | J42: -0.001 | K42: -0.0046
A43: Costs are falling for renewable energy stored in batteries | F43: Poly Module in China | G43: 0.24 | H43: 0.19 | I43: 0.207 | J43: -0.001 | K43: -0.0048
A44: Marketplace.org | E44: Jan 30, 2019 | F44: Poly High Eff / PERC Module | G44: 0.37 | H44: 0.22 | I44: 0.254 | J44: -0.001 | K44: -0.0039
A45: GoviEx Exploring Renewable, Lower-Cost, Solar Energy Solutions ... | F45: Mono High Eff / PERC Module | G45: 0.42 | H45: 0.24 | I45: 0.272 | J45: -0.001 | K45: -0.0037
A46: MarketWatch | E46: Jan 30, 2019 | F46: Mono High Eff / PERC Module in China | G46: 0.27 | H46: 0.24 | I46: 0.254 | J46: -0.002 | K46: -0.0078
A47: India Cuts Size Of Biggest Solar Tender To A Third After Tepid ... | F47: ThinFilm Solar Module | G47: 0.35 | H47: 0.22 | I47: 0.245 | J47: -0.001 | K47: -0.0041
A48: BloombergQuint | E48: Jan 30, 2019 | F48: US Multi Solar Module | G48: Visit here for more detail module price information
A49: Indian Railways Planning 4 Gigawatts Solar Power Capacity | F49: Mono Silicon Solar Module | G49: Visit here for more detail module price information
A50: CleanTechnica | E50: Jan 30, 2019 | F50: India Poly Module | G50: Visit here for more detail module price information
A51: Last Update: 2019-Jan- 30 07:00 (GMT+8) | F51: Unit: USD / Watt | G51: more | I51: Last Update: 2019-01-23
F52: All Spot Prices are Tax excluded and updated on Wednesday
A53: Price Methodology | B53: Terms of Use | C53: Privacy Policy | D53: About Us | E53: Contact Us | F53: Site Map
A54: Copyright © 2019 PVinsights.com All rights reserved

Sheet pvinsights 05 03 19
B1: Login | C1: Register | D1: Member Center
A3: Home | B3: Why Solar | C3: Retailer Price | D3: Contract Price | E3: Inverter Price | F3: Weekly Snapshots | G3: Price Download | H3: Monthly Insights | I3: Weekly Forecast | J3: Price Forecast | K3: Premier Insights | L3: Premier Data | M3: Advertising
F4: PV Poly Silicon Weekly Spot Price
A5: The US 2018 AD & CVD Sunset Reviews | F5: Item | G5: High | H5: Low | I5: Average | J5: AvgChg | K5: AvgChg%
F6: PV Grade PolySilicon (9N/9N+) | G6: 10.8 | H6: 8.8 | I6: 9.04 | J6: 0.15 | K6: 0.0169
F7: 2nd Grade PolySilicon (6N-8N) | G7: 8.5 | H7: 6.5 | I7: 6.94 | J7: 0.1 | K7: 0.0146
A8: Solar PV Corporate News Release | F8: PV Grade PolySilicon in China (9N/9N+) | G8: Visit here for more Poly-Si price | K8: %
A9: FIRST SOLAR, INC. ANNOUNCES FOURTH QUARTER & FULL YEAR 2018 FINANCIAL RESULTS | F9: PV Grade PolySilicon Outside China (9N/9N+) | G9: Visit here for more Poly-Si price | K9: %
A10: First Solar | C10: Feb 22, 2019 | F10: Unit: USD/Kg | G10: more | I10: Last Update: 2019-02-27
A11: SunPower Reports Fourth Quarter and Fiscal Year 2018 Results | F11: Definition of PV Grade: Poly silicon chunk with high purity can be directly produced to Solar PV Ingots / Bricks
A12: Sunpower | C12: Feb 14, 2019 | F12: Definition of 2nd Grade: Poly silicon chunk must be mixed with high purity polysilicon, when producing Solar PV Ingots / Bricks.
A13: JinkoSolar Announces Third Quarter 2018 Financial Results | F13: PolySilicon Price In China: The Price is surveyed by RMB term with Tax and then shown in USD term without 16% of VAT after May 1, 2018 and 17% of VAT before May 1, 2018.
A14: JinkoSolar | C14: Nov 26, 2018 | F14: Solar PV Wafer Weekly Spot Price
A15: CANADIAN SOLAR REPORTS THIRD QUARTER 2018 RESULTS | F15: Item | G15: High | H15: Low | I15: Average | J15: AvgChg | K15: AvgChg%
A16: CanadianSola | C16: Nov 15, 2018 | F16: 156 mm Multi Solar Wafer | G16: 0.3 | H16: 0.27 | I16: 0.276 | J16: 0.002 | K16: 0.0073
A17: SunPower Reports Third Quarter 2018 Results | F17: 156 mm High Eff Multi Solar Wafer | G17: 0.3 | H17: 0.275 | I17: 0.281 | J17: 0.002 | K17: 0.0072
A18: Sunpower | C18: Oct 31, 2018 | F18: 156 mm Mono Solar Wafer | G18: 0.42 | H18: 0.375 | I18: 0.395 | J18: 0.005 | K18: 0.0128
A19: Latest Solar PV News | F19: 156 mm Mono Wafer Outside China | G19: 0.42 | H19: 0.375 | I19: 0.402 | J19: 0.005 | K19: 0.0126
F20: 156 mm Multi Wafer Outside China | G20: Visit here for more detail wafer price information
A21: SunPower is promoting a 400-watt residential solar panel, the A ... | F21: 156mm DiamondWire Poly Wafer | G21: Visit here for more detail wafer price information
A22: Solar Builder (press release) (blog)Solar Power World | E22: Mar 06, 2019 | F22: 156 mm N-Mono Wafer | G22: Visit here for more detail
A23: SunPower launches up-to-415-W solar panel for US homeowners | F23: Unit: USD | G23: more | I23: Last Update: 2019-02-27
A24: Renewables Now | E24: Mar 06, 2019 | F24: Wafer Prices In China: The Prices are surveyed by RMB term with Tax and then shown in USD term without 16% of VAT after May 1, 2018 and 17% of VAT before May 1, 2018.
A25: SunPower Launches Industry's First 400-Plus-Watt Home Solar ... | F25: Solar PV Cell Weekly Spot Price
A26: PRNewswire (press release) | E26: Mar 06, 2019 | F26: Item | G26: High | H26: Low | I26: Average | J26: AvgChg | K26: AvgChg %
A27: 3 Top Renewable Energy Stocks to Watch This Month | F27: Multi Cell Price Per Watt | G27: 0.135 | H27: 0.1 | I27: 0.11 | J27: 0.002 | K27: 0.0185
A28: Motley Fool | E28: Mar 06, 2019 | F28: Non China Poly Cell Per Watt | G28: 0.14 | H28: 0.1 | I28: 0.109 | J28: 0.001 | K28: 0.0093
A29: Park Ridge explores removing 'barriers' to solar energy installation | F29: Poly PERC Cell Per Watt | G29: 0.135 | H29: 0.115 | I29: 0.117 | J29: 0.002 | K29: 0.0174
A30: Chicago Tribune | E30: Mar 06, 2019 | F30: Non China Poly PERC Cell Per Watt | G30: 0.135 | H30: 0.125 | I30: 0.127 | J30: 0.001 | K30: 0.0079
A31: Green Party peer accuses UK government of 'state theft' over solar ... | F31: Mono PERC Cell Per Watt | G31: 0.17 | H31: 0.145 | I31: 0.152 | J31: -0.001 | K31: -0.0065
A32: E&T Magazine | E32: Mar 06, 2019 | F32: Non China Mono PERC Cell Per Watt | G32: 0.17 | H32: 0.145 | I32: 0.153 | J32: -0.001 | K32: -0.0065
A33: Your favorite beer, powered by solar energy | F33: High Eff Mono PERC Cell Per Watt | G33: 0.17 | H33: 0.15 | I33: 0.16 | J33: -0.002 | K33: -0.0123
A34: Marin Independent Journal | E34: Mar 06, 2019 | F34: 156 mm Multi Solar Cell | G34: 0.63 | H34: 0.45 | I34: 0.504 | J34: 0.009 | K34: 0.0182
A35: Your silicon solar panels are limited to around 30pc efficiency, but ... | F35: 156 mm Mono Solar Cell | G35: 0.87 | H35: 0.53 | I35: 0.615 | J35: 0 | K35: 0
A36: ABC News | E36: Mar 06, 2019 | F36: China Poly Cell Per Watt | G36: Visit here for more detail Cell price information
A37: FPL's Parrish power plant to double solar energy-generating ... | F37: Non (TW or CN) Poly Cell Per Watt | G37: Visit here for more detail Cell price information
A38: Bradenton HeraldSpaceCoastDaily.com | E38: Mar 06, 2019 | F38: Unit: USD | G38: more | I38: Last Update: 2019-02-27
A39: FPL announces four new solar power plants | F39: High Efficency Mono PERC Cell: The Prices are mainly represented to solar cells for 21.8% efficiency with less than 1.5% of CTM efficiency lost or 22.0% with less than 2% of CTM efficiency lost.
A40: Florida Politics (blog) | E40: Mar 06, 2019 | F40: Solar PV Module Weekly Spot Price
A41: China Plans To Build The World's First Solar Power Station In Space | F41: Item | G41: High | H41: Low | I41: Average | J41: AvgChg | K41: AvgChg %
A42: Forbes | E42: Mar 06, 2019 | F42: Poly Solar Module | G42: 0.31 | H42: 0.2 | I42: 0.216 | J42: 0.003 | K42: 0.0141
A43: Berlin missing opportunity by leaving solar power out of new school ... | F43: Poly Module in China | G43: 0.24 | H43: 0.2 | I43: 0.207 | J43: 0.002 | K43: 0.0098
A44: Clean Energy Wire | E44: Mar 06, 2019 | F44: Poly High Eff / PERC Module | G44: 0.35 | H44: 0.23 | I44: 0.257 | J44: 0.006 | K44: 0.0239
A45: BluEarth Renewables acquires 23-MW Midwest solar portfolio | F45: Mono High Eff / PERC Module | G45: 0.4 | H45: 0.25 | I45: 0.277 | J45: 0.007 | K45: 0.0259
A46: Solar Power World | E46: Mar 06, 2019 | F46: Mono High Eff / PERC Module in China | G46: 0.27 | H46: 0.25 | I46: 0.256 | J46: 0.003 | K46: 0.0119
A47: City of Binghamton Offering No-Cost Community Solar Energy | F47: ThinFilm Solar Module | G47: 0.33 | H47: 0.23 | I47: 0.244 | J47: 0.002 | K47: 0.0083
A48: WICZ | E48: Mar 06, 2019 | F48: US Multi Solar Module | G48: Visit here for more detail module price information
A49: Solar and Renewable Energy Policy Roundup from February 2019 | F49: Mono Silicon Solar Module | G49: Visit here for more detail module price information
A50: Mercom Indiachinadialogue | E50: Mar 06, 2019 | F50: India Poly Module | G50: Visit here for more detail module price information
A51: Last Update: 2019-Mar- 06 07:00 (GMT+8) | F51: Unit: USD / Watt | G51: more | I51: Last Update: 2019-02-27
F52: All Spot Prices are Tax excluded and updated on Wednesday
A53: Price Methodology | B53: Terms of Use | C53: Privacy Policy | D53: About Us | E53: Contact Us | F53: Site Map
A54: Copyright © 2019 PVinsights.com All rights reserved

Sheet pvinsights 07 05 19
B1: Login | C1: Register | D1: Member Center
A3: Home | B3: Why Solar | C3: Retailer Price | D3: Contract Price | E3: Inverter Price | F3: Weekly Snapshots | G3: Price Download | H3: Monthly Insights | I3: Weekly Forecast | J3: Price Forecast | K3: Premier Insights | L3: Premier Data | M3: Advertising
F4: PV Poly Silicon Weekly Spot Price
A5: The US 2018 AD & CVD Sunset Reviews | F5: Item | G5: High | H5: Low | I5: Average | J5: AvgChg | K5: AvgChg%
F6: PV Grade PolySilicon (9N/9N+) | G6: 10 | H6: 7.4 | I6: 8.42 | J6: 0 | K6: 0
F7: 2nd Grade PolySilicon (6N-8N) | G7: 7.8 | H7: 5.8 | I7: 6.15 | J7: 0 | K7: 0
A8: Solar PV Corporate News Release | F8: PV Mono Grade PolySilicon in China (11N/11N+) | G8: 10 | H8: 9 | I8: 9.32 | J8: 0 | K8: 0
A9: JinkoSolar Announces Fourth Quarter and Full Year 2018 Financial Results | F9: PV Grade PolySilicon in China (9N/9N+) | G9: Visit here for more Poly-Si price | K9: %
A10: JinkoSolar | C10: Mar 22, 2019 | F10: PV Grade PolySilicon Outside China (9N/9N+) | G10: Visit here for more Poly-Si price | K10: %
A11: Canadian Solar Reports Fourth Quarter and Full Year 2018 Results | F11: Unit: USD/Kg | G11: more | I11: Last Update: 2019-05-01
A12: CanadianSola | C12: Mar 21, 2019 | F12: Definition of PV Grade: Poly silicon chunk with high purity can be directly produced to Solar PV Ingots / Bricks
A13: FIRST SOLAR, INC. ANNOUNCES FOURTH QUARTER & FULL YEAR 2018 FINANCIAL RESULTS | F13: Definition of 2nd Grade: Poly silicon chunk must be mixed with high purity polysilicon, when producing Solar PV Ingots / Bricks.
A14: First Solar | C14: Feb 22, 2019 | F14: PolySilicon Price In China: The Price is surveyed by RMB term with Tax and then shown in USD term without 13% of VAT after Apri 1, 2019, 16% of VAT after May 1, 2018 and 17% of VAT before May 1, 2018.
A15: SunPower Reports Fourth Quarter and Fiscal Year 2018 Results | F15: Solar PV Wafer Weekly Spot Price
A16: Sunpower | C16: Feb 14, 2019 | F16: Item | G16: High | H16: Low | I16: Average | J16: AvgChg | K16: AvgChg%
A17: JinkoSolar Announces Third Quarter 2018 Financial Results | F17: 156 mm Multi Solar Wafer | G17: 0.29 | H17: 0.26 | I17: 0.266 | J17: 0 | K17: 0
A18: JinkoSolar | C18: Nov 26, 2018 | F18: 156 mm High Eff Multi Solar Wafer | G18: 0.29 | H18: 0.26 | I18: 0.266 | J18: 0 | K18: 0
A19: Latest Solar PV News | F19: 156 mm Mono Solar Wafer | G19: 0.43 | H19: 0.375 | I19: 0.399 | J19: 0 | K19: 0
F20: 180um Mono Wafer Outside China | G20: 0.43 | H20: 0.405 | I20: 0.411 | J20: 0 | K20: 0
A21: Solar energy to power GAC Dubai's warehouses | F21: 158.75 / 161.75mm Mono Wafer | G21: 0.46 | H21: 0.415 | I21: 0.434 | J21: 0 | K21: 0
A22: Logistics Middle East | E22: May 07, 2019 | F22: 156 mm Multi Wafer Outside China | G22: Visit here for more detail wafer price information
A23: India solar capacity tops 30GW | F23: 156mm DiamondWire Poly Wafer | G23: Visit here for more detail wafer price information
A24: reNEWS | E24: May 07, 2019 | F24: 156 mm N-Mono Wafer | G24: Visit here for more detail
A25: Eyeing investment, India considers new solar tender with focus on ... | F25: Unit: USD | G25: more | I25: Last Update: 2019-05-01
A26: Business Standard | E26: May 07, 2019 | F26: Wafer Prices In China: The Prices are surveyed by RMB term with Tax and then shown in USD term without 13% of VAT after April 1, 2019, 16% of VAT after May 1, 2018 and 17% of VAT before May 1, 2018.
A27: India mulls new solar tender with focus on factories | F27: Solar PV Cell Weekly Spot Price
A28: Economic Times | E28: May 07, 2019 | F28: Item | G28: High | H28: Low | I28: Average | J28: AvgChg | K28: AvgChg %
A29: How to Switch to Renewable, Sustainable Energy in Connecticut | F29: Multi Cell Price | G29: 0.135 | H29: 0.095 | I29: 0.107 | J29: 0.003 | K29: 0.0288
A30: NBC Connecticut | E30: May 07, 2019 | F30: Non China Poly Cell | G30: 0.14 | H30: 0.1 | I30: 0.107 | J30: 0.003 | K30: 0.0288
A31: C2 Energy Capital To Build Up C&I Solar Portfolio To 400 Megawatts | F31: Poly PERC Cell | G31: 0.135 | H31: 0.11 | I31: 0.118 | J31: 0.003 | K31: 0.0261
A32: CleanTechnica | E32: May 07, 2019 | F32: Non China Poly PERC Cell | G32: 0.135 | H32: 0.12 | I32: 0.128 | J32: 0.003 | K32: 0.024
A33: What if We Turned The Sahara Desert Into a Giant Solar Farm? | F33: 158.75/161.75mm Mono PERC Cell | G33: 0.18 | H33: 0.16 | I33: 0.163 | J33: 0 | K33: 0
A34: ScienceAlert | E34: May 07, 2019 | F34: China Poly Cell Per Watt | G34: Visit here for more detail Cell price information
A35: Tesla Makes a Last-Gasp Effort to Revive Its Solar Energy Business | F35: Non (TW or CN) Poly Cell Per Watt | G35: Visit here for more detail Cell price information
A36: Yahoo Finance | E36: May 07, 2019 | F36: Unit: USD / Watt | G36: more | I36: Last Update: 2019-05-01
A37: How Virginia is breaking logjams around solar energy legislation | F37: High Efficency Mono PERC Cell: The Prices are mainly represented to solar cells for 21.8% efficiency with less than 1.5% of CTM efficiency lost or 22.0% with less than 2% of CTM efficiency lost.
A38: Energy News Network | E38: May 07, 2019 | F38: Solar PV Module Weekly Spot Price
A39: Daintree Rainforest solar to hydrogen microgrid an Australian first | F39: Item | G39: High | H39: Low | I39: Average | J39: AvgChg | K39: AvgChg %
A40: Energy Matters | E40: May 07, 2019 | F40: Poly Solar Module | G40: 0.31 | H40: 0.2 | I40: 0.214 | J40: 0 | K40: 0
A41: May 7 Letters: Solar energy is not a primary source | F41: Poly Module in China | G41: 0.24 | H41: 0.2 | I41: 0.206 | J41: 0 | K41: 0
A42: Daily Press | E42: May 07, 2019 | F42: Poly High Eff / PERC Module | G42: 0.35 | H42: 0.23 | I42: 0.256 | J42: 0.002 | K42: 0.0079
A43: Renewable energy growth stalled last year | F43: Mono High Eff / PERC Module | G43: 0.4 | H43: 0.24 | I43: 0.276 | J43: 0.003 | K43: 0.011
A44: Chron.com | E44: May 07, 2019 | F44: Mono High Eff / PERC Module in China | G44: 0.27 | H44: 0.24 | I44: 0.253 | J44: 0 | K44: 0
A45: Solar panel operation and maintenance: Popular packages ... | F45: ThinFilm Solar Module | G45: 0.33 | H45: 0.23 | I45: 0.246 | J45: 0.003 | K45: 0.0123
A46: Economic Times | E46: May 07, 2019 | F46: US Multi Solar Module | G46: Visit here for more detail module price information
A47: Federal Labor solar battery rebate in sync with renewable energy ... | F47: Mono Silicon Solar Module | G47: Visit here for more detail module price information
A48: Energy MattersThe Hindu BusinessLine | E48: May 07, 2019 | F48: India Poly Module | G48: Visit here for more detail module price information
A49: Commercial solar power plants: Installation process and related ... | F49: Unit: USD / Watt | G49: more | I49: Last Update: 2019-05-01
A50: Economic Times | E50: May 07, 2019 | F50: All Spot Prices are Tax excluded and updated on Wednesday
A51: Last Update: 2019-May- 07 20:00 (GMT+8)
A52: Price Methodology | B52: Terms of Use | C52: Privacy Policy | D52: About Us | E52: Contact Us | F52: Site Map
A53: Copyright © 2019 PVinsights.com All rights reserved

Sheet pvinsights 19 05 19
B1: Login | C1: Register | D1: Member Center
A3: Home | B3: Why Solar | C3: Retailer Price | D3: Contract Price | E3: Inverter Price | F3: Weekly Snapshots | G3: Price Download | H3: Monthly Insights | I3: Weekly Forecast | J3: Price Forecast | K3: Premier Insights | L3: Premier Data | M3: Advertising
F4: PV Poly Silicon Weekly Spot Price
A5: The US 2018 AD & CVD Sunset Reviews | F5: Item | G5: High | H5: Low | I5: Average | J5: AvgChg | K5: AvgChg%
F6: PV Grade PolySilicon (9N/9N+) | G6: 10 | H6: 7.3 | I6: 8.34 | J6: -0.08 | K6: -0.0095
F7: 2nd Grade PolySilicon (6N-8N) | G7: 7.8 | H7: 5.7 | I7: 6.09 | J7: -0.06 | K7: -0.0098
A8: Solar PV Corporate News Release | F8: PV Mono Grade PolySilicon in China (11N/11N+) | G8: 10 | H8: 8.9 | I8: 9.23 | J8: -0.09 | K8: -0.0097
A9: JinkoSolar Announces Fourth Quarter and Full Year 2018 Financial Results | F9: PV Grade PolySilicon in China (9N/9N+) | G9: Visit here for more Poly-Si price | K9: %
A10: JinkoSolar | C10: Mar 22, 2019 | F10: PV Grade PolySilicon Outside China (9N/9N+) | G10: Visit here for more Poly-Si price | K10: %
A11: Canadian Solar Reports Fourth Quarter and Full Year 2018 Results | F11: Unit: USD/Kg | G11: more | I11: Last Update: 2019-05-15
A12: CanadianSola | C12: Mar 21, 2019 | F12: Definition of PV Grade: Poly silicon chunk with high purity can be directly produced to Solar PV Ingots / Bricks
A13: FIRST SOLAR, INC. ANNOUNCES FOURTH QUARTER & FULL YEAR 2018 FINANCIAL RESULTS | F13: Definition of 2nd Grade: Poly silicon chunk must be mixed with high purity polysilicon, when producing Solar PV Ingots / Bricks.
A14: First Solar | C14: Feb 22, 2019 | F14: PolySilicon Price In China: The Price is surveyed by RMB term with Tax and then shown in USD term without 13% of VAT after Apri 1, 2019, 16% of VAT after May 1, 2018 and 17% of VAT before May 1, 2018.
A15: SunPower Reports Fourth Quarter and Fiscal Year 2018 Results | F15: Solar PV Wafer Weekly Spot Price
A16: Sunpower | C16: Feb 14, 2019 | F16: Item | G16: High | H16: Low | I16: Average | J16: AvgChg | K16: AvgChg%
A17: JinkoSolar Announces Third Quarter 2018 Financial Results | F17: 156 mm Multi Solar Wafer | G17: 0.29 | H17: 0.25 | I17: 0.262 | J17: -0.003 | K17: -0.0113
A18: JinkoSolar | C18: Nov 26, 2018 | F18: 156 mm High Eff Multi Solar Wafer | G18: 0.29 | H18: 0.25 | I18: 0.262 | J18: -0.003 | K18: -0.0113
A19: Latest Solar PV News | F19: 156 mm Mono Solar Wafer | G19: 0.43 | H19: 0.37 | I19: 0.396 | J19: -0.002 | K19: -0.005
F20: 180um Mono Wafer Outside China | G20: 0.43 | H20: 0.4 | I20: 0.409 | J20: -0.001 | K20: -0.0024
A21: Know Your Madisonian: Fatherhood changed perspective for solar ... | F21: 158.75 / 161.75mm Mono Wafer | G21: 0.46 | H21: 0.41 | I21: 0.432 | J21: -0.001 | K21: -0.0023
A22: Madison.comGhanaWeb | E22: May 18, 2019 | F22: 156 mm Multi Wafer Outside China | G22: Visit here for more detail wafer price information
A23: India Installs Just 55% Of Target Renewable Energy Capacity In ... | F23: 156mm DiamondWire Poly Wafer | G23: Visit here for more detail wafer price information
A24: CleanTechnica | E24: May 18, 2019 | F24: 156 mm N-Mono Wafer | G24: Visit here for more detail
A25: Solar companies concerned with Alberta rebate program uncertainty | F25: Unit: USD | G25: more | I25: Last Update: 2019-05-15
A26: Globalnews.ca | E26: May 18, 2019 | F26: Wafer Prices In China: The Prices are surveyed by RMB term with Tax and then shown in USD term without 13% of VAT after April 1, 2019, 16% of VAT after May 1, 2018 and 17% of VAT before May 1, 2018.
A27: Dominion plans six new solar power plants to generate 'clean ... | F27: Solar PV Cell Weekly Spot Price
A28: Richmond.comGrist | E28: May 18, 2019 | F28: Item | G28: High | H28: Low | I28: Average | J28: AvgChg | K28: AvgChg %
A29: Renewable Energy Job Boom Creates Economic Opportunity As ... | F29: Multi Cell Price | G29: 0.135 | H29: 0.095 | I29: 0.106 | J29: -0.001 | K29: -0.0093
A30: Forbes | E30: May 18, 2019 | F30: Non China Poly Cell | G30: 0.14 | H30: 0.1 | I30: 0.106 | J30: -0.001 | K30: -0.0093
A31: How wind and solar became America's cheapest energy source | F31: Poly PERC Cell | G31: 0.135 | H31: 0.11 | I31: 0.117 | J31: -0.001 | K31: -0.0085
A32: CBS News | E32: May 18, 2019 | F32: Non China Poly PERC Cell | G32: 0.135 | H32: 0.12 | I32: 0.128 | J32: 0 | K32: 0
A33: A Brief History of Solar Panels | F33: 158.75/161.75mm Mono PERC Cell | G33: 0.18 | H33: 0.155 | I33: 0.16 | J33: -0.002 | K33: -0.0123
A34: Smithsonian | E34: May 18, 2019 | F34: China Poly Cell Per Watt | G34: Visit here for more detail Cell price information
A35: Renewable energy capacity in Texas REC program grew by almost ... | F35: Non (TW or CN) Poly Cell Per Watt | G35: Visit here for more detail Cell price information
A36: S&P Global PlattsCaixin Global | E36: May 18, 2019 | F36: Unit: USD / Watt | G36: more | I36: Last Update: 2019-05-15
A37: Vote Solar report finds Gov. Cuomo's 6-GW solar goal would create ... | F37: High Efficency Mono PERC Cell: The Prices are mainly represented to solar cells for 21.8% efficiency with less than 1.5% of CTM efficiency lost or 22.0% with less than 2% of CTM efficiency lost.
A38: Solar Power World | E38: May 18, 2019 | F38: Solar PV Module Weekly Spot Price
A39: It just became much easier for businesses to move off Eskom's grid ... | F39: Item | G39: High | H39: Low | I39: Average | J39: AvgChg | K39: AvgChg %
A40: Business Insider South Africa | E40: May 18, 2019 | F40: Poly Solar Module | G40: 0.31 | H40: 0.2 | I40: 0.213 | J40: -0.001 | K40: -0.0047
A41: Why Tesla is offering rock-bottom solar panel prices | F41: Poly Module in China | G41: 0.24 | H41: 0.2 | I41: 0.204 | J41: -0.001 | K41: -0.0049
A42: CNN | E42: May 18, 2019 | F42: Poly High Eff / PERC Module | G42: 0.35 | H42: 0.225 | I42: 0.256 | J42: -0.001 | K42: -0.0039
A43: Czech Republic Wins 4 Cases Over Solar Energy Incentives | F43: Mono High Eff / PERC Module | G43: 0.4 | H43: 0.24 | I43: 0.277 | J43: -0.001 | K43: -0.0036
A44: Law360 | E44: May 18, 2019 | F44: Mono High Eff / PERC Module in China | G44: 0.27 | H44: 0.24 | I44: 0.251 | J44: -0.001 | K44: -0.004
A45: Minnesota's solar program sees opposition despite popularity | F45: ThinFilm Solar Module | G45: 0.33 | H45: 0.23 | I45: 0.248 | J45: 0 | K45: 0
A46: Minneapolis Star Tribune | E46: May 18, 2019 | F46: US Multi Solar Module | G46: Visit here for more detail module price information
A47: Walmart in big solar power deal | F47: Mono Silicon Solar Module | G47: Visit here for more detail module price information
A48: Chain Store AgeUMN News | E48: May 18, 2019 | F48: India Poly Module | G48: Visit here for more detail module price information
A49: Solar Panel Art Series Unveils The Exclusive Transition Edition In ... | F49: Unit: USD / Watt | G49: more | I49: Last Update: 2019-05-15
A50: CleanTechnica | E50: May 18, 2019 | F50: All Spot Prices are Tax excluded and updated on Wednesday
A51: Last Update: 2019-May- 19 14:00 (GMT+8)
A52: Price Methodology | B52: Terms of Use | C52: Privacy Policy | D52: About Us | E52: Contact Us | F52: Site Map
A53: Copyright © 2019 PVinsights.com All rights reserved

Sheet pvinsights 27 06 19
B1: Login | C1: Register | D1: Member Center
A3: Home | B3: Why Solar | C3: Retailer Price | D3: Contract Price | E3: Inverter Price | F3: Weekly Snapshots | G3: Price Download | H3: Monthly Insights | I3: Weekly Forecast | J3: Price Forecast | K3: Premier Insights | L3: Premier Data | M3: Advertising
F4: PV Poly Silicon Weekly Spot Price
A5: The US 2018 AD & CVD Sunset Reviews | F5: Item | G5: High | H5: Low | I5: Average | J5: AvgChg | K5: AvgChg%
F6: PV Grade PolySilicon (9N/9N+) | G6: 10 | H6: 7.3 | I6: 8.14 | J6: -0.02 | K6: -0.0025
F7: 2nd Grade PolySilicon (6N-8N) | G7: 7.6 | H7: 5.7 | I7: 6 | J7: -0.02 | K7: -0.0033
A8: Solar PV Corporate News Release | F8: PV Mono Grade PolySilicon in China (11N/11N+) | G8: 10 | H8: 9 | I8: 9.35 | J8: 0 | K8: 0
A9: CANADIAN SOLAR REPORTS FIRST QUARTER 2019 RESULTS | F9: PV Grade PolySilicon in China (9N/9N+) | G9: Visit here for more Poly-Si price | K9: %
A10: CanadianSol | C10: May 30, 2019 | F10: PV Grade PolySilicon Outside China (9N/9N+) | G10: Visit here for more Poly-Si price | K10: %
A11: SunPower Reports First Quarter 2019 Results | F11: Unit: USD/Kg | G11: more | I11: Last Update: 2019-06-26
A12: Sunpower | C12: May 10, 2019 | F12: Definition of PV Grade: Poly silicon chunk with high purity can be directly produced to Solar PV Ingots / Bricks
A13: First Solar, Inc. Announces First Quarter 2019 Financial Results | F13: Definition of 2nd Grade: Poly silicon chunk must be mixed with high purity polysilicon, when producing Solar PV Ingots / Bricks.
A14: First Solar | C14: May 03, 2019 | F14: PolySilicon Price In China: The Price is surveyed by RMB term with Tax and then shown in USD term without 13% of VAT after Apri 1, 2019, 16% of VAT after May 1, 2018 and 17% of VAT before May 1, 2018.
A15: JinkoSolar Announces Fourth Quarter and Full Year 2018 Financial Results | F15: Solar PV Wafer Weekly Spot Price
A16: JinkoSolar | C16: Mar 22, 2019 | F16: Item | G16: High | H16: Low | I16: Average | J16: AvgChg | K16: AvgChg%
A17: Canadian Solar Reports Fourth Quarter and Full Year 2018 Results | F17: 156 mm Multi Solar Wafer | G17: 0.28 | H17: 0.25 | I17: 0.258 | J17: -0.002 | K17: -0.0077
A18: CanadianSola | C18: Mar 21, 2019 | F18: 156 mm High Eff Multi Solar Wafer | G18: 0.28 | H18: 0.25 | I18: 0.258 | J18: -0.002 | K18: -0.0077
A19: Latest Solar PV News | F19: 156 mm Mono Solar Wafer | G19: 0.43 | H19: 0.37 | I19: 0.392 | J19: -0.002 | K19: -0.0051
F20: 158.75 / 161.75mm Mono Wafer | G20: 0.46 | H20: 0.41 | I20: 0.427 | J20: -0.003 | K20: -0.007
A21: The Lightyear One 'Solar Car' Is Amazing But Isn't Quite What You ... | F21: 156 mm Multi Wafer Outside China | G21: Visit here for more detail wafer price information
A22: Jalopnik | E22: Jun 27, 2019 | F22: 156mm DiamondWire Poly Wafer | G22: Visit here for more detail wafer price information
A23: Dutch company develops partly solar powered car | F23: 156 mm N-Mono Wafer | G23: Visit here for more detail
A24: CNN | E24: Jun 27, 2019 | F24: Unit: USD | G24: more | I24: Last Update: 2019-06-26
A25: Tufts University Adds New Solar Energy Systems | F25: Wafer Prices In China: The Prices are surveyed by RMB term with Tax and then shown in USD term without 13% of VAT after April 1, 2019, 16% of VAT after May 1, 2018 and 17% of VAT before May 1, 2018.
A26: Renewable Energy Magazine (press release) | E26: Jun 27, 2019 | F26: Solar PV Cell Weekly Spot Price
A27: Tufts adds new solar energy systems, expands its commitment to ... | F27: Item | G27: High | H27: Low | I27: Average | J27: AvgChg | K27: AvgChg %
A28: Tufts Now | E28: Jun 27, 2019 | F28: Multi Cell Price | G28: 0.135 | H28: 0.095 | I28: 0.111 | J28: -0.001 | K28: -0.0089
A29: The reality behind solar power's next star material | F29: Non China Poly Cell | G29: 0.14 | H29: 0.1 | I29: 0.111 | J29: -0.001 | K29: -0.0089
A30: Nature.com | E30: Jun 27, 2019 | F30: Poly PERC Cell | G30: 0.135 | H30: 0.11 | I30: 0.12 | J30: -0.001 | K30: -0.0083
A31: There's a looming waste crisis from Australia's solar energy boom | F31: Non China Poly PERC Cell | G31: 0.135 | H31: 0.12 | I31: 0.129 | J31: -0.001 | K31: -0.0077
A32: The Conversation AU | E32: Jun 27, 2019 | F32: 158.75/161.75mm Mono PERC Cell | G32: 0.18 | H32: 0.15 | I32: 0.154 | J32: -0.005 | K32: -0.0314
A33: Charge your phone with solar power as a first step to going green | F33: China Poly Cell Per Watt | G33: Visit here for more detail Cell price information
A34: CNET | E34: Jun 27, 2019 | F34: Non (TW or CN) Poly Cell Per Watt | G34: Visit here for more detail Cell price information
A35: Governor signs renewable energy and climate change bills into law | F35: Unit: USD / Watt | G35: more | I35: Last Update: 2019-06-26
A36: WAGM | E36: Jun 27, 2019 | F36: High Efficency Mono PERC Cell: The Prices are mainly represented to solar cells for 21.8% efficiency with less than 1.5% of CTM efficiency lost or 22.0% with less than 2% of CTM efficiency lost.
A37: Maine governor signs sweeping renewable energy bills | F37: Solar PV Module Weekly Spot Price
A38: WMTW Portland | E38: Jun 27, 2019 | F38: Item | G38: High | H38: Low | I38: Average | J38: AvgChg | K38: AvgChg %
A39: Mills signs 3 bills to boost renewable energy in Maine | F39: Poly Solar Module | G39: 0.31 | H39: 0.2 | I39: 0.214 | J39: -0.001 | K39: -0.0047
A40: Kennebec Journal & Morning Sentinel | E40: Jun 27, 2019 | F40: Poly Module in China | G40: 0.24 | H40: 0.2 | I40: 0.212 | J40: -0.001 | K40: -0.0047
A41: Southern states lead 2019's stock market solar rally | F41: Poly High Eff / PERC Module | G41: 0.35 | H41: 0.225 | I41: 0.252 | J41: -0.002 | K41: -0.0079
A42: Axios | E42: Jun 27, 2019 | F42: Mono High Eff / PERC Module | G42: 0.4 | H42: 0.24 | I42: 0.272 | J42: -0.002 | K42: -0.0073
A43: Ghana considers use of solar energy at airports | F43: Mono High Eff / PERC Module in China | G43: 0.27 | H43: 0.24 | I43: 0.249 | J43: -0.001 | K43: -0.004
A44: Myjoyonline.com | E44: Jun 27, 2019 | F44: ThinFilm Solar Module | G44: 0.33 | H44: 0.23 | I44: 0.248 | J44: -0.001 | K44: -0.004
A45: Renewables surpassed coal for power production in April for first time | F45: US Multi Solar Module | G45: Visit here for more detail module price information
A46: Chron.com | E46: Jun 27, 2019 | F46: Mono Silicon Solar Module | G46: Visit here for more detail module price information
A47: UK wind, solar 'hit Q1 high' | F47: India Poly Module | G47: Visit here for more detail module price information
A48: reNEWS | E48: Jun 27, 2019 | F48: Unit: USD / Watt | G48: more | I48: Last Update: 2019-06-26
A49: Renewable energy exceeded coal-fired generation in April | F49: All Spot Prices are Tax excluded and updated on Wednesday
A50: talkbusiness.net | E50: Jun 27, 2019
A51: Last Update: 2019-Jun- 27 23:00 (GMT+8)
A52: Price Methodology | B52: Terms of Use | C52: Privacy Policy | D52: About Us | E52: Contact Us | F52: Site Map
A53: Copyright © 2019 PVinsights.com All rights reserved

Sheet pvinsights 12 08 19
B1: Login | C1: Register | D1: Member Center
A3: Home | B3: Why Solar | C3: Retailer Price | D3: Contract Price | E3: Inverter Price | F3: Weekly Snapshots | G3: Price Download | H3: Monthly Insights | I3: Weekly Forecast | J3: Price Forecast | K3: Premier Insights | L3: Premier Data | M3: Advertising
F4: PV Poly Silicon Weekly Spot Price
A5: The US 2018 AD & CVD Sunset Reviews | F5: Item | G5: High | H5: Low | I5: Average | J5: AvgChg | K5: AvgChg%
F6: PV Grade PolySilicon (9N/9N+) | G6: 10 | H6: 6.95 | I6: 7.92 | J6: -0.11 | K6: -0.0137
F7: 2nd Grade PolySilicon (6N-8N) | G7: 7.6 | H7: 5.45 | I7: 5.76 | J7: -0.13 | K7: -0.0221
A8: Solar PV Corporate News Release | F8: PV Mono Grade PolySilicon in China (11N/11N+) | G8: 10 | H8: 8.9 | I8: 9.25 | J8: -0.1 | K8: -0.0107
A9: JinkoSolar Announces First Quarter 2019 Financial Results | F9: PV Grade PolySilicon in China (9N/9N+) | G9: Visit here for more Poly-Si price | K9: %
A10: JinkoSolar | C10: 2019-06-28 | F10: PV Grade PolySilicon Outside China (9N/9N+) | G10: Visit here for more Poly-Si price | K10: %
A11: CANADIAN SOLAR REPORTS FIRST QUARTER 2019 RESULTS | F11: Unit: USD/Kg | G11: more | I11: Last Update: 2019-08-07
A12: CanadianSol | C12: 2019-05-30 | F12: Definition of PV Grade: Poly silicon chunk with high purity can be directly produced to Solar PV Ingots / Bricks
A13: SunPower Reports First Quarter 2019 Results | F13: Definition of 2nd Grade: Poly silicon chunk must be mixed with high purity polysilicon, when producing Solar PV Ingots / Bricks.
A14: Sunpower | C14: 2019-05-10 | F14: PolySilicon Price In China: The Price is surveyed by RMB term with Tax and then shown in USD term without 13% of VAT after Apri 1, 2019, 16% of VAT after May 1, 2018 and 17% of VAT before May 1, 2018.
A15: First Solar, Inc. Announces First Quarter 2019 Financial Results | F15: Solar PV Wafer Weekly Spot Price
A16: First Solar | C16: 2019-05-03 | F16: Item | G16: High | H16: Low | I16: Average | J16: AvgChg | K16: AvgChg%
A17: JinkoSolar Announces Fourth Quarter and Full Year 2018 Financial Results | F17: 156 mm Multi Solar Wafer | G17: 0.26 | H17: 0.235 | I17: 0.244 | J17: -0.004 | K17: -0.0161
A18: JinkoSolar | C18: 2019-03-22 | F18: 156 mm High Eff Multi Solar Wafer | G18: 0.26 | H18: 0.235 | I18: 0.244 | J18: -0.004 | K18: -0.0161
A19: Latest Solar PV News | F19: 156 mm Mono Solar Wafer | G19: 0.43 | H19: 0.37 | I19: 0.389 | J19: -0.003 | K19: -0.0077
F20: 158.75 / 161.75mm Mono Wafer | G20: 0.46 | H20: 0.4 | I20: 0.424 | J20: -0.003 | K20: -0.007
A21: Recto eyes solar panels in all govt buildings | F21: 156 mm Multi Wafer Outside China | G21: Visit here for more detail wafer price information
A22: The Manila Times | E22: 2019-08-13 | F22: 156mm DiamondWire Poly Wafer | G22: Visit here for more detail wafer price information
A23: Frankston's Biggest Solar Power Project Complete | F23: 156 mm N-Mono Wafer | G23: Visit here for more detail
A24: Solar Quotes (blog) | E24: 2019-08-13 | F24: Unit: USD | G24: more | I24: Last Update: 2019-08-07
A25: Solar now 'cheaper than grid electricity' in every Chinese city, study ... | F25: Wafer Prices In China: The Prices are surveyed by RMB term with Tax and then shown in USD term without 13% of VAT after April 1, 2019, 16% of VAT after May 1, 2018 and 17% of VAT before May 1, 2018.
A26: Carbon Brief | E26: 2019-08-13 | F26: Solar PV Cell Weekly Spot Price
A27: Ralphs Installs Solar Panels at Automated Distribution Center | F27: Item | G27: High | H27: Low | I27: Average | J27: AvgChg | K27: AvgChg %
A28: Progressive Grocer | E28: 2019-08-13 | F28: Multi Cell Price | G28: 0.135 | H28: 0.09 | I28: 0.102 | J28: -0.002 | K28: -0.0192
A29: Ralphs Completes Solar Power Installation At 555000-Square-Foot ... | F29: Poly PERC Cell | G29: 0.15 | H29: 0.105 | I29: 0.112 | J29: -0.002 | K29: -0.0175
A30: MarketWatch | E30: 2019-08-13 | F30: Mono PERC Cell | G30: 0.18 | H30: 0.11 | I30: 0.122 | J30: -0.004 | K30: -0.0317
A31: Kroger in largest solar energy project yet | F31: China Mono PERC Cell | G31: 0.15 | H31: 0.11 | I31: 0.116 | J31: -0.004 | K31: -0.0333
A32: Chain Store Age | E32: 2019-08-13 | F32: 158.75/161.75mm Mono PERC Cell | G32: 0.185 | H32: 0.115 | I32: 0.126 | J32: -0.004 | K32: -0.0308
A33: State firms' solar energy program to cost $1b | F33: China Poly Cell Per Watt | G33: Visit here for more detail Cell price information
A34: Jakarta Post | E34: 2019-08-13 | F34: Non (TW or CN) Poly Cell Per Watt | G34: Visit here for more detail Cell price information
A35: How To Have Solar Power And Eat, Too | F35: Unit: USD / Watt | G35: more | I35: Last Update: 2019-08-07
A36: WFYI | E36: 2019-08-13 | F36: High Efficency Mono PERC Cell: The Prices are mainly represented to solar cells for 21.8% efficiency with less than 1.5% of CTM efficiency lost or 22.0% with less than 2% of CTM efficiency lost.
A37: Christopher Hayes '19 Researches Solar Energy at Brookhaven ... | F37: Solar PV Module Weekly Spot Price
A38: Stony Brook News (press release) | E38: 2019-08-13 | F38: Item | G38: High | H38: Low | I38: Average | J38: AvgChg | K38: AvgChg %
A39: Vattenfall commits to Dutch hybrid play | F39: Poly Solar Module | G39: 0.3 | H39: 0.19 | I39: 0.207 | J39: -0.001 | K39: -0.0048
A40: reNEWS | E40: 2019-08-13 | F40: Poly Module in China | G40: 0.24 | H40: 0.19 | I40: 0.204 | J40: -0.003 | K40: -0.0145
A41: Vattenfall to build large scale wind-solar-storage plant in the ... | F41: Poly High Eff / PERC Module | G41: 0.34 | H41: 0.215 | I41: 0.243 | J41: -0.001 | K41: -0.0041
A42: pv magazine International | E42: 2019-08-13 | F42: Mono High Eff / PERC Module | G42: 0.39 | H42: 0.235 | I42: 0.26 | J42: -0.001 | K42: -0.0038
A43: Vattenfall combines wind, solar, batteries in Netherlands energy park | F43: Mono High Eff / PERC Module in China | G43: 0.26 | H43: 0.235 | I43: 0.239 | J43: -0.002 | K43: -0.0083
A44: Electric Light & Power | E44: 2019-08-13 | F44: ThinFilm Solar Module | G44: 0.33 | H44: 0.23 | I44: 0.245 | J44: 0 | K44: 0
A45: Northam announces solar installations at 3 state facilities | F45: US Multi Solar Module | G45: Visit here for more detail module price information
A46: Prince William Times | E46: 2019-08-13 | F46: Mono Silicon Solar Module | G46: Visit here for more detail module price information
A47: Lithuania boosts solar power funding to 18 million euro | F47: India Poly Module | G47: Visit here for more detail module price information
A48: TheMayorEU (press release) | E48: 2019-08-13 | F48: Unit: USD / Watt | G48: more | I48: Last Update: 2019-08-07
A49: Amazon announces new renewable energy projects in the US and ... | F49: All Spot Prices are Tax excluded and updated on Wednesday
A50: CNBC | E50: 2019-08-12
A51: Last Update: 2019-Aug- 13 07:01 (GMT+8)
A52: Price Methodology | B52: Terms of Use | C52: Privacy Policy | D52: About Us | E52: Contact Us | F52: Site Map
A53: Copyright © 2019 PVinsights.com All rights reserved

Sheet pvinsights 07 09 19
B1: Login | C1: Register | D1: Member Center
A3: Home | B3: Why Solar | C3: Retailer Price | D3: Contract Price | E3: Inverter Price | F3: Weekly Snapshots | G3: Price Download | H3: Monthly Insights | I3: Weekly Forecast | J3: Price Forecast | K3: Premier Insights | L3: Premier Data | M3: Advertising
F4: PV Poly Silicon Weekly Spot Price
A5: The US 2018 AD & CVD Sunset Reviews | F5: Item | G5: High | H5: Low | I5: Average | J5: AvgChg | K5: AvgChg%
F6: PV Grade PolySilicon (9N/9N+) | G6: 9.7 | H6: 6.85 | I6: 7.66 | J6: -0.1 | K6: -0.0129
F7: 2nd Grade PolySilicon (6N-8N) | G7: 7.35 | H7: 5.35 | I7: 5.58 | J7: -0.05 | K7: -0.0089
A8: Solar PV Corporate News Release | F8: PV Mono Grade PolySilicon in China (11N/11N+) | G8: 9.7 | H8: 8.8 | I8: 8.95 | J8: -0.15 | K8: -0.0165
A9: JinkoSolar Announces First Quarter 2019 Financial Results | F9: PV Grade PolySilicon in China (9N/9N+) | G9: Visit here for more Poly-Si price | K9: %
A10: JinkoSolar | C10: 2019-06-28 | F10: PV Grade PolySilicon Outside China (9N/9N+) | G10: Visit here for more Poly-Si price | K10: %
A11: CANADIAN SOLAR REPORTS FIRST QUARTER 2019 RESULTS | F11: Unit: USD/Kg | G11: more | I11: Last Update: 2019-09-04
A12: CanadianSol | C12: 2019-05-30 | F12: Definition of PV Grade: Poly silicon chunk with high purity can be directly produced to Solar PV Ingots / Bricks
A13: SunPower Reports First Quarter 2019 Results | F13: Definition of 2nd Grade: Poly silicon chunk must be mixed with high purity polysilicon, when producing Solar PV Ingots / Bricks.
A14: Sunpower | C14: 2019-05-10 | F14: PolySilicon Price In China: The Price is surveyed by RMB term with Tax and then shown in USD term without 13% of VAT after Apri 1, 2019, 16% of VAT after May 1, 2018 and 17% of VAT before May 1, 2018.
A15: First Solar, Inc. Announces First Quarter 2019 Financial Results | F15: Solar PV Wafer Weekly Spot Price
A16: First Solar | C16: 2019-05-03 | F16: Item | G16: High | H16: Low | I16: Average | J16: AvgChg | K16: AvgChg%
A17: JinkoSolar Announces Fourth Quarter and Full Year 2018 Financial Results | F17: 156 mm Multi Solar Wafer | G17: 0.25 | H17: 0.225 | I17: 0.232 | J17: -0.002 | K17: -0.0085
A18: JinkoSolar | C18: 2019-03-22 | F18: 156 mm High Eff Multi Solar Wafer | G18: 0.25 | H18: 0.225 | I18: 0.232 | J18: -0.002 | K18: -0.0085
A19: Latest Solar PV News | F19: 156 mm Mono Solar Wafer | G19: 0.43 | H19: 0.355 | I19: 0.379 | J19: -0.003 | K19: -0.0079
F20: 158.75 / 161.75mm Mono Wafer | G20: 0.46 | H20: 0.39 | I20: 0.419 | J20: 0 | K20: 0
A21: The Age of Solar Energy Abundance Is Coming in Hot | F21: 156 mm Multi Wafer Outside China | G21: Visit here for more detail wafer price information
A22: Singularity Hub | E22: 2019-09-07 | F22: 156mm DiamondWire Poly Wafer | G22: Visit here for more detail wafer price information
A23: Renewable energy surges as power emissions keep rising: UN | F23: 156 mm N-Mono Wafer | G23: Visit here for more detail
A24: Yahoo NewsPV-Tech | E24: 2019-09-07 | F24: Unit: USD | G24: more | I24: Last Update: 2019-09-04
A25: Solar energy: India needs a globally competitive solar panel industry | F25: Wafer Prices In China: The Prices are surveyed by RMB term with Tax and then shown in USD term without 13% of VAT after April 1, 2019, 16% of VAT after May 1, 2018 and 17% of VAT before May 1, 2018.
A26: Financial Express | E26: 2019-09-07 | F26: Solar PV Cell Weekly Spot Price
A27: UN headquarters get solar panel on its roof as a gift from India | F27: Item | G27: High | H27: Low | I27: Average | J27: AvgChg | K27: AvgChg %
A28: New Delhi Times | E28: 2019-09-07 | F28: Multi Cell Price | G28: 0.13 | H28: 0.09 | I28: 0.099 | J28: 0.001 | K28: 0.0102
A29: ¡§A Gift From India¡¨: United Nations Office In US Gets Solar Panels | F29: Poly PERC Cell | G29: 0.145 | H29: 0.105 | I29: 0.11 | J29: 0.002 | K29: 0.0185
A30: Herald Publicist | E30: 2019-09-07 | F30: Mono PERC Cell | G30: 0.18 | H30: 0.11 | I30: 0.118 | J30: 0.003 | K30: 0.0261
A31: India Gifts Solar Panels To United Nations Headquarters In New ... | F31: China Mono PERC Cell | G31: 0.14 | H31: 0.11 | I31: 0.113 | J31: 0.003 | K31: 0.0273
A32: India Times | E32: 2019-09-07 | F32: 158.75/161.75mm Mono PERC Cell | G32: 0.185 | H32: 0.115 | I32: 0.123 | J32: 0.003 | K32: 0.025
A33: "A Gift From India": UN Headquarters Gets Solar Panels On Its Roof | F33: China Poly Cell Per Watt | G33: Visit here for more detail Cell price information
A34: NDTV | E34: 2019-09-07 | F34: Non (TW or CN) Poly Cell Per Watt | G34: Visit here for more detail Cell price information
A35: Why Solar Execs Say the Game Is Already Over for Non-Renewable ... | F35: Unit: USD / Watt | G35: more | I35: Last Update: 2019-09-04
A36: Fortune | E36: 2019-09-07 | F36: High Efficency Mono PERC Cell: The Prices are mainly represented to solar cells for 21.8% efficiency with less than 1.5% of CTM efficiency lost or 22.0% with less than 2% of CTM efficiency lost.
A37: CleanChoice Energy, Hartz Solar open 1.9MW of community solar ... | F37: Solar PV Module Weekly Spot Price
A38: Maryland Daily Record | E38: 2019-09-07 | F38: Item | G38: High | H38: Low | I38: Average | J38: AvgChg | K38: AvgChg %
A39: Crops under solar panels can be a win-win | F39: Poly Solar Module | G39: 0.3 | H39: 0.19 | I39: 0.202 | J39: -0.001 | K39: -0.0049
A40: Ars Technica | E40: 2019-09-07 | F40: Poly Module in China | G40: 0.24 | H40: 0.19 | I40: 0.2 | J40: 0 | K40: 0
A41: Gibson Farms moves to renewable energy | F41: Poly High Eff / PERC Module | G41: 0.34 | H41: 0.21 | I41: 0.237 | J41: -0.001 | K41: -0.0042
A42: Benitolink: San Benito County News | E42: 2019-09-07 | F42: Mono High Eff / PERC Module | G42: 0.39 | H42: 0.22 | I42: 0.251 | J42: -0.002 | K42: -0.0079
A43: The Zacks Analyst Blog Highlights: First Solar, Enviva, Renewable ... | F43: Mono High Eff / PERC Module in China | G43: 0.26 | H43: 0.22 | I43: 0.229 | J43: -0.001 | K43: -0.0043
A44: Yahoo FinanceInsideClimate News | E44: 2019-09-07 | F44: ThinFilm Solar Module | G44: 0.33 | H44: 0.23 | I44: 0.243 | J44: 0 | K44: 0
A45: Australia has met its renewable energy target. But don't pop the ... | F45: US Multi Solar Module | G45: Visit here for more detail module price information
A46: The Conversation AU | E46: 2019-09-07 | F46: Mono Silicon Solar Module | G46: Visit here for more detail module price information
A47: Global Renewable Energy Has Quadrupled Over the Past Decade | F47: India Poly Module | G47: Visit here for more detail module price information
A48: Truthout | E48: 2019-09-07 | F48: Unit: USD / Watt | G48: more | I48: Last Update: 2019-09-04
A49: Solar, energy storage, renewables: Where do the top Democratic ... | F49: All Spot Prices are Tax excluded and updated on Wednesday
A50: PV-TechTech Xplore | E50: 2019-09-07
A51: Last Update: 2019-Sep- 08 07:02 (GMT+8)
A52: Price Methodology | B52: Terms of Use | C52: Privacy Policy | D52: About Us | E52: Contact Us | F52: Site Map
A53: Copyright © 2019 PVinsights.com All rights reserved

Sheet pvinsights 24 11 19
B1: Login | C1: Register | D1: Member Center
A3: Home | B3: Why Solar | C3: Retailer Price | D3: Contract Price | E3: Inverter Price | F3: Weekly Snapshots | G3: Price Download | H3: Monthly Insights | I3: Weekly Forecast | J3: Price Forecast | K3: Premier Insights | L3: Premier Data | M3: Advertising
F4: PV Poly Silicon Weekly Spot Price
A5: The US 2018 AD & CVD Sunset Reviews | F5: Item | G5: High | H5: Low | I5: Average | J5: AvgChg | K5: AvgChg%
F6: PV Grade PolySilicon (9N/9N+) | G6: 9.7 | H6: 6.75 | I6: 7.5 | J6: -0.03 | K6: -0.004
F7: 2nd Grade PolySilicon (6N-8N) | G7: 7.35 | H7: 5.15 | I7: 5.46 | J7: -0.03 | K7: -0.0055
A8: Solar PV Corporate News Release | F8: PV Mono Grade PolySilicon in China (11N/11N+) | G8: 9.7 | H8: 8.5 | I8: 8.68 | J8: -0.03 | K8: -0.0034
A9: JinkoSolar Announces First Quarter 2019 Financial Results | F9: PV Grade PolySilicon in China (9N/9N+) | G9: Visit here for more Poly-Si price | K9: %
A10: JinkoSolar | C10: 2019-06-28 | F10: PV Grade PolySilicon Outside China (9N/9N+) | G10: Visit here for more Poly-Si price | K10: %
A11: CANADIAN SOLAR REPORTS FIRST QUARTER 2019 RESULTS | F11: Unit: USD/Kg | G11: more | I11: Last Update: 2019-11-20
A12: CanadianSol | C12: 2019-05-30 | F12: Definition of PV Grade: Poly silicon chunk with high purity can be directly produced to Solar PV Ingots / Bricks
A13: SunPower Reports First Quarter 2019 Results | F13: Definition of 2nd Grade: Poly silicon chunk must be mixed with high purity polysilicon, when producing Solar PV Ingots / Bricks.
A14: Sunpower | C14: 2019-05-10 | F14: PolySilicon Price In China: The Price is surveyed by RMB term with Tax and then shown in USD term without 13% of VAT after Apri 1, 2019, 16% of VAT after May 1, 2018 and 17% of VAT before May 1, 2018.
A15: First Solar, Inc. Announces First Quarter 2019 Financial Results | F15: Solar PV Wafer Weekly Spot Price
A16: First Solar | C16: 2019-05-03 | F16: Item | G16: High | H16: Low | I16: Average | J16: AvgChg | K16: AvgChg%
A17: JinkoSolar Announces Fourth Quarter and Full Year 2018 Financial Results | F17: 156 mm Multi Solar Wafer | G17: 0.25 | H17: 0.2 | I17: 0.212 | J17: -0.01 | K17: -0.045
A18: JinkoSolar | C18: 2019-03-22 | F18: 156 mm High Eff Multi Solar Wafer | G18: 0.25 | H18: 0.21 | I18: 0.218 | J18: -0.004 | K18: -0.018
A19: Latest Solar PV News | F19: 156 mm Mono Solar Wafer | G19: 0.42 | H19: 0.35 | I19: 0.37 | J19: -0.001 | K19: -0.0027
F20: 158.75 / 161.75mm Mono Wafer | G20: 0.45 | H20: 0.38 | I20: 0.404 | J20: -0.001 | K20: -0.0025
A21: Ouachita Electric's Mark Cayce Says Power Lines Drawn for Solar ... | F21: 156 mm Multi Wafer Outside China | G21: Visit here for more detail wafer price information
A22: Arkansas Business Online | E22: 2019-11-18 | F22: 156mm DiamondWire Poly Wafer | G22: Visit here for more detail wafer price information
A23: Renewable power will grow 50% in next 5 years, IEA says | F23: 156 mm N-Mono Wafer | G23: Visit here for more detail
A24: CBC.ca | E24: 2019-11-18 | F24: Unit: USD | G24: more | I24: Last Update: 2019-11-20
A25: Renewable capacity set for 50% growth over next few years, IEA says | F25: Wafer Prices In China: The Prices are surveyed by RMB term with Tax and then shown in USD term without 13% of VAT after April 1, 2019, 16% of VAT after May 1, 2018 and 17% of VAT before May 1, 2018.
A26: CNBC | E26: 2019-11-18 | F26: Solar PV Cell Weekly Spot Price
A27: US Solar Panel Prices Continue Dropping, Solar+Storage ... | F27: Item | G27: High | H27: Low | I27: Average | J27: AvgChg | K27: AvgChg %
A28: CleanTechnica | E28: 2019-11-18 | F28: Multi Cell Price | G28: 0.125 | H28: 0.08 | I28: 0.085 | J28: -0.004 | K28: -0.0449
A29: Delaware's legislative baby steps towards a renewable future | F29: Poly PERC Cell | G29: 0.14 | H29: 0.095 | I29: 0.104 | J29: -0.003 | K29: -0.028
A30: University of Delaware Review | E30: 2019-11-18 | F30: Mono PERC Cell | G30: 0.17 | H30: 0.11 | I30: 0.12 | J30: 0.004 | K30: 0.0345
A31: Renewable Energy Holds Huge Potential to Replace Fossil Fuels ... | F31: China Mono PERC Cell | G31: 0.14 | H31: 0.11 | I31: 0.119 | J31: 0.004 | K31: 0.0348
A32: Via News Agency | E32: 2019-11-18 | F32: 158.75/161.75mm Mono PERC Cell | G32: 0.175 | H32: 0.115 | I32: 0.123 | J32: 0.002 | K32: 0.0165
A33: Storage for advanced concentrated solar power (CSP) plants | F33: China Poly Cell Per Watt | G33: Visit here for more detail Cell price information
A34: REVE (press release) | E34: 2019-11-18 | F34: Non (TW or CN) Poly Cell Per Watt | G34: Visit here for more detail Cell price information
A35: Airport Solar Power Market Research Report (2019-2025): SWOT ... | F35: Unit: USD / Watt | G35: more | I35: Last Update: 2019-11-20
A36: The Connect Report | E36: 2019-11-18 | F36: High Efficency Mono PERC Cell: The Prices are mainly represented to solar cells for 21.8% efficiency with less than 1.5% of CTM efficiency lost or 22.0% with less than 2% of CTM efficiency lost.
A37: Scientists plan to capture energy from Solar Panel waste | F37: Solar PV Module Weekly Spot Price
A38: ELE Times (press release) | E38: 2019-11-18 | F38: Item | G38: High | H38: Low | I38: Average | J38: AvgChg | K38: AvgChg %
A39: Yemenis seek solar energy in response to supply shortage | F39: Poly Solar Module | G39: 0.3 | H39: 0.18 | I39: 0.194 | J39: -0.001 | K39: -0.0051
A40: The Daily Star | E40: 2019-11-18 | F40: Poly Module in China | G40: 0.24 | H40: 0.18 | I40: 0.194 | J40: -0.001 | K40: -0.0051
A41: How the humble chairlift could revolutionize renewable energy | F41: Poly High Eff / PERC Module | G41: 0.35 | H41: 0.2 | I41: 0.22 | J41: -0.002 | K41: -0.009
A42: Grist | E42: 2019-11-18 | F42: Mono High Eff / PERC Module | G42: 0.39 | H42: 0.21 | I42: 0.23 | J42: -0.003 | K42: -0.0129
A43: Coal-addicted India's solar and wind farms save more lives than ... | F43: Mono High Eff / PERC Module in China | G43: 0.25 | H43: 0.21 | I43: 0.213 | J43: -0.003 | K43: -0.0139
A44: Quartz | E44: 2019-11-18 | F44: ThinFilm Solar Module | G44: 0.33 | H44: 0.23 | I44: 0.237 | J44: 0 | K44: 0
A45: $150M Calhoun County solar energy center gets local approval | F45: US Multi Solar Module | G45: Visit here for more detail module price information
A46: Battle Creek Enquirer | E46: 2019-11-18 | F46: Mono Silicon Solar Module | G46: Visit here for more detail module price information
A47: Jerry Clifton speaks on renewable energy, cars, air pollution | F47: India Poly Module | G47: Visit here for more detail module price information
A48: University of Delaware Review | E48: 2019-11-18 | F48: Unit: USD / Watt | G48: more | I48: Last Update: 2019-11-20
A49: Protermosolar: Luis Crespo inaugurates the congress Concentrated ... | F49: All Spot Prices are Tax excluded and updated on Wednesday
A50: REVE (press release) | E50: 2019-11-18
A51: Last Update: 2019-Nov- 24 23:00 (GMT+8)
A52: Price Methodology | B52: Terms of Use | C52: Privacy Policy | D52: About Us | E52: Contact Us | F52: Site Map
A53: Copyright © 2019 PVinsights.com All rights reserved

Sheet pvinsights 13 12 19
B1: Login | C1: Register | D1: Member Center
A3: Home | B3: Why Solar | C3: Retailer Price | D3: Contract Price | E3: Inverter Price | F3: Weekly Snapshots | G3: Price Download | H3: Monthly Insights | I3: Weekly Forecast | J3: Price Forecast | K3: Premier Insights | L3: Premier Data | M3: Advertising
F4: PV Poly Silicon Weekly Spot Price
A5: The US 2018 AD & CVD Sunset Reviews | F5: Item | G5: High | H5: Low | I5: Average | J5: AvgChg | K5: AvgChg%
F6: PV Grade PolySilicon (9N/9N+) | G6: 9.7 | H6: 6.05 | I6: 7.41 | J6: -0.02 | K6: -0.0027
F7: 2nd Grade PolySilicon (6N-8N) | G7: 7.35 | H7: 4.5 | I7: 5.32 | J7: -0.03 | K7: -0.0056
A8: Solar PV Corporate News Release | F8: PV Mono Grade PolySilicon in China (11N/11N+) | G8: 9.7 | H8: 8.4 | I8: 8.61 | J8: -0.01 | K8: -0.0012
A9: JinkoSolar Announces First Quarter 2019 Financial Results | F9: PV Grade PolySilicon in China (9N/9N+) | G9: Visit here for more Poly-Si price | K9: %
A10: JinkoSolar | C10: 2019-06-28 | F10: PV Grade PolySilicon Outside China (9N/9N+) | G10: Visit here for more Poly-Si price | K10: %
A11: CANADIAN SOLAR REPORTS FIRST QUARTER 2019 RESULTS | F11: Unit: USD/Kg | G11: more | I11: Last Update: 2019-12-11
A12: CanadianSol | C12: 2019-05-30 | F12: Definition of PV Grade: Poly silicon chunk with high purity can be directly produced to Solar PV Ingots / Bricks
A13: SunPower Reports First Quarter 2019 Results | F13: Definition of 2nd Grade: Poly silicon chunk must be mixed with high purity polysilicon, when producing Solar PV Ingots / Bricks.
A14: Sunpower | C14: 2019-05-10 | F14: PolySilicon Price In China: The Price is surveyed by RMB term with Tax and then shown in USD term without 13% of VAT after Apri 1, 2019, 16% of VAT after May 1, 2018 and 17% of VAT before May 1, 2018.
A15: First Solar, Inc. Announces First Quarter 2019 Financial Results | F15: Solar PV Wafer Weekly Spot Price
A16: First Solar | C16: 2019-05-03 | F16: Item | G16: High | H16: Low | I16: Average | J16: AvgChg | K16: AvgChg%
A17: JinkoSolar Announces Fourth Quarter and Full Year 2018 Financial Results | F17: 156 mm Multi Solar Wafer | G17: 0.23 | H17: 0.18 | I17: 0.192 | J17: -0.002 | K17: -0.0103
A18: JinkoSolar | C18: 2019-03-22 | F18: 156 mm High Eff Multi Solar Wafer | G18: 0.23 | H18: 0.195 | I18: 0.2 | J18: -0.002 | K18: -0.0099
A19: Latest Solar PV News | F19: 156 mm Mono Solar Wafer | G19: 0.42 | H19: 0.35 | I19: 0.369 | J19: 0 | K19: 0
F20: 158.75 / 161.75mm Mono Wafer | G20: 0.45 | H20: 0.38 | I20: 0.403 | J20: 0 | K20: 0
A21: A way to achieve greater than 100% solar power in the U.S., without ... | F21: 156 mm Multi Wafer Outside China | G21: Visit here for more detail wafer price information
A22: pv magazine USA | E22: 2019-12-13 | F22: 156mm DiamondWire Poly Wafer | G22: Visit here for more detail wafer price information
A23: Scientists build solar panels that act like sunflowers | F23: 156 mm N-Mono Wafer | G23: Visit here for more detail
A24: Sustainability Times | E24: 2019-12-13 | F24: Unit: USD | G24: more | I24: Last Update: 2019-12-11
A25: In rural Colorado, the kids of coal miners learn to install solar panels | F25: Wafer Prices In China: The Prices are surveyed by RMB term with Tax and then shown in USD term without 13% of VAT after April 1, 2019, 16% of VAT after May 1, 2018 and 17% of VAT before May 1, 2018.
A26: High Country News | E26: 2019-12-13 | F26: Solar PV Cell Weekly Spot Price
A27: US adds 2.6 gigawatts of solar photovoltaics in third quarter, new figures show | F27: Item | G27: High | H27: Low | I27: Average | J27: AvgChg | K27: AvgChg %
A28: CNBC | E28: 2019-12-13 | F28: Multi Cell Price | G28: 0.12 | H28: 0.07 | I28: 0.077 | J28: -0.001 | K28: -0.0128
